{"text_format":"1","workbook":"xlsx","n_sheets":12,"sheets":["Inicio","Socios","C-128","C-131","C-380","C-381,382","C-383","Export","GR","C-361,362,364,365,367","C-404,405,407,408","BC_PCGE"],"not_rendered":{"charts":0,"images":0,"macros":1,"external_links":0,"defined_names":4,"comments":5,"pivot_tables":0},"unopened":[],"bounds":{"document_bytes":16777216,"sheet_cells":100000,"rows_first":2000,"rows_last":500,"rows_between":2000,"halvings":0,"cell_chars":16384,"cell_head_chars":4096},"cells_cut":0,"cells_raw":0,"read":"whole","date_system":"1900"}

{"sheet":"Inicio","index":0,"n_rows":16,"n_cols":13,"rows_kept":16,"cut":false,"hidden":false,"merged":[[5,5,5,9],[7,5,7,6],[9,5,9,6],[13,5,13,9],[11,5,11,6]]}
["IMPORTADORES PDT 0702"]
[]
[]
[null,null,null,"DATOS DE LA EMPRESA",null,null,null,null,null,null,null,null,"TXT DISPONIBLES"]
[null,null,null,null,null,null,null,null,null,null,null,null,"Socios"]
[null,null,null,"EMPRESA",":","NOTICIERO DEL CONTADOR SAC",null,null,null,null,null,null,"Casilla 128"]
[null,null,null,null,null,null,null,null,null,null,null,null,"Casilla 131"]
[null,null,null,"RUC",":","20556106909",null,null,null,null,null,null,"Casilla 380"]
[null,null,null,null,null,null,null,null,null,null,null,null,"Casilla 381,382"]
[null,null,null,"PERIODO",":","2015",null,null,null,null,null,null,"Casilla 383"]
[null,null,null,null,null,null,null,null,null,null,null,null,"Exportaciones"]
[null,null,null,"PDT",":","702",null,null,null,null,null,null,"G. de Representación"]
[null,null,null,null,null,null,null,null,null,null,null,null,"Clientes"]
[null,null,null,"Ruta",":","Z:\\Escritorio",null,null,null,null,null,null,"Proveedores"]
[null,null,null,null,null,null,null,null,null,null,null,null,"Balance de Comprobación"]
[null,null,null,null,null,null,null,"http://www.noticierocontable.com/"]

{"sheet":"Socios","index":1,"n_rows":4,"n_cols":9,"rows_kept":4,"cut":false,"hidden":false,"merged":[]}
["SOCIOS"]
[null,"Tipo Socio","Tipo Documento","Número Documento","Nombres o Razón Social","Fecha Nacimiento","Pais de Residencia","Porcentaje de Participación","Fec. se constituye como socio"]
[null,1,1,"06454380","OLIVEROS CERNA BARTOLOME ULDARICO","1951-11-06",null,50,"2003-12-22"]
[null,1,1,17854243,"JORGE MARTIN FUSTER VELEZMORO","1962-05-09",null,50,"2003-12-22"]

{"sheet":"C-128","index":2,"n_rows":18,"n_cols":8,"rows_kept":18,"cut":false,"hidden":false,"merged":[]}
["CASILLA 128"]
[null,"Periodo","Utilización del saldo a favor","Compensación del SFMB","Compensación del ITAN","Compensación Ley 28843","Otros Créditos","Monto Pagado"]
[null,201501,100]
[null,201502,200]
[null,201503,100,null,626]
[null,201504,200,null,626]
[null,201505,100,null,626]
[null,201506,200,null,626]
[null,201507,100,null,626]
[null,201508,200,null,626]
[null,201509,100,null,626]
[null,201510,200,null,626]
[null,201511,100,null,626]
[null,201512,200]
[null,201601]
[null,201602]
[null,201603]
[null,201604]

{"sheet":"C-131","index":3,"n_rows":15,"n_cols":3,"rows_kept":15,"cut":false,"hidden":false,"merged":[]}
["CASILLA 131"]
[null,"Periodo","Pagos (No incluye intereses)"]
[null,201504,626]
[null,201505,626]
[null,201506,626]
[null,201507,626]
[null,201508,626]
[null,201509,626]
[null,201510,626]
[null,201511,626]
[null,201512,626]
[null,201601]
[null,201602]
[null,201603]
[null,201604]

{"sheet":"C-380","index":4,"n_rows":11,"n_cols":11,"rows_kept":11,"cut":false,"hidden":false,"merged":[]}
["CASILLA 380"]
[null,"Clases A° F°","Saldos Iniciales 01/01/2015","Adiciones compras y mejoras","Adiciones aportes","Adiciones Reorganización de Sociedades Costo","Adiciones Incremento Por  Mayor Valor","Adiciones Incremento Por Revaluación Voluntaria","Adiciones otras","Retiros Ventas","Retiros Otros"]
[null,1,100,100]
[null,2,200,100]
[null,3,300,100]
[null,4,400,100]
[null,5,500,100]
[null,6,600,100]
[null,7,700,100]
[null,8,800,100]
[null,9,900,100]

{"sheet":"C-381,382","index":5,"n_rows":11,"n_cols":12,"rows_kept":11,"cut":false,"hidden":false,"merged":[]}
[{"$f":"CONCATENATE(\"CASILLA \", K1)","v":"CASILLA 381"},null,null,null,null,null,null,null,null,null,381,"Selecciona N° Casilla 381,382"]
[null,"Clases A° F°","Saldos Iniciales 01/01/2015","Adiciones compras y mejoras","Adiciones aportes","Adiciones Reorganización de Sociedades Costo","Adiciones Incremento Por  Mayor Valor","Adiciones Incremento Por Revaluación Voluntaria","Adiciones otras","Retiros Ventas","Retiros Otros"]
[null,1,100,100]
[null,2,200,100]
[null,3,300,100]
[null,4,400,100]
[null,5,500,100]
[null,6,600,100]
[null,7,700,100]
[null,8,800,100]
[null,9,900,100]

{"sheet":"C-383","index":6,"n_rows":11,"n_cols":11,"rows_kept":11,"cut":false,"hidden":false,"merged":[]}
["CASILLA 383"]
[null,"Clases A° F°","Saldos Iniciales 01/01/2015","% Depreciación","De Saldos Iniciales","Compras Mejoras y Aportes","Reorganiz. de Sociedades Costo","Reorganiz. de Sociedades Incremento Mayor Valor","Incremento Revaluación Voluntaria","Adiciones Otras","Retiros por Ventas y Otros"]
[null,1,100,5,5]
[null,2,200,5,5]
[null,3,300,5,5]
[null,4,400,5,5]
[null,5,500,5,5]
[null,6,600,5,5]
[null,7,700,5,5]
[null,8]
[null,9,900,5,5]

{"sheet":"Export","index":7,"n_rows":9,"n_cols":6,"rows_kept":9,"cut":false,"hidden":false,"merged":[]}
["EXPORTACIONES"]
[null,"FECHA DE EMBARQUE","NUMERO DE DAM","IMPORTE DE DAM","NUMERO FACTURA","IMPORTE FACTURA"]
[null,"2015-01-01","123456789112345678",1555,12,26666]
[null,"2015-01-01","123456789112345679",1555,123,26666]
[null,"2015-01-01","123456789112345678",1555,13,26666]
[null,"2015-01-01","123456789112345679",1555,422,26666]
[null,"2015-01-01","123456789112345678",1555,134,26666]
[null,"2015-01-01","123456789112345679",1555,222,26666]
[null,"2015-01-01","123456789112345678",1555,232,26666]

{"sheet":"GR","index":8,"n_rows":4,"n_cols":4,"rows_kept":4,"cut":false,"hidden":false,"merged":[]}
["GASTOS DE REPRESENTACION"]
[null,"NUMERO DE RUC","RAZON SOCIAL","MONTO ANUAL"]
[null,"20480936125","DSV CONSTRUCTORES SAC",12345]
[null,"20535858501","TODO A UN SOLO PRECIO EIRL",2000]

{"sheet":"C-361,362,364,365,367","index":9,"n_rows":5,"n_cols":10,"rows_kept":5,"cut":false,"hidden":false,"merged":[]}
[{"$f":"CONCATENATE(\"CASILLA \", I1)","v":"CASILLA 361"},null,null,null,null,null,null,null,361,"Selecciona N° Casilla 361,362,364,365,367"]
[null,"TIPO DOCUMENTO","NUMERO DE RUC","RAZ. SOC O NOMBRE","AP. PATERNO","AP. MATERNO","NOMBRES","RAZON SOCIAL","MONTO ANUAL"]
[null,6,"20480936125",0,null,null,null,"DSV CONSTRUCTORES SAC",12345]
[null,6,"10064543801",1,"OLIVEROS","CERNA","BARTOLOME ULDARICO",null,50000]
[null,99,null,0,null,null,null,null,40000]

{"sheet":"C-404,405,407,408","index":10,"n_rows":5,"n_cols":10,"rows_kept":5,"cut":false,"hidden":false,"merged":[]}
[{"$f":"CONCATENATE(\"CASILLA \", I1)","v":"CASILLA 404"},null,null,null,null,null,null,null,404,"Selecciona N° Casilla 404,405,407,408"]
[null,"TIPO DOCUMENTO","NUMERO DE RUC","RAZ. SOC O NOMBRE","AP. PATERNO","AP. MATERNO","NOMBRES","RAZON SOCIAL","MONTO ANUAL"]
[null,6,"20480936125",0,null,null,null,"DSV CONSTRUCTORES SAC",12345]
[null,6,"10064543801",1,"OLIVEROS","CERNA","BARTOLOME ULDARICO",null,50000]
[null,99,null,0,null,null,null,null,40000]

{"sheet":"BC_PCGE","index":11,"n_rows":1296,"n_cols":18,"rows_kept":1296,"cut":false,"hidden":false,"merged":[[4,2,4,17],[5,2,5,3],[5,4,5,5],[5,6,5,7],[5,8,5,9],[5,10,5,11],[5,12,5,13],[5,14,5,15],[5,16,5,17]]}
[]
["RUC: ",{"$f":"Inicio!F8","v":"20556106909"}]
["AÑO: ",{"$f":"+Inicio!F10","v":"2015"}]
["FORM: ","0702"]
[null,null,"BALANCE DE COMPROBACIÓN 2015 - HISTÓRICO"]
[null,"BALANCE DE COMPROBACIÓN HISTÓRICO - PLAN CONTABLE GENERAL EMPRESARIAL - 2015","SALDOS INICIALES",null,"MOVIMIENTO DEL EJERCICIO",null,"SUMAS DEL MAYOR",null,"SALDOS AL 31.12.2015",null,"TRANSFERENCIAS Y CANCELACIONES",null,"AJUSTES POR ADECUACIÓN o IMPLICANCIA NIIF",null,"CUENTAS DE BALANCE",null,"RESULTADOS POR NATURALEZA"]
[null,"CUENTAS CONTABLES","DEBE","HABER","DEBE","HABER","DEBE","HABER","DEUDOR","ACREEDOR","DEBE","HABER","DEBE","HABER","ACTIVO","PASIVO","PÉRDIDAS","GANANCIAS"]
["0111","0111. Bienes en préstamo, custodia y no capitalizables - Bienes en préstamo",null,null,null,null,{"$f":"+C8+E8","v":0},0,{"$f":"IF($G8-$H8>=0,$G8-$H8,0)","v":0},{"$f":"IF($G8-$H8<0,-$G8+$H8,0)","v":0},null,null,null,null,{"$f":"IF($I8-$J8+$K8-$L8+$M8-$N8>=0,$I8-$J8+$K8-$L8+$M8-$N8,0)","v":0},{"$f":"IF($I8-$J8+$K8-$L8+$M8-$N8<0,-($I8-$J8+$K8-$L8+$M8-$N8),0)","v":0}]
["0112","0112. Bienes en préstamo, custodia y no capitalizables - Bienes en custodia",null,null,null,null,0,0,0,0,null,null,null,null,{"$f":"IF($I9-$J9+$K9-$L9+$M9-$N9>=0,$I9-$J9+$K9-$L9+$M9-$N9,0)","v":0},{"$f":"IF($I9-$J9+$K9-$L9+$M9-$N9<0,-($I9-$J9+$K9-$L9+$M9-$N9),0)","v":0}]
["0121","0121. Valores y bienes entregados en garantía - Cartas fianza",null,null,null,null,0,0,0,0,null,null,null,null,0,0]
["0122","0122. Valores y bienes entregados en garantía - Cuentas por cobrar",null,null,null,null,0,0,0,0,null,null,null,null,0,0]
["0123","0123. Valores y bienes entregados en garantía - Existencias",null,null,null,null,0,0,0,0,null,null,null,null,0,0]
["0124","0124. Valores y bienes entregados en garantía - Inversión mobiliaria",null,null,null,null,0,0,0,0,null,null,null,null,0,0]
["0125","0125. Valores y bienes entregados en garantía - Inversión inmobiliaria",null,null,null,null,0,0,0,0,null,null,null,null,0,0]
["0126","0126. Valores y bienes entregados en garantía - Inmuebles, maquinaria y equipo",null,null,null,null,0,0,0,0,null,null,null,null,0,0]
["0127","0127. Valores y bienes entregados en garantía - Intangibles",null,null,null,null,0,0,0,0,null,null,null,null,0,0]
["0128","0128. Valores y bienes entregados en garantía - Activos biológicos",null,null,null,null,0,0,0,0,null,null,null,null,0,0]
["013","013. Activos realizables entregados en consignación",null,null,null,null,0,0,0,0,null,null,null,null,0,0]
["0211","0211. Primarios - Inversiones mantenidas para negociación",null,null,null,null,0,0,0,0,null,null,null,null,0,0]
["0212","0212. Primarios - Inversiones disponibles para la venta",null,null,null,null,0,0,0,0,null,null,null,null,0,0]
["0213","0213. Primarios - Inversiones a ser mantenidas hasta el vencimiento",null,null,null,null,0,0,0,0,null,null,null,null,0,0]
["0221","0221. Derivados - Contratos a futuro",null,null,null,null,0,0,0,0,null,null,null,null,0,0]
["0222","0222. Derivados - Contratos a término (forward)",null,null,null,null,0,0,0,0,null,null,null,null,0,0]
["0223","0223. Derivados - Permutas financieras (swap)",null,null,null,null,0,0,0,0,null,null,null,null,0,0]
["0224","0224. Derivados - Contratos de opción",null,null,null,null,0,0,0,0,null,null,null,null,0,0]
["0311","0311. Contratos aprobados - Contratos en ejecución",null,null,null,null,0,0,0,0,null,null,null,null,0,0]
["0312","0312. Contratos aprobados - Contratos en trámite",null,null,null,null,0,0,0,0,null,null,null,null,0,0]
["0321","0321. Bienes dados de baja - Suministros",null,null,null,null,0,0,0,0,null,null,null,null,0,0]
["0322","0322. Bienes dados de baja - Inmuebles, maquinaria y equipo",null,null,null,null,0,0,0,0,null,null,null,null,0,0]
["039","039. Diversas",null,null,null,null,0,0,0,0,null,null,null,null,0,0]
["04","04. Deudoras por contra",null,null,null,null,0,0,0,0,null,null,null,null,0,0]
["0611","0611. Bienes recibidos en préstamo y custodia - Bienes recibidos en préstamo",null,null,null,null,0,0,0,0,null,null,null,null,0,0]
["0612","0612. Bienes recibidos en préstamo y custodia - Bienes recibidos en custodia",null,null,null,null,0,0,0,0,null,null,null,null,0,0]
["0621","0621. Valores y bienes recibidos en garantía - Cartas fianza",null,null,null,null,0,0,0,0,null,null,null,null,0,0]
["0622","0622. Valores y bienes recibidos en garantía - Cuentas por cobrar",null,null,null,null,0,0,0,0,null,null,null,null,0,0]
["0623","0623. Valores y bienes recibidos en garantía - Existencias",null,null,null,null,0,0,0,0,null,null,null,null,0,0]
["0624","0624. Valores y bienes recibidos en garantía - Inversión mobiliaria",null,null,null,null,0,0,0,0,null,null,null,null,0,0]
["0625","0625. Valores y bienes recibidos en garantía - Inversión inmobiliaria",null,null,null,null,0,0,0,0,null,null,null,null,0,0]
["0626","0626. Valores y bienes recibidos en garantía - Inmuebles, maquinaria y equipo",null,null,null,null,0,0,0,0,null,null,null,null,0,0]
["0627","0627. Valores y bienes recibidos en garantía - Intangibles",null,null,null,null,0,0,0,0,null,null,null,null,0,0]
["0628","0628. Valores y bienes recibidos en garantía - Activos biológicos",null,null,null,null,0,0,0,0,null,null,null,null,0,0]
["063","063. Activos realizables recibidos en consignación",null,null,null,null,0,0,0,0,null,null,null,null,0,0]
["0711","0711. Primarios - Inversiones mantenidas para negociación",null,null,null,null,0,0,0,0,null,null,null,null,0,0]
["0712","0712. Primarios - Inversiones disponibles para la venta",null,null,null,null,{"$f":"+C44+E44","v":0},0,0,0,null,null,null,null,0,0]
["0713","0713. Primarios - Inversiones a ser mantenidas hasta el vencimiento",null,null,null,null,0,0,0,0,null,null,null,null,0,0]
["0721","0721. Derivados - Contratos a futuro",null,null,null,null,0,0,0,0,null,null,null,null,0,0]
["0722","0722. Derivados - Contratos a término (forward)",null,null,null,null,0,0,0,0,null,null,null,null,0,0]
["0723","0723. Derivados - Permutas financieras (swap)",null,null,null,null,0,0,0,0,null,null,null,null,0,0]
["0724","0724. Derivados - Contratos de opción",null,null,null,null,0,0,0,0,null,null,null,null,0,0]
["089","089. Diversas",null,null,null,null,0,0,0,0,null,null,null,null,0,0]
["09","09. Acreedoras por contra",null,null,null,null,0,0,0,0,null,null,null,null,0,0]
["101","101. Caja",null,null,null,null,0,0,0,0,null,null,null,null,0,0]
["102","102. Fondos fijos",null,null,null,null,0,0,0,0,null,null,null,null,0,0]
["103","103. Efectivo en tránsito",null,null,null,null,0,0,0,0,null,null,null,null,0,0]
["1041","1041. Cuentas corrientes en instituciones financieras - Cuentas corrientes operativas",null,null,null,null,0,0,0,0,null,null,null,null,0,0]
["1042","1042. Cuentas corrientes en instituciones financieras - Cuentas corrientes para fines específicos",null,null,null,null,0,0,0,0,null,null,null,null,0,0]
["1051","1051. Otros equivalentes de efectivo - Otros equivalentes de efectivo",null,null,null,null,0,0,0,0,null,null,null,null,0,0]
["1061","1061. Depósitos en instituciones financieras - Depósitos de ahorro",null,null,null,null,0,0,0,0,null,null,null,null,0,0]
["1062","1062. Depósitos en instituciones financieras - Depósitos a plazo",null,null,null,null,0,0,0,0,null,null,null,null,0,0]
["1071","1071. Fondos sujetos a restricción - Fondos Sujetos a Restricción",null,null,null,null,{"$f":"+C60+E60","v":0},0,0,0,null,null,null,null,0,0]
["11111","11111. Inversiones mantenidas para negociación - Valores emitidos o garantizados por el Estado - Costo",null,null,null,null,0,0,0,0,null,null,null,null,0,0]
["11112","11112. Inversiones mantenidas para negociación - Valores emitidos o garantizados por el Estado - Valor Razonable",null,null,null,null,0,0,0,0,null,null,null,null,0,0]
["11121","11121. Inversiones mantenidas para negociación - Valores emitidos por el sistema financiero - Costo",null,null,null,null,0,0,0,0,null,null,null,null,0,0]
["11122","11122. Inversiones mantenidas para negociación - Valores emitidos por el sistema financiero - Valor Razonable",null,null,null,null,0,0,0,0,null,null,null,null,0,0]
["11131","11131. Inversiones mantenidas para negociación - Valores emitidos por empresa - Costo",null,null,null,null,0,0,0,0,null,null,null,null,0,0]
["11132","11132. Inversiones mantenidas para negociación - Valores emitidos por empresa - Valor Razonable",null,null,null,null,0,0,0,0,null,null,null,null,0,0]
["11141","11141. Inversiones mantenidas para negociación - Otros títulos representativos de deuda - Costo",null,null,null,null,0,0,0,0,null,null,null,null,0,0]
["11142","11142. Inversiones mantenidas para negociación - Otros títulos representativos de deuda - Valor Razonable",null,null,null,null,0,0,0,0,null,null,null,null,0,0]
["11151","11151. Inversiones mantenidas para negociación - Participaciones en entidades - Costo",null,null,null,null,0,0,0,0,null,null,null,null,0,0]
["11152","11152. Inversiones mantenidas para negociación - Participaciones en entidades - Valor Razonable",null,null,null,null,0,0,0,0,null,null,null,null,0,0]
["11211","11211. Inversiones disponibles para la venta - Valores emitidos o garantizados por el Estado - Costo",null,null,null,null,0,0,0,0,null,null,null,null,0,0]
["11212","11212. Inversiones disponibles para la venta - Valores emitidos o garantizados por el Estado - Valor Razonable",null,null,null,null,0,0,{"$f":"IF($G72-$H72>=0,$G72-$H72,0)","v":0},{"$f":"IF($G72-$H72<0,-$G72+$H72,0)","v":0},null,null,null,null,0,0]
["11221","11221. Inversiones disponibles para la venta - Valores emitidos por el sistema financiero - Costo",null,null,null,null,0,0,0,0,null,null,null,null,{"$f":"IF($I73-$J73+$K73-$L73+$M73-$N73>=0,$I73-$J73+$K73-$L73+$M73-$N73,0)","v":0},{"$f":"IF($I73-$J73+$K73-$L73+$M73-$N73<0,-($I73-$J73+$K73-$L73+$M73-$N73),0)","v":0}]
["11222","11222. Inversiones disponibles para la venta - Valores emitidos por el sistema financiero - Valor Razonable",null,null,null,null,0,0,0,0,null,null,null,null,0,0]
["11231","11231. Inversiones disponibles para la venta - Valores emitidos por empresas - Costo",null,null,null,null,0,0,0,0,null,null,null,null,0,0]
["11232","11232. Inversiones disponibles para la venta - Valores emitidos por empresas - Valor Razonable",null,null,null,null,0,0,0,0,null,null,null,null,0,0]
["11241","11241. Inversiones disponibles para la venta - Otros títulos representativos de deuda - Costo",null,null,null,null,0,0,0,0,null,null,null,null,0,0]
["11242","11242. Inversiones disponibles para la venta - Otros títulos representativos de deuda - Valor Razonable",null,null,null,null,0,0,0,0,null,null,null,null,0,0]
["11311","11311. Activos financieros – Acuerdo de compra - Inversiones mantenidas para negociación – Acuerdo de compra - Costo",null,null,null,null,0,0,0,0,null,null,null,null,0,0]
["11312","11312. Activos financieros – Acuerdo de compra - Inversiones mantenidas para negociación – Acuerdo de compra - Valor Razonable",null,null,null,null,0,0,0,0,null,null,null,null,0,0]
["11321","11321. Activos financieros – Acuerdo de compra - Inversiones disponibles para la venta – Acuerdo de compra - Costo",null,null,null,null,0,0,0,0,null,null,null,null,0,0]
["11322","11322. Activos financieros – Acuerdo de compra - Inversiones disponibles para la venta – Acuerdo de compra - Valor Razonable",null,null,null,null,0,0,0,0,null,null,null,null,0,0]
["1211","1211. Facturas, boletas y otros comprobantes por cobrar - No emitidas",null,null,null,null,0,0,0,0,null,null,null,null,0,0]
["1212","1212. Facturas, boletas y otros comprobantes por cobrar - Emitidas en cartera",null,null,null,null,0,0,0,0,null,null,null,null,0,0]
["1213","1213. Facturas, boletas y otros comprobantes por cobrar - En cobranza",null,null,null,null,0,0,0,0,null,null,null,null,0,0]
["1214","1214. Facturas, boletas y otros comprobantes por cobrar - En descuento",null,null,null,null,0,0,0,0,null,null,null,null,0,0]
["122","122. Anticipos de clientes",null,null,null,null,0,0,0,0,null,null,null,null,0,0]
["1231","1231. Letras por cobrar - En cartera",null,null,null,null,0,0,0,0,null,null,null,null,0,0]
["1232","1232. Letras por cobrar - En cobranza",null,null,null,null,0,0,0,0,null,null,null,null,0,0]
["1233","1233. Letras por cobrar - En descuento",null,null,null,null,0,0,0,0,null,null,null,null,0,0]
["13111","13111. Facturas, boletas y otros comprobantes por cobrar - No emitidas - Matriz",null,null,null,null,0,0,0,0,null,null,null,null,0,0]
["13112","13112. Facturas, boletas y otros comprobantes por cobrar - No emitidas - Subsidiarias",null,null,null,null,0,0,0,0,null,null,null,null,0,0]
["13113","13113. Facturas, boletas y otros comprobantes por cobrar - No emitidas - Asociadas",null,null,null,null,0,0,0,0,null,null,null,null,0,0]
["13114","13114. Facturas, boletas y otros comprobantes por cobrar - No emitidas - Sucursales",null,null,null,null,0,0,0,0,null,null,null,null,0,0]
["13115","13115. Facturas, boletas y otros comprobantes por cobrar - No emitidas - Otros",null,null,null,null,0,0,0,0,null,null,null,null,0,0]
["13121","13121. Facturas, boletas y otros comprobantes por cobrar - Emitidas en cartera - Matriz",null,null,null,null,0,0,0,0,null,null,null,null,0,0]
["13122","13122. Facturas, boletas y otros comprobantes por cobrar - Emitidas en cartera - Subsidiarias",null,null,null,null,0,0,0,0,null,null,null,null,0,0]
["13123","13123. Facturas, boletas y otros comprobantes por cobrar - Emitidas en cartera - Asociadas",null,null,null,null,0,0,0,0,null,null,null,null,0,0]
["13124","13124. Facturas, boletas y otros comprobantes por cobrar - Emitidas en cartera - Sucursales",null,null,null,null,0,0,0,0,null,null,null,null,0,0]
["13125","13125. Facturas, boletas y otros comprobantes por cobrar - Emitidas en cartera - Otros",null,null,null,null,0,0,0,0,null,null,null,null,0,0]
["13131","13131. Facturas, boletas y otros comprobantes por cobrar - En cobranza - Matriz",null,null,null,null,0,0,0,0,null,null,null,null,0,0]
["13132","13132. Facturas, boletas y otros comprobantes por cobrar - En cobranza - Subsidiarias",null,null,null,null,0,0,0,0,null,null,null,null,0,0]
["13133","13133. Facturas, boletas y otros comprobantes por cobrar - En cobranza - Asociadas",null,null,null,null,0,0,0,0,null,null,null,null,0,0]
["13134","13134. Facturas, boletas y otros comprobantes por cobrar - En cobranza - Sucursales",null,null,null,null,0,0,0,0,null,null,null,null,0,0]
["13135","13135. Facturas, boletas y otros comprobantes por cobrar - En cobranza - Otros",null,null,null,null,0,0,0,0,null,null,null,null,0,0]
["13141","13141. Facturas, boletas y otros comprobantes por cobrar - En descuento - Matriz",null,null,null,null,0,0,0,0,null,null,null,null,0,0]
["13142","13142. Facturas, boletas y otros comprobantes por cobrar - En descuento - Subsidiarias",null,null,null,null,0,0,0,0,null,null,null,null,0,0]
["13143","13143. Facturas, boletas y otros comprobantes por cobrar - En descuento - Asociadas",null,null,null,null,0,0,0,0,null,null,null,null,0,0]
["13144","13144. Facturas, boletas y otros comprobantes por cobrar - En descuento - Sucursales",null,null,null,null,0,0,0,0,null,null,null,null,0,0]
["13145","13145. Facturas, boletas y otros comprobantes por cobrar - En descuento - Otros",null,null,null,null,0,0,0,0,null,null,null,null,0,0]
["13211","13211. Anticipos recibidos - Anticipos recibidos - Matriz",null,null,null,null,0,0,0,0,null,null,null,null,0,0]
["13212","13212. Anticipos recibidos - Anticipos recibidos - Subsidiarias",null,null,null,null,0,0,0,0,null,null,null,null,0,0]
["13213","13213. Anticipos recibidos - Anticipos recibidos - Asociadas",null,null,null,null,0,0,0,0,null,null,null,null,0,0]
["13214","13214. Anticipos recibidos - Anticipos recibidos - Sucursales",null,null,null,null,0,0,0,0,null,null,null,null,0,0]
["13215","13215. Anticipos recibidos - Anticipos recibidos - Otros",null,null,null,null,0,0,0,0,null,null,null,null,0,0]
["13311","13311. Letras por cobrar - En cartera - Matriz",null,null,null,null,0,0,0,0,null,null,null,null,0,0]
["13312","13312. Letras por cobrar - En cartera - Subsidiarias",null,null,null,null,0,0,0,0,null,null,null,null,0,0]
["13313","13313. Letras por cobrar - En cartera - Asociadas",null,null,null,null,{"$f":"+C118+E118","v":0},0,0,0,null,null,null,null,0,0]
["13314","13314. Letras por cobrar - En cartera - Sucursales",null,null,null,null,0,0,0,0,null,null,null,null,0,0]
["13315","13315. Letras por cobrar - En cartera - Otros",null,null,null,null,0,0,0,0,null,null,null,null,0,0]
["13321","13321. Letras por cobrar - En cobranza - Matriz",null,null,null,null,0,0,0,0,null,null,null,null,0,0]
["13322","13322. Letras por cobrar - En cobranza - Subsidiarias",null,null,null,null,0,0,0,0,null,null,null,null,0,0]
["13323","13323. Letras por cobrar - En cobranza - Asociadas",null,null,null,null,0,0,0,0,null,null,null,null,0,0]
["13324","13324. Letras por cobrar - En cobranza - Sucursales",null,null,null,null,0,0,0,0,null,null,null,null,0,0]
["13325","13325. Letras por cobrar - En cobranza - Otros",null,null,null,null,0,0,0,0,null,null,null,null,0,0]
["13331","13331. Letras por cobrar - En descuento - Matriz",null,null,null,null,0,0,0,0,null,null,null,null,0,0]
["13332","13332. Letras por cobrar - En descuento - Subsidiarias",null,null,null,null,0,0,0,0,null,null,null,null,0,0]
["13333","13333. Letras por cobrar - En descuento - Asociadas",null,null,null,null,0,0,0,0,null,null,null,null,0,0]
["13334","13334. Letras por cobrar - En descuento - Sucursales",null,null,null,null,0,0,0,0,null,null,null,null,0,0]
["13335","13335. Letras por cobrar - En descuento - Otros",null,null,null,null,0,0,0,0,null,null,null,null,0,0]
["1411","1411. Personal - Préstamos",null,null,null,null,0,0,0,0,null,null,null,null,0,0]
["1412","1412. Personal - Adelanto de remuneraciones",null,null,null,null,0,0,0,0,null,null,null,null,0,0]
["1413","1413. Personal - Entregas a rendir cuenta",null,null,null,null,0,0,0,0,null,null,null,null,0,0]
["1419","1419. Personal - Otras cuentas por cobrar al personal",null,null,null,null,0,0,0,0,null,null,null,null,0,0]
["1421","1421. Accionistas (o socios) - Suscripciones por cobrar a socios o accionistas",null,null,null,null,0,0,0,0,null,null,null,null,0,0]
["1422","1422. Accionistas (o socios) - Préstamos",null,null,null,null,0,0,{"$f":"IF($G136-$H136>=0,$G136-$H136,0)","v":0},{"$f":"IF($G136-$H136<0,-$G136+$H136,0)","v":0},null,null,null,null,0,0]
["1431","1431. Directores - Préstamos",null,null,null,null,0,0,0,0,null,null,null,null,{"$f":"IF($I137-$J137+$K137-$L137+$M137-$N137>=0,$I137-$J137+$K137-$L137+$M137-$N137,0)","v":0},{"$f":"IF($I137-$J137+$K137-$L137+$M137-$N137<0,-($I137-$J137+$K137-$L137+$M137-$N137),0)","v":0}]
["1432","1432. Directores - Adelanto de dietas",null,null,null,null,0,0,0,0,null,null,null,null,0,0]
["1433","1433. Directores - Entregas a rendir cuenta",null,null,null,null,0,0,0,0,null,null,null,null,0,0]
["1441","1441. Gerentes - Préstamos",null,null,null,null,0,0,0,0,null,null,null,null,0,0]
["1442","1442. Gerentes - Adelanto de remuneraciones",null,null,null,null,0,0,0,0,null,null,null,null,0,0]
["1443","1443. Gerentes - Entregas a rendir cuenta",null,null,null,null,0,0,0,0,null,null,null,null,0,0]
["148","148. Diversas",null,null,null,null,0,0,0,0,null,null,null,null,0,0]
["1611","1611. Préstamos - Con garantía",null,null,null,null,0,0,0,0,null,null,null,null,0,0]
["1612","1612. Préstamos - Sin garantía",null,null,null,null,0,0,0,0,null,null,null,null,0,0]
["1621","1621. Reclamaciones a terceros - Compañías aseguradoras",null,null,null,null,0,0,0,0,null,null,null,null,0,0]
["1622","1622. Reclamaciones a terceros - Transportadoras",null,null,null,null,0,0,0,0,null,null,null,null,0,0]
["1623","1623. Reclamaciones a terceros - Servicios públicos",null,null,null,null,0,0,0,0,null,null,null,null,0,0]
["1624","1624. Reclamaciones a terceros - Tributos",null,null,null,null,0,0,0,0,null,null,null,null,0,0]
["1629","1629. Reclamaciones a terceros - Otras",null,null,null,null,0,0,0,0,null,null,null,null,0,0]
["1631","1631. Intereses, regalías y dividendos - Intereses",null,null,null,null,0,0,0,0,null,null,null,null,0,0]
["1632","1632. Intereses, regalías y dividendos - Regalías",null,null,null,null,0,0,0,0,null,null,null,null,0,0]
["1633","1633. Intereses, regalías y dividendos - Dividendos",null,null,null,null,0,0,0,0,null,null,null,null,0,0]
["1641","1641. Depósitos otorgados en garantía - Préstamos de instituciones financieras",null,null,null,null,0,0,0,0,null,null,null,null,0,0]
["1642","1642. Depósitos otorgados en garantía - Préstamos de instituciones no financieras",null,null,null,null,0,0,0,0,null,null,null,null,0,0]
["1644","1644. Depósitos otorgados en garantía - Depósitos en garantía por alquileres",null,null,null,null,0,0,0,0,null,null,null,null,0,0]
["1649","1649. Depósitos otorgados en garantía - Otros depósitos en garantía",null,null,null,null,0,0,0,0,null,null,null,null,0,0]
["1651","1651. Venta de activo inmovilizado - Inversión mobiliaria",null,null,null,null,0,0,0,0,null,null,null,null,0,0]
["1652","1652. Venta de activo inmovilizado - Inversión inmobiliaria",null,null,null,null,0,0,0,0,null,null,null,null,0,0]
["1653","1653. Venta de activo inmovilizado - Inmuebles, maquinaria y equipo",null,null,null,null,0,0,0,0,null,null,null,null,0,0]
["1654","1654. Venta de activo inmovilizado - Intangibles",null,null,null,null,0,0,0,0,null,null,null,null,0,0]
["1655","1655. Venta de activo inmovilizado - Activos biológicos",null,null,null,null,0,0,0,0,null,null,null,null,0,0]
["1661","1661. Activos por instrumentos financieros - Instrumentos financieros primarios",null,null,null,null,0,0,0,0,null,null,null,null,0,0]
["16621","16621. Activos por instrumentos financieros - Instrumentos financieros derivados - Cartera de negociación",null,null,null,null,0,0,0,0,null,null,null,null,0,0]
["16622","16622. Activos por instrumentos financieros - Instrumentos financieros derivados - Instrumentos de cobertura",null,null,null,null,0,0,0,0,null,null,null,null,0,0]
["1681","1681. Otras cuentas por cobrar diversas - Entregas a rendir cuenta a terceros",null,null,null,null,0,0,0,0,null,null,null,null,0,0]
["1682","1682. Otras cuentas por cobrar diversas - Otras cuentas por cobrar diversas",null,null,null,null,0,0,0,0,null,null,null,null,0,0]
["17111","17111. Préstamos - Con garantía - Matriz",null,null,null,null,0,0,0,0,null,null,null,null,0,0]
["17112","17112. Préstamos - Con garantía - Subsidiarias",null,null,null,null,0,0,0,0,null,null,null,null,0,0]
["17113","17113. Préstamos - Con garantía - Asociadas",null,null,null,null,0,0,0,0,null,null,null,null,0,0]
["17114","17114. Préstamos - Con garantía - Sucursales",null,null,null,null,0,0,0,0,null,null,null,null,0,0]
["17115","17115. Préstamos - Con garantía - Otros",null,null,null,null,0,0,0,0,null,null,null,null,0,0]
["17121","17121. Préstamos - Sin garantía - Matriz",null,null,null,null,0,0,0,0,null,null,null,null,0,0]
["17122","17122. Préstamos - Sin garantía - Subsidiarias",null,null,null,null,0,0,0,0,null,null,null,null,0,0]
["17123","17123. Préstamos - Sin garantía - Asociadas",null,null,null,null,0,0,0,0,null,null,null,null,0,0]
["17124","17124. Préstamos - Sin garantía - Sucursales",null,null,null,null,0,0,0,0,null,null,null,null,0,0]
["17125","17125. Préstamos - Sin garantía - Otros",null,null,null,null,0,0,0,0,null,null,null,null,0,0]
["17311","17311. Intereses, regalías y dividendos - Intereses - Matriz",null,null,null,null,0,0,0,0,null,null,null,null,0,0]
["17312","17312. Intereses, regalías y dividendos - Intereses - Subsidiarias",null,null,null,null,0,0,0,0,null,null,null,null,0,0]
["17313","17313. Intereses, regalías y dividendos - Intereses - Asociadas",null,null,null,null,0,0,0,0,null,null,null,null,0,0]
["17314","17314. Intereses, regalías y dividendos - Intereses - Sucursales",null,null,null,null,0,0,0,0,null,null,null,null,0,0]
["17315","17315. Intereses, regalías y dividendos - Intereses - Otros",null,null,null,null,{"$f":"+C182+E182","v":0},0,0,0,null,null,null,null,0,0]
["17321","17321. Intereses, regalías y dividendos - Regalías - Matriz",null,null,null,null,0,0,0,0,null,null,null,null,0,0]
["17322","17322. Intereses, regalías y dividendos - Regalías - Subsidiarias",null,null,null,null,0,0,0,0,null,null,null,null,0,0]
["17323","17323. Intereses, regalías y dividendos - Regalías - Asociadas",null,null,null,null,0,0,0,0,null,null,null,null,0,0]
["17324","17324. Intereses, regalías y dividendos - Regalías - Sucursales",null,null,null,null,0,0,0,0,null,null,null,null,0,0]
["17325","17325. Intereses, regalías y dividendos - Regalías - Otros",null,null,null,null,0,0,0,0,null,null,null,null,0,0]
["17331","17331. Intereses, regalías y dividendos - Dividendos - Matriz",null,null,null,null,0,0,0,0,null,null,null,null,0,0]
["17332","17332. Intereses, regalías y dividendos - Dividendos - Subsidiarias",null,null,null,null,0,0,0,0,null,null,null,null,0,0]
["17333","17333. Intereses, regalías y dividendos - Dividendos - Asociadas",null,null,null,null,0,0,0,0,null,null,null,null,0,0]
["17334","17334. Intereses, regalías y dividendos - Dividendos - Otros",null,null,null,null,0,0,0,0,null,null,null,null,0,0]
["174","174. Depósitos otorgados en garantía",null,null,null,null,0,0,0,0,null,null,null,null,0,0]
["1751","1751. Venta de activo inmovilizado - Inversión mobiliaria",null,null,null,null,0,0,0,0,null,null,null,null,0,0]
["1752","1752. Venta de activo inmovilizado - Inversión inmobiliaria",null,null,null,null,0,0,0,0,null,null,null,null,0,0]
["1753","1753. Venta de activo inmovilizado - Inmuebles, maquinaria y equipo",null,null,null,null,0,0,0,0,null,null,null,null,0,0]
["1754","1754. Venta de activo inmovilizado - Intangibles",null,null,null,null,0,0,0,0,null,null,null,null,0,0]
["1755","1755. Venta de activo inmovilizado - Activos biológicos",null,null,null,null,0,0,0,0,null,null,null,null,0,0]
["176","176. Activos por instrumentos financieros",null,null,null,null,0,0,0,0,null,null,null,null,0,0]
["178","178. Otras cuentas por cobrar diversas",null,null,null,null,0,0,0,0,null,null,null,null,0,0]
["181","181. Costos financieros",null,null,null,null,0,0,{"$f":"IF($G200-$H200>=0,$G200-$H200,0)","v":0},{"$f":"IF($G200-$H200<0,-$G200+$H200,0)","v":0},null,null,null,null,0,0]
["182","182. Seguros",null,null,null,null,0,0,0,0,null,null,null,null,{"$f":"IF($I201-$J201+$K201-$L201+$M201-$N201>=0,$I201-$J201+$K201-$L201+$M201-$N201,0)","v":0},{"$f":"IF($I201-$J201+$K201-$L201+$M201-$N201<0,-($I201-$J201+$K201-$L201+$M201-$N201),0)","v":0}]
["183","183. Alquileres",null,null,null,null,0,0,0,0,null,null,null,null,0,0]
["184","184. Primas pagadas por opciones",null,null,null,null,0,0,0,0,null,null,null,null,0,0]
["185","185. Mantenimiento de activos inmovilizados",null,null,null,null,0,0,0,0,null,null,null,null,0,0]
["189","189. Otros gastos contratados por anticipado",null,null,null,null,0,0,0,0,null,null,null,null,0,0]
["1911","1911. Cuentas por cobrar comerciales – Terceros - Facturas, boletas y otros comprobantes por cobrar",null,null,null,null,0,0,0,0,null,null,null,null,0,0]
[1913,"1913. Cuentas por cobrar comerciales – Terceros - Letras por cobrar",null,null,null,null,0,0,0,0,null,null,null,null,0,0]
["1921","1921. Cuentas por cobrar comerciales – Relacionadas - Facturas, boletas y otros comprobantes por cobrar",null,null,null,null,0,0,0,0,null,null,null,null,0,0]
["1922","1922. Cuentas por cobrar comerciales – Relacionadas - Letras por cobrar",null,null,null,null,0,0,0,0,null,null,null,null,0,0]
["1931","1931. Cuentas por cobrar al personal, a los accionistas (socios), directores y gerentes - Personal",null,null,null,null,0,0,0,0,null,null,null,null,0,0]
["1932","1932. Cuentas por cobrar al personal, a los accionistas (socios), directores y gerentes - Accionistas (o socios)",null,null,null,null,0,0,0,0,null,null,null,null,0,0]
["1933","1933. Cuentas por cobrar al personal, a los accionistas (socios), directores y gerentes - Directores",null,null,null,null,0,0,0,0,null,null,null,null,0,0]
["1934","1934. Cuentas por cobrar al personal, a los accionistas (socios), directores y gerentes - Gerentes",null,null,null,null,0,0,0,0,null,null,null,null,0,0]
["1938","1938. Cuentas por cobrar al personal, a los accionistas (socios), directores y gerentes - Diversas",null,null,null,null,0,0,0,0,null,null,null,null,0,0]
["1941","1941. Cuentas por cobrar diversas – Terceros - Préstamos",null,null,null,null,0,0,0,0,null,null,null,null,0,0]
["1942","1942. Cuentas por cobrar diversas – Terceros - Reclamaciones a terceros",null,null,null,null,0,0,0,0,null,null,null,null,0,0]
["1943","1943. Cuentas por cobrar diversas – Terceros - Intereses, regalías y dividendos",null,null,null,null,0,0,0,0,null,null,null,null,0,0]
["1944","1944. Cuentas por cobrar diversas – Terceros - Depósitos otorgados en garantía",null,null,null,null,0,0,0,0,null,null,null,null,0,0]
["1945","1945. Cuentas por cobrar diversas – Terceros - Venta de activo inmovilizado",null,null,null,null,0,0,0,0,null,null,null,null,0,0]
["1946","1946. Cuentas por cobrar diversas – Terceros - Activos por instrumentos financieros",null,null,null,null,0,0,0,0,null,null,null,null,0,0]
["1949","1949. Cuentas por cobrar diversas – Terceros - Otras cuentas por cobrar diversas",null,null,null,null,0,0,0,0,null,null,null,null,0,0]
["1951","1951. Cuentas por cobrar diversas – Relacionadas - Préstamos",null,null,null,null,0,0,0,0,null,null,null,null,0,0]
["1953","1953. Cuentas por cobrar diversas – Relacionadas - Intereses, regalías y dividendos",null,null,null,null,0,0,0,0,null,null,null,null,0,0]
["1954","1954. Cuentas por cobrar diversas – Relacionadas - Depósitos otorgados en garantía",null,null,null,null,0,0,0,0,null,null,null,null,0,0]
["1955","1955. Cuentas por cobrar diversas – Relacionadas - Venta de activo inmovilizado",null,null,null,null,0,0,0,0,null,null,null,null,0,0]
["1956","1956. Cuentas por cobrar diversas – Relacionadas - Activos por instrumentos financieros",null,null,null,null,0,0,0,0,null,null,null,null,0,0]
["1958","1958. Cuentas por cobrar diversas – Relacionadas - Otras cuentas por cobrar diversas",null,null,null,null,0,0,0,0,null,null,null,null,0,0]
["20111","20111. Mercaderías manufacturadas - Mercaderías manufacturadas - Costo",null,null,null,null,0,0,0,0,null,null,null,null,0,0]
["20112","20112. Mercaderías manufacturadas - Mercaderías manufacturadas - Valor razonable",null,null,null,null,0,0,0,0,null,null,null,null,0,0]
["202","202. Mercaderías de extracción",null,null,null,null,0,0,0,0,null,null,null,null,0,0]
["2031","2031. Mercaderías agropecuarias y piscícolas - De origen animal",null,null,null,null,0,0,0,0,null,null,null,null,0,0]
["2032","2032. Mercaderías agropecuarias y piscícolas - De origen vegetal",null,null,null,null,0,0,0,0,null,null,null,null,0,0]
["204","204. Mercaderías inmuebles",null,null,null,null,0,0,0,0,null,null,null,null,0,0]
["208","208. Otras mercaderías",null,null,null,null,0,0,0,0,null,null,null,null,0,0]
["211","211. Productos manufacturados",null,null,null,null,0,0,0,0,null,null,null,null,0,0]
["212","212. Productos de extracción terminados",null,null,null,null,0,0,0,0,null,null,null,null,0,0]
["21311","21311. Productos agropecuarios y piscícolas terminados - De origen animal - Costo",null,null,null,null,0,0,0,0,null,null,null,null,0,0]
["21312","21312. Productos agropecuarios y piscícolas terminados - De origen animal - Valor razonable",null,null,null,null,0,0,0,0,null,null,null,null,0,0]
["21321","21321. Productos agropecuarios y piscícolas terminados - De origen vegetal - Costo",null,null,null,null,0,0,0,0,null,null,null,null,0,0]
["21322","21322. Productos agropecuarios y piscícolas terminados - De origen vegetal - Valor razonable",null,null,null,null,0,0,0,0,null,null,null,null,0,0]
["214","214. Productos inmuebles",null,null,null,null,0,0,0,0,null,null,null,null,0,0]
["215","215. Existencias de servicios terminados",null,null,null,null,0,0,0,0,null,null,null,null,0,0]
["217","217. Otros productos terminados",null,null,null,null,0,0,0,0,null,null,null,null,0,0]
["218","218. Costos de financiación – Productos terminados",null,null,null,null,0,0,0,0,null,null,null,null,0,0]
["221","221. Subproductos",null,null,null,null,0,0,0,0,null,null,null,null,0,0]
["222","222. Desechos y desperdicios",null,null,null,null,{"$f":"+C246+E246","v":0},0,0,0,null,null,null,null,0,0]
["231","231. Productos en proceso de manufactura",null,null,null,null,0,0,0,0,null,null,null,null,0,0]
["232","232. Productos extraídos en proceso de transformación",null,null,null,null,0,0,0,0,null,null,null,null,0,0]
["23311","23311. Productos agropecuarios y piscícolas en proceso - De origen animal - Costo",null,null,null,null,0,0,0,0,null,null,null,null,0,0]
["23312","23312. Productos agropecuarios y piscícolas en proceso - De origen animal - Valor razonable",null,null,null,null,0,0,0,0,null,null,null,null,0,0]
["23321","23321. Productos agropecuarios y piscícolas en proceso - De origen vegetal - Costo",null,null,null,null,0,0,0,0,null,null,null,null,0,0]
["23322","23322. Productos agropecuarios y piscícolas en proceso - De origen vegetal - Valor razonable",null,null,null,null,0,0,0,0,null,null,null,null,0,0]
["234","234. Productos inmuebles en proceso",null,null,null,null,0,0,0,0,null,null,null,null,0,0]
["235","235. Existencias de servicios en proceso",null,null,null,null,0,0,0,0,null,null,null,null,0,0]
["237","237. Otros productos en proceso",null,null,null,null,0,0,0,0,null,null,null,null,0,0]
["238","238. Costos de financiación – Productos en proceso",null,null,null,null,0,0,0,0,null,null,null,null,0,0]
["241","241. Materias primas para productos manufacturados",null,null,null,null,0,0,0,0,null,null,null,null,0,0]
["242","242. Materias primas para productos de extracción",null,null,null,null,0,0,0,0,null,null,null,null,0,0]
["243","243. Materias primas para productos agropecuarios y piscícolas",null,null,null,null,0,0,0,0,null,null,null,null,0,0]
["244","244. Materias primas para productos inmuebles",null,null,null,null,0,0,0,0,null,null,null,null,0,0]
["251","251. Materiales auxiliares",null,null,null,null,0,0,0,0,null,null,null,null,0,0]
["2521","2521. Suministros - Combustibles",null,null,null,null,0,0,0,0,null,null,null,null,0,0]
["2522","2522. Suministros - Lubricantes",null,null,null,null,0,0,0,0,null,null,null,null,0,0]
["2523","2523. Suministros - Energía",null,null,null,null,0,0,{"$f":"IF($G264-$H264>=0,$G264-$H264,0)","v":0},{"$f":"IF($G264-$H264<0,-$G264+$H264,0)","v":0},null,null,null,null,0,0]
["2524","2524. Suministros - Otros suministros",null,null,null,null,0,0,0,0,null,null,null,null,{"$f":"IF($I265-$J265+$K265-$L265+$M265-$N265>=0,$I265-$J265+$K265-$L265+$M265-$N265,0)","v":0},{"$f":"IF($I265-$J265+$K265-$L265+$M265-$N265<0,-($I265-$J265+$K265-$L265+$M265-$N265),0)","v":0}]
["253","253. Repuestos",null,null,null,null,0,0,0,0,null,null,null,null,0,0]
["261","261. Envases",null,null,null,null,0,0,0,0,null,null,null,null,0,0]
["262","262. Embalajes",null,null,null,null,0,0,0,0,null,null,null,null,0,0]
["27111","27111. Inversiones inmobiliarias - Terrenos - Valor razonable",null,null,null,null,0,0,0,0,null,null,null,null,0,0]
["27112","27112. Inversiones inmobiliarias - Terrenos - Costo",null,null,null,null,0,0,0,0,null,null,null,null,0,0]
["27113","27113. Inversiones inmobiliarias - Terrenos - Revaluación",null,null,null,null,0,0,0,0,null,null,null,null,0,0]
["27121","27121. Inversiones inmobiliarias - Edificaciones - Valor razonable",null,null,null,null,0,0,0,0,null,null,null,null,0,0]
["27122","27122. Inversiones inmobiliarias - Edificaciones - Costo",null,null,null,null,0,0,0,0,null,null,null,null,0,0]
["27123","27123. Inversiones inmobiliarias - Edificaciones - Revaluación",null,null,null,null,0,0,0,0,null,null,null,null,0,0]
["27124","27124. Inversiones inmobiliarias - Edificaciones - Costos de financiación",null,null,null,null,0,0,0,0,null,null,null,null,0,0]
["27211","27211. Inmuebles, maquinaria y equipo - Terrenos - Valor razonable",null,null,null,null,0,0,0,0,null,null,null,null,0,0]
["27212","27212. Inmuebles, maquinaria y equipo - Terrenos - Costo",null,null,null,null,0,0,0,0,null,null,null,null,0,0]
["27213","27213. Inmuebles, maquinaria y equipo - Terrenos - Revaluación",null,null,null,null,0,0,0,0,null,null,null,null,0,0]
["27221","27221. Inmuebles, maquinaria y equipo - Edificaciones - Costo de adquisición o construcción",null,null,null,null,0,0,0,0,null,null,null,null,0,0]
["27222","27222. Inmuebles, maquinaria y equipo - Edificaciones - Revaluación",null,null,null,null,0,0,0,0,null,null,null,null,0,0]
["27223","27223. Inmuebles, maquinaria y equipo - Edificaciones - Costo de financiación",null,null,null,null,0,0,0,0,null,null,null,null,0,0]
["27231","27231. Inmuebles, maquinaria y equipo - Maquinarias y equipos de explotación - Costo de adquisición o construcción",null,null,null,null,0,0,0,0,null,null,null,null,0,0]
["27232","27232. Inmuebles, maquinaria y equipo - Maquinarias y equipos de explotación - Revaluación",null,null,null,null,0,0,0,0,null,null,null,null,0,0]
["27233","27233. Inmuebles, maquinaria y equipo - Maquinarias y equipos de explotación - Costo de financiación",null,null,null,null,0,0,0,0,null,null,null,null,0,0]
["27241","27241. Inmuebles, maquinaria y equipo - Equipo de transporte - Costo",null,null,null,null,0,0,0,0,null,null,null,null,0,0]
["27242","27242. Inmuebles, maquinaria y equipo - Equipo de transporte - Revaluación",null,null,null,null,0,0,0,0,null,null,null,null,0,0]
["27251","27251. Inmuebles, maquinaria y equipo - Muebles y enseres - Costo",null,null,null,null,0,0,0,0,null,null,null,null,0,0]
["27252","27252. Inmuebles, maquinaria y equipo - Muebles y enseres - Revaluación",null,null,null,null,0,0,0,0,null,null,null,null,0,0]
["27261","27261. Inmuebles, maquinaria y equipo - Equipos diversos - Costo",null,null,null,null,0,0,0,0,null,null,null,null,0,0]
["27262","27262. Inmuebles, maquinaria y equipo - Equipos diversos - Revaluación",null,null,null,null,0,0,0,0,null,null,null,null,0,0]
["27271","27271. Inmuebles, maquinaria y equipo - Herramientas y unidades de reemplazo - Costo",null,null,null,null,0,0,0,0,null,null,null,null,0,0]
["27272","27272. Inmuebles, maquinaria y equipo - Herramientas y unidades de reemplazo - Revaluación",null,null,null,null,0,0,0,0,null,null,null,null,0,0]
["27311","27311. Intangibles - Concesiones, licencias y derechos - Costo",null,null,null,null,0,0,0,0,null,null,null,null,0,0]
["27312","27312. Intangibles - Concesiones, licencias y derechos - Revaluación",null,null,null,null,0,0,0,0,null,null,null,null,0,0]
["27321","27321. Intangibles - Patentes y propiedad industrial - Costo",null,null,null,null,0,0,0,0,null,null,null,null,0,0]
["27322","27322. Intangibles - Patentes y propiedad industrial - Revaluación",null,null,null,null,0,0,0,0,null,null,null,null,0,0]
["27331","27331. Intangibles - Programas de computadora (software) - Costo",null,null,null,null,0,0,0,0,null,null,null,null,0,0]
["27332","27332. Intangibles - Programas de computadora (software) - Revaluación",null,null,null,null,0,0,0,0,null,null,null,null,0,0]
["27341","27341. Intangibles - Costos de exploración y desarrollo - Costo",null,null,null,null,0,0,0,0,null,null,null,null,0,0]
["27342","27342. Intangibles - Costos de exploración y desarrollo - Revaluación",null,null,null,null,0,0,0,0,null,null,null,null,0,0]
["27351","27351. Intangibles - Fórmulas, diseños y prototipos - Costo",null,null,null,null,0,0,0,0,null,null,null,null,0,0]
["27352","27352. Intangibles - Fórmulas, diseños y prototipos - Revaluación",null,null,null,null,0,0,0,0,null,null,null,null,0,0]
["27361","27361. Intangibles - Reservas de recursos extraíbles - Costo",null,null,null,null,0,0,0,0,null,null,null,null,0,0]
["27362","27362. Intangibles - Reservas de recursos extraíbles - Revaluación",null,null,null,null,0,0,0,0,null,null,null,null,0,0]
["27391","27391. Intangibles - Otros activos intangibles - Costo",null,null,null,null,0,0,0,0,null,null,null,null,0,0]
["27392","27392. Intangibles - Otros activos intangibles - Revaluación",null,null,null,null,0,0,0,0,null,null,null,null,0,0]
["27411","27411. Activos biológicos - Activos biológicos en producción - Valor razonable",null,null,null,null,0,0,0,0,null,null,null,null,0,0]
["27412","27412. Activos biológicos - Activos biológicos en producción - Costo",null,null,null,null,0,0,0,0,null,null,null,null,0,0]
["27413","27413. Activos biológicos - Activos biológicos en producción - Costos de financiación",null,null,null,null,0,0,0,0,null,null,null,null,0,0]
["27421","27421. Activos biológicos - Activos biológicos en desarrollo - Valor razonable",null,null,null,null,{"$f":"+C310+E310","v":0},0,0,0,null,null,null,null,0,0]
["27422","27422. Activos biológicos - Activos biológicos en desarrollo - Costo",null,null,null,null,0,0,0,0,null,null,null,null,0,0]
["27423","27423. Activos biológicos - Activos biológicos en desarrollo - Costos de financiación",null,null,null,null,0,0,0,0,null,null,null,null,0,0]
["27521","27521. Depreciación acumulada – Inversión inmobiliaria - Edificaciones - Valor razonable",null,null,null,null,0,0,0,0,null,null,null,null,0,0]
["27522","27522. Depreciación acumulada – Inversión inmobiliaria - Edificaciones - Costo",null,null,null,null,0,0,0,0,null,null,null,null,0,0]
["27523","27523. Depreciación acumulada – Inversión inmobiliaria - Edificaciones - Revaluación",null,null,null,null,0,0,0,0,null,null,null,null,0,0]
["27621","27621. Depreciación acumulada – Inmuebles, maquinaria y equipo - Edificaciones - Costo de adquisición o construcción",null,null,null,null,0,0,0,0,null,null,null,null,0,0]
["27622","27622. Depreciación acumulada – Inmuebles, maquinaria y equipo - Edificaciones - Revaluación",null,null,null,null,0,0,0,0,null,null,null,null,0,0]
["27623","27623. Depreciación acumulada – Inmuebles, maquinaria y equipo - Edificaciones - Costo de financiación",null,null,null,null,0,0,0,0,null,null,null,null,0,0]
["27631","27631. Depreciación acumulada – Inmuebles, maquinaria y equipo - Maquinarias y equipos de explotación - Costo de adquisición o construcción",null,null,null,null,0,0,0,0,null,null,null,null,0,0]
["27632","27632. Depreciación acumulada – Inmuebles, maquinaria y equipo - Maquinarias y equipos de explotación - Revaluación",null,null,null,null,0,0,0,0,null,null,null,null,0,0]
["27633","27633. Depreciación acumulada – Inmuebles, maquinaria y equipo - Maquinarias y equipos de explotación - Costo de financiación",null,null,null,null,0,0,0,0,null,null,null,null,0,0]
["27641","27641. Depreciación acumulada – Inmuebles, maquinaria y equipo - Equipo de transporte - Costo",null,null,null,null,0,0,0,0,null,null,null,null,0,0]
["27642","27642. Depreciación acumulada – Inmuebles, maquinaria y equipo - Equipo de transporte - Revaluación",null,null,null,null,0,0,0,0,null,null,null,null,0,0]
["27651","27651. Depreciación acumulada – Inmuebles, maquinaria y equipo - Muebles y enseres - Costo",null,null,null,null,0,0,0,0,null,null,null,null,0,0]
["27652","27652. Depreciación acumulada – Inmuebles, maquinaria y equipo - Muebles y enseres - Revaluación",null,null,null,null,0,0,0,0,null,null,null,null,0,0]
["27661","27661. Depreciación acumulada – Inmuebles, maquinaria y equipo - Equipos diversos - Costo",null,null,null,null,0,0,0,0,null,null,null,null,0,0]
["27662","27662. Depreciación acumulada – Inmuebles, maquinaria y equipo - Equipos diversos - Revaluación",null,null,null,null,0,0,0,0,null,null,null,null,0,0]
["27671","27671. Depreciación acumulada – Inmuebles, maquinaria y equipo - Herramientas y unidades de reemplazo - Costo",null,null,null,null,0,0,{"$f":"IF($G328-$H328>=0,$G328-$H328,0)","v":0},{"$f":"IF($G328-$H328<0,-$G328+$H328,0)","v":0},null,null,null,null,0,0]
["27672","27672. Depreciación acumulada – Inmuebles, maquinaria y equipo - Herramientas y unidades de reemplazo - Revaluación",null,null,null,null,0,0,0,0,null,null,null,null,{"$f":"IF($I329-$J329+$K329-$L329+$M329-$N329>=0,$I329-$J329+$K329-$L329+$M329-$N329,0)","v":0},{"$f":"IF($I329-$J329+$K329-$L329+$M329-$N329<0,-($I329-$J329+$K329-$L329+$M329-$N329),0)","v":0}]
["27711","27711. Amortización acumulada – Intangibles - Concesiones, licencias y derechos - Costo",null,null,null,null,0,0,0,0,null,null,null,null,0,0]
["27712","27712. Amortización acumulada – Intangibles - Concesiones, licencias y derechos - Revaluación",null,null,null,null,0,0,0,0,null,null,null,null,0,0]
["27721","27721. Amortización acumulada – Intangibles - Patentes y propiedad industrial - Costo",null,null,null,null,0,0,0,0,null,null,null,null,0,0]
["27722","27722. Amortización acumulada – Intangibles - Patentes y propiedad industrial - Revaluación",null,null,null,null,0,0,0,0,null,null,null,null,0,0]
["27731","27731. Amortización acumulada – Intangibles - Programas de computadora (software) - Costo",null,null,null,null,0,0,0,0,null,null,null,null,0,0]
["27732","27732. Amortización acumulada – Intangibles - Programas de computadora (software) - Revaluación",null,null,null,null,0,0,0,0,null,null,null,null,0,0]
["27741","27741. Amortización acumulada – Intangibles - Costos de exploración y desarrollo - Costo",null,null,null,null,0,0,0,0,null,null,null,null,0,0]
["27742","27742. Amortización acumulada – Intangibles - Costos de exploración y desarrollo - Revaluación",null,null,null,null,0,0,0,0,null,null,null,null,0,0]
["27751","27751. Amortización acumulada – Intangibles - Fórmulas, diseños y prototipos - Costo",null,null,null,null,0,0,0,0,null,null,null,null,0,0]
["27752","27752. Amortización acumulada – Intangibles - Fórmulas, diseños y prototipos - Revaluación",null,null,null,null,0,0,0,0,null,null,null,null,0,0]
["27761","27761. Amortización acumulada – Intangibles - Reservas de recursos extraíbles - Costo",null,null,null,null,0,0,0,0,null,null,null,null,0,0]
["27762","27762. Amortización acumulada – Intangibles - Reservas de recursos extraíbles - Revaluación",null,null,null,null,0,0,0,0,null,null,null,null,0,0]
["27791","27791. Amortización acumulada – Intangibles - Otros activos intangibles - Costo",null,null,null,null,0,0,0,0,null,null,null,null,0,0]
["27792","27792. Amortización acumulada – Intangibles - Otros activos intangibles - Revaluación",null,null,null,null,0,0,0,0,null,null,null,null,0,0]
[27812,"27812. Depreciación acumulada – Activos biológicos - Activos biológicos en producción - Costo",null,null,null,null,0,0,0,0,null,null,null,null,0,0]
[27822,"27822. Depreciación acumulada – Activos biológicos - Activos biológicos en desarrollo - Costo",null,null,null,null,0,0,0,0,null,null,null,null,0,0]
["27911","27911. Desvalorización acumulada - Inversión inmobiliaria - Terrenos",null,null,null,null,0,0,0,0,null,null,null,null,0,0]
["27912","27912. Desvalorización acumulada - Inversión inmobiliaria - Edificaciones",null,null,null,null,0,0,0,0,null,null,null,null,0,0]
["27931","27931. Desvalorización acumulada - Inmuebles, maquinaria y equipo - Terrenos",null,null,null,null,0,0,0,0,null,null,null,null,0,0]
["27932","27932. Desvalorización acumulada - Inmuebles, maquinaria y equipo - Edificaciones",null,null,null,null,0,0,0,0,null,null,null,null,0,0]
["27933","27933. Desvalorización acumulada - Inmuebles, maquinaria y equipo - Maquinarias y equipos de explotación",null,null,null,null,0,0,0,0,null,null,null,null,0,0]
["27934","27934. Desvalorización acumulada - Inmuebles, maquinaria y equipo - Equipo de transporte",null,null,null,null,0,0,0,0,null,null,null,null,0,0]
["27935","27935. Desvalorización acumulada - Inmuebles, maquinaria y equipo - Muebles y enseres",null,null,null,null,0,0,0,0,null,null,null,null,0,0]
["27936","27936. Desvalorización acumulada - Inmuebles, maquinaria y equipo - Equipos diversos",null,null,null,null,0,0,0,0,null,null,null,null,0,0]
["27937","27937. Desvalorización acumulada - Inmuebles, maquinaria y equipo - Herramientas y unidades de reemplazo",null,null,null,null,0,0,0,0,null,null,null,null,0,0]
["27941","27941. Desvalorización acumulada - Intangibles - Concesiones, licencias y otros derechos",null,null,null,null,0,0,0,0,null,null,null,null,0,0]
["27942","27942. Desvalorización acumulada - Intangibles - Patentes y propiedad industrial",null,null,null,null,0,0,0,0,null,null,null,null,0,0]
["27943","27943. Desvalorización acumulada - Intangibles - Programas de computadora (software)",null,null,null,null,0,0,0,0,null,null,null,null,0,0]
["27944","27944. Desvalorización acumulada - Intangibles - Costos de exploración y desarrollo",null,null,null,null,0,0,0,0,null,null,null,null,0,0]
["27945","27945. Desvalorización acumulada - Intangibles - Fórmulas, diseños y prototipos",null,null,null,null,0,0,0,0,null,null,null,null,0,0]
["27946","27946. Desvalorización acumulada - Intangibles - Reservas de recursos extraíbles",null,null,null,null,0,0,0,0,null,null,null,null,0,0]
["27951","27951. Desvalorización acumulada - Activos biológicos - Activos biológicos en producción",null,null,null,null,0,0,0,0,null,null,null,null,0,0]
["27952","27952. Desvalorización acumulada - Activos biológicos - Activos biológicos en desarrollo",null,null,null,null,0,0,0,0,null,null,null,null,0,0]
["281","281. Mercaderías",null,null,null,null,0,0,0,0,null,null,null,null,0,0]
["284","284. Materias primas",null,null,null,null,0,0,0,0,null,null,null,null,0,0]
["285","285. Materiales auxiliares, suministros y repuestos",null,null,null,null,0,0,0,0,null,null,null,null,0,0]
["286","286. Envases y embalajes",null,null,null,null,0,0,0,0,null,null,null,null,0,0]
["2911","2911. Mercaderías - Mercaderías manufacturadas",null,null,null,null,0,0,0,0,null,null,null,null,0,0]
["2912","2912. Mercaderías - Mercaderías de extracción",null,null,null,null,0,0,0,0,null,null,null,null,0,0]
["2913","2913. Mercaderías - Mercaderías agropecuarias y piscícolas",null,null,null,null,0,0,0,0,null,null,null,null,0,0]
["2914","2914. Mercaderías - Mercaderías inmuebles",null,null,null,null,0,0,0,0,null,null,null,null,0,0]
["2918","2918. Mercaderías - Otras mercaderías",null,null,null,null,0,0,0,0,null,null,null,null,0,0]
["2921","2921. Productos terminados - Productos manufacturados",null,null,null,null,0,0,0,0,null,null,null,null,0,0]
["2922","2922. Productos terminados - Productos de extracción terminados",null,null,null,null,0,0,0,0,null,null,null,null,0,0]
["2923","2923. Productos terminados - Productos agropecuarios y piscícolas terminados",null,null,null,null,{"$f":"+C374+E374","v":0},0,0,0,null,null,null,null,0,0]
["2924","2924. Productos terminados - Productos inmuebles",null,null,null,null,0,0,0,0,null,null,null,null,0,0]
["2925","2925. Productos terminados - Existencias de servicios terminados",null,null,null,null,0,0,0,0,null,null,null,null,0,0]
["2927","2927. Productos terminados - Otros productos terminados",null,null,null,null,0,0,0,0,null,null,null,null,0,0]
["2928","2928. Productos terminados - Costos de financiación – Productos terminados",null,null,null,null,0,0,0,0,null,null,null,null,0,0]
["2931","2931. Subproductos, desechos y desperdicios - Subproductos",null,null,null,null,0,0,0,0,null,null,null,null,0,0]
["2932","2932. Subproductos, desechos y desperdicios - Desechos y desperdicios",null,null,null,null,0,0,0,0,null,null,null,null,0,0]
["2941","2941. Productos en proceso - Productos en proceso de manufactura",null,null,null,null,0,0,0,0,null,null,null,null,0,0]
["2942","2942. Productos en proceso - Productos extraídos en proceso de transformación",null,null,null,null,0,0,0,0,null,null,null,null,0,0]
["2943","2943. Productos en proceso - Productos agropecuarios y piscícolas en proceso",null,null,null,null,0,0,0,0,null,null,null,null,0,0]
["2944","2944. Productos en proceso - Productos inmuebles en proceso",null,null,null,null,0,0,0,0,null,null,null,null,0,0]
["2945","2945. Productos en proceso - Existencias de servicios en proceso",null,null,null,null,0,0,0,0,null,null,null,null,0,0]
["2947","2947. Productos en proceso - Otros productos en proceso",null,null,null,null,0,0,0,0,null,null,null,null,0,0]
["2948","2948. Productos en proceso - Costos de financiación – Productos en proceso",null,null,null,null,0,0,0,0,null,null,null,null,0,0]
["2951","2951. Materias primas - Materias primas para productos manufacturados",null,null,null,null,0,0,0,0,null,null,null,null,0,0]
["2952","2952. Materias primas - Materias primas para productos de extracción",null,null,null,null,0,0,0,0,null,null,null,null,0,0]
["2953","2953. Materias primas - Materias primas para productos agropecuarios y piscícolas",null,null,null,null,0,0,0,0,null,null,null,null,0,0]
["2954","2954. Materias primas - Materias primas para productos inmuebles",null,null,null,null,0,0,0,0,null,null,null,null,0,0]
["2961","2961. Materiales auxiliares, suministros y repuestos - Materiales auxiliares",null,null,null,null,0,0,{"$f":"IF($G392-$H392>=0,$G392-$H392,0)","v":0},{"$f":"IF($G392-$H392<0,-$G392+$H392,0)","v":0},null,null,null,null,0,0]
["2962","2962. Materiales auxiliares, suministros y repuestos - Suministros",null,null,null,null,0,0,0,0,null,null,null,null,{"$f":"IF($I393-$J393+$K393-$L393+$M393-$N393>=0,$I393-$J393+$K393-$L393+$M393-$N393,0)","v":0},{"$f":"IF($I393-$J393+$K393-$L393+$M393-$N393<0,-($I393-$J393+$K393-$L393+$M393-$N393),0)","v":0}]
["2963","2963. Materiales auxiliares, suministros y repuestos - Repuestos",null,null,null,null,0,0,0,0,null,null,null,null,0,0]
["2971","2971. Envases y embalajes - Envases",null,null,null,null,0,0,0,0,null,null,null,null,0,0]
["2972","2972. Envases y embalajes - Embalajes",null,null,null,null,0,0,0,0,null,null,null,null,0,0]
["2981","2981. Existencias por recibir - Mercaderías",null,null,null,null,0,0,0,0,null,null,null,null,0,0]
["2982","2982. Existencias por recibir - Materias primas",null,null,null,null,0,0,0,0,null,null,null,null,0,0]
["2983","2983. Existencias por recibir - Materiales auxiliares, suministros y repuestos",null,null,null,null,0,0,0,0,null,null,null,null,0,0]
["2984","2984. Existencias por recibir - Envases y embalajes",null,null,null,null,0,0,0,0,null,null,null,null,0,0]
["30111","30111. Inversiones a ser mantenidas hasta el vencimiento - Instrumentos financieros representativos de deuda - Valores emitidos o garantizados por el Estado",null,null,null,null,0,0,0,0,null,null,null,null,0,0]
["30112","30112. Inversiones a ser mantenidas hasta el vencimiento - Instrumentos financieros representativos de deuda - Valores emitidos por el sistema financiero",null,null,null,null,0,0,0,0,null,null,null,null,0,0]
["30113","30113. Inversiones a ser mantenidas hasta el vencimiento - Instrumentos financieros representativos de deuda - Valores emitidos por las empresas",null,null,null,null,0,0,0,0,null,null,null,null,0,0]
["30114","30114. Inversiones a ser mantenidas hasta el vencimiento - Instrumentos financieros representativos de deuda - Valores emitidos por otras entidades",null,null,null,null,0,0,0,0,null,null,null,null,0,0]
["3021","3021. Instrumentos financieros representativos de derecho patrimonial - Certificados de suscripción preferente",null,null,null,null,0,0,0,0,null,null,null,null,0,0]
["30221","30221. Instrumentos financieros representativos de derecho patrimonial - Acciones representativas de capital social – Comunes - Costo",null,null,null,null,0,0,0,0,null,null,null,null,0,0]
["30222","30222. Instrumentos financieros representativos de derecho patrimonial - Acciones representativas de capital social – Comunes - Valor razonable",null,null,null,null,0,0,0,0,null,null,null,null,0,0]
["30223","30223. Instrumentos financieros representativos de derecho patrimonial - Acciones representativas de capital social – Comunes - Participación patrimonial",null,null,null,null,0,0,0,0,null,null,null,null,0,0]
["30231","30231. Instrumentos financieros representativos de derecho patrimonial - Acciones representativas de capital social – Preferentes - Costo",null,null,null,null,0,0,0,0,null,null,null,null,0,0]
["30232","30232. Instrumentos financieros representativos de derecho patrimonial - Acciones representativas de capital social – Preferentes - Valor razonable",null,null,null,null,0,0,0,0,null,null,null,null,0,0]
["30233","30233. Instrumentos financieros representativos de derecho patrimonial - Acciones representativas de capital social – Preferentes - Participación patrimonial",null,null,null,null,0,0,0,0,null,null,null,null,0,0]
["30241","30241. Instrumentos financieros representativos de derecho patrimonial - Acciones de inversión - Costo",null,null,null,null,{"$f":"+C412+E412","v":0},{"$f":"+D412+F412","v":0},0,0,null,null,null,null,0,0]
["30242","30242. Instrumentos financieros representativos de derecho patrimonial - Acciones de inversión - Valor razonable",null,null,null,null,0,0,0,0,null,null,null,null,0,0]
["30243","30243. Instrumentos financieros representativos de derecho patrimonial - Acciones de inversión - Participación patrimonial",null,null,null,null,0,0,0,0,null,null,null,null,0,0]
["30251","30251. Instrumentos financieros representativos de derecho patrimonial - Certificados de participación de fondos de inversión - Costo",null,null,null,null,0,0,0,0,null,null,null,null,0,0]
["30252","30252. Instrumentos financieros representativos de derecho patrimonial - Certificados de participación de fondos de inversión - Valor razonable",null,null,null,null,0,0,0,0,null,null,null,null,0,0]
["30261","30261. Instrumentos financieros representativos de derecho patrimonial - Certificados de participación de fondos mutuos - Costo",null,null,null,null,0,0,0,0,null,null,null,null,0,0]
["30262","30262. Instrumentos financieros representativos de derecho patrimonial - Certificados de participación de fondos mutuos - Valor razonable",null,null,null,null,0,0,0,0,null,null,null,null,0,0]
["30271","30271. Instrumentos financieros representativos de derecho patrimonial - Participaciones en asociaciones en participación y consorcios - Costo",null,null,null,null,0,0,0,0,null,null,null,null,0,0]
["30272","30272. Instrumentos financieros representativos de derecho patrimonial - Participaciones en asociaciones en participación y consorcios - Valor razonable",null,null,null,null,0,0,0,0,null,null,null,null,0,0]
["30273","30273. Instrumentos financieros representativos de derecho patrimonial - Participaciones en asociaciones en participación y consorcios - Participación patrimonial",null,null,null,null,0,0,0,0,null,null,null,null,0,0]
["30281","30281. Instrumentos financieros representativos de derecho patrimonial - Otros títulos representativos de patrimonio - Costo",null,null,null,null,0,0,0,0,null,null,null,null,0,0]
["30282","30282. Instrumentos financieros representativos de derecho patrimonial - Otros títulos representativos de patrimonio - Valor razonable",null,null,null,null,0,0,0,0,null,null,null,null,0,0]
["3081","3081. Inversiones mobiliarias – Acuerdos de compra - Inversiones a ser mantenidas hasta el vencimiento – Acuerdo de compra",null,null,null,null,0,0,0,0,null,null,null,null,0,0]
["3082","3082. Inversiones mobiliarias – Acuerdos de compra - Instrumentos financieros representativos de derecho patrimonial – Acuerdo de compra",null,null,null,null,0,0,0,0,null,null,null,null,0,0]
["31111","31111. Terrenos - Urbanos - Valor razonable",null,null,null,null,0,0,0,0,null,null,null,null,0,0]
["31112","31112. Terrenos - Urbanos - Costo",null,null,null,null,0,0,0,0,null,null,null,null,0,0]
["31113","31113. Terrenos - Urbanos - Revaluación",null,null,null,null,0,0,0,0,null,null,null,null,0,0]
["31121","31121. Terrenos - Rurales - Valor razonable",null,null,null,null,0,0,0,0,null,null,null,null,0,0]
["31122","31122. Terrenos - Rurales - Costo",null,null,null,null,0,0,0,0,null,null,null,null,0,0]
["31123","31123. Terrenos - Rurales - Revaluación",null,null,null,null,0,0,0,0,null,null,null,null,0,0]
["31211","31211. Edificaciones - Edificaciones - Valor razonable",null,null,null,null,0,0,0,0,null,null,null,null,0,0]
["31212","31212. Edificaciones - Edificaciones - Costo",null,null,null,null,0,0,0,0,null,null,null,null,0,0]
["31213","31213. Edificaciones - Edificaciones - Revaluación",null,null,null,null,0,0,0,0,null,null,null,null,0,0]
["31214","31214. Edificaciones - Edificaciones - Costos de financiación – Inversiones inmobiliarias",null,null,null,null,0,0,0,0,null,null,null,null,0,0]
["3211","3211. Inversiones inmobiliarias - Terrenos",null,null,null,null,0,0,0,0,null,null,null,null,0,0]
["3212","3212. Inversiones inmobiliarias - Edificaciones",null,null,null,null,0,0,0,0,null,null,null,null,0,0]
["3221","3221. Inmuebles, maquinaria y equipo - Terrenos",null,null,null,null,0,0,0,0,null,null,null,null,0,0]
["3222","3222. Inmuebles, maquinaria y equipo - Edificaciones",null,null,null,null,{"$f":"+C439+E439","v":0},0,0,0,null,null,null,null,0,0]
["3223","3223. Inmuebles, maquinaria y equipo - Maquinarias y equipos de explotación",null,null,null,null,0,0,0,0,null,null,null,null,0,0]
["3224","3224. Inmuebles, maquinaria y equipo - Equipo de transporte",null,null,null,null,0,0,0,0,null,null,null,null,0,0]
["3225","3225. Inmuebles, maquinaria y equipo - Muebles y enseres",null,null,null,null,0,0,0,0,null,null,null,null,0,0]
["3226","3226. Inmuebles, maquinaria y equipo - Equipos diversos",null,null,null,null,0,0,0,0,null,null,null,null,0,0]
["3227","3227. Inmuebles, maquinaria y equipo - Herramientas y unidades de reemplazo",null,null,null,null,0,0,0,0,null,null,null,null,0,0]
["33111","33111. Terrenos - Terrenos - Costo",null,null,null,null,0,0,0,0,null,null,null,null,0,0]
["33112","33112. Terrenos - Terrenos - Revaluación",null,null,null,null,0,0,0,0,null,null,null,null,0,0]
["33211","33211. Edificaciones - Edificaciones administrativas - Costo de adquisición o construcción",null,null,null,null,0,0,0,0,null,null,null,null,0,0]
["33212","33212. Edificaciones - Edificaciones administrativas - Revaluación",null,null,null,null,0,0,0,0,null,null,null,null,0,0]
["33213","33213. Edificaciones - Edificaciones administrativas - Costo de financiación – Edificaciones",null,null,null,null,0,0,0,0,null,null,null,null,0,0]
["33221","33221. Edificaciones - Almacenes - Costo de adquisición o construcción",null,null,null,null,0,0,0,0,null,null,null,null,0,0]
["33222","33222. Edificaciones - Almacenes - Revaluación",null,null,null,null,0,0,0,0,null,null,null,null,0,0]
["33223","33223. Edificaciones - Almacenes - Costo de financiación – Almacenes",null,null,null,null,0,0,0,0,null,null,null,null,0,0]
["33231","33231. Edificaciones - Edificaciones para producción - Costo de adquisición o construcción",null,null,null,null,0,0,0,0,null,null,null,null,0,0]
["33232","33232. Edificaciones - Edificaciones para producción - Revaluación",null,null,null,null,0,0,0,0,null,null,null,null,0,0]
["33233","33233. Edificaciones - Edificaciones para producción - Costo de financiación – Edificaciones para producción",null,null,null,null,0,0,0,0,null,null,null,null,0,0]
["33241","33241. Edificaciones - Instalaciones - Costo de adquisición o construcción",null,null,null,null,0,0,0,0,null,null,null,null,0,0]
["33242","33242. Edificaciones - Instalaciones - Revaluación",null,null,null,null,0,0,{"$f":"IF($G457-$H457>=0,$G457-$H457,0)","v":0},{"$f":"IF($G457-$H457<0,-$G457+$H457,0)","v":0},null,null,null,null,{"$f":"IF($I457-$J457+$K457-$L457+$M457-$N457>=0,$I457-$J457+$K457-$L457+$M457-$N457,0)","v":0},{"$f":"IF($I457-$J457+$K457-$L457+$M457-$N457<0,-($I457-$J457+$K457-$L457+$M457-$N457),0)","v":0}]
["33243","33243. Edificaciones - Instalaciones - Costo de financiación – Instalaciones",null,null,null,null,0,0,0,0,null,null,null,null,0,0]
["33311","33311. Maquinarias y equipos de explotación - Maquinarias y equipos de explotación - Costo de adquisición o construcción",null,null,null,null,0,0,0,0,null,null,null,null,0,0]
["33312","33312. Maquinarias y equipos de explotación - Maquinarias y equipos de explotación - Revaluación",null,null,null,null,0,0,0,0,null,null,null,null,0,0]
["33313","33313. Maquinarias y equipos de explotación - Maquinarias y equipos de explotación - Costo de financiación – Maquinarias y equipos de explotación",null,null,null,null,0,0,0,0,null,null,null,null,0,0]
["33411","33411. Unidades de transporte - Vehículos motorizados - Costo",null,null,null,null,0,0,0,0,null,null,null,null,0,0]
["33412","33412. Unidades de transporte - Vehículos motorizados - Revaluación",null,null,null,null,0,0,0,0,null,null,null,null,0,0]
["33421","33421. Unidades de transporte - Vehículos no motorizados - Costo",null,null,null,null,0,0,0,0,null,null,null,null,0,0]
["33422","33422. Unidades de transporte - Vehículos no motorizados - Revaluación",null,null,null,null,0,0,0,0,null,null,null,null,0,0]
["33511","33511. Muebles y enseres - Muebles - Costo",null,null,null,null,0,0,0,0,null,null,null,null,0,0]
["33512","33512. Muebles y enseres - Muebles - Revaluación",null,null,null,null,0,0,0,0,null,null,null,null,0,0]
["33521","33521. Muebles y enseres - Enseres - Costo",null,null,null,null,0,0,0,0,null,null,null,null,0,0]
["33522","33522. Muebles y enseres - Enseres - Revaluación",null,null,null,null,0,0,0,0,null,null,null,null,0,0]
["33611","33611. Equipos diversos - Equipo para procesamiento de información (de cómputo) - Costo",null,null,null,null,0,0,0,0,null,null,null,null,0,0]
["33612","33612. Equipos diversos - Equipo para procesamiento de información (de cómputo) - Revaluación",null,null,null,null,0,0,0,0,null,null,null,null,0,0]
["33621","33621. Equipos diversos - Equipo de comunicación - Costo",null,null,null,null,0,0,0,0,null,null,null,null,0,0]
["33622","33622. Equipos diversos - Equipo de comunicación - Revaluación",null,null,null,null,0,0,0,0,null,null,null,null,0,0]
["33631","33631. Equipos diversos - Equipo de seguridad - Costo",null,null,null,null,0,0,0,0,null,null,null,null,0,0]
["33632","33632. Equipos diversos - Equipo de seguridad - Revaluación",null,null,null,null,0,0,0,0,null,null,null,null,0,0]
["33691","33691. Equipos diversos - Otros equipos - Costo",null,null,null,null,0,0,0,0,null,null,null,null,0,0]
["33692","33692. Equipos diversos - Otros equipos - Revaluación",null,null,null,null,0,0,0,0,null,null,null,null,0,0]
["33711","33711. Herramientas y unidades de reemplazo - Herramientas - Costo",null,null,null,null,0,0,0,0,null,null,null,null,0,0]
["33712","33712. Herramientas y unidades de reemplazo - Herramientas - Revaluación",null,null,null,null,0,0,0,0,null,null,null,null,0,0]
["33721","33721. Herramientas y unidades de reemplazo - Unidades de reemplazo - Costo",null,null,null,null,0,0,0,0,null,null,null,null,0,0]
["33722","33722. Herramientas y unidades de reemplazo - Unidades de reemplazo - Revaluación",null,null,null,null,0,0,0,0,null,null,null,null,0,0]
["3381","3381. Unidades por recibir - Maquinarias y equipos de explotación",null,null,null,null,0,0,0,0,null,null,null,null,0,0]
["3382","3382. Unidades por recibir - Equipo de transporte",null,null,null,null,0,0,0,0,null,null,null,null,0,0]
["3383","3383. Unidades por recibir - Muebles y enseres",null,null,null,null,0,0,0,0,null,null,null,null,0,0]
["3386","3386. Unidades por recibir - Equipos diversos",null,null,null,null,0,0,0,0,null,null,null,null,0,0]
["3387","3387. Unidades por recibir - Herramientas y unidades de reemplazo",null,null,null,null,0,0,0,0,null,null,null,null,0,0]
["3391","3391. Construcciones y obras en curso - Adaptación de terrenos",null,null,null,null,0,0,0,0,null,null,null,null,0,0]
["3392","3392. Construcciones y obras en curso - Construcciones en curso",null,null,null,null,0,0,0,0,null,null,null,null,0,0]
["3393","3393. Construcciones y obras en curso - Maquinaria en montaje",null,null,null,null,0,0,0,0,null,null,null,null,0,0]
["3394","3394. Construcciones y obras en curso - Inversión inmobiliaria en curso",null,null,null,null,0,0,0,0,null,null,null,null,0,0]
["33971","33971. Construcciones y obras en curso - Costo de financiación – Inversiones inmobiliarias - Costo de financiación – Edificaciones",null,null,null,null,0,0,0,0,null,null,null,null,0,0]
["33981","33981. Construcciones y obras en curso - Costo de financiación – Inmuebles, maquinaria y equipo - Costo de financiación – Edificaciones",null,null,null,null,0,0,0,0,null,null,null,null,0,0]
["33982","33982. Construcciones y obras en curso - Costo de financiación – Inmuebles, maquinaria y equipo - Costo de financiación – Maquinarias y equipos de explotación",null,null,null,null,0,0,0,0,null,null,null,null,0,0]
["3399","3399. Construcciones y obras en curso - Otros activos en curso",null,null,null,null,0,0,0,0,null,null,null,null,0,0]
["34111","34111. Concesiones, licencias y otros derechos - Concesiones - Costo",null,null,null,null,0,0,0,0,null,null,null,null,0,0]
["34112","34112. Concesiones, licencias y otros derechos - Concesiones - Revaluación",null,null,null,null,0,0,0,0,null,null,null,null,0,0]
["34121","34121. Concesiones, licencias y otros derechos - Licencias - Costo",null,null,null,null,0,0,0,0,null,null,null,null,0,0]
["34122","34122. Concesiones, licencias y otros derechos - Licencias - Revaluación",null,null,null,null,0,0,0,0,null,null,null,null,0,0]
["34191","34191. Concesiones, licencias y otros derechos - Otros derechos - Costo",null,null,null,null,0,0,0,0,null,null,null,null,0,0]
["34192","34192. Concesiones, licencias y otros derechos - Otros derechos - Revaluación",null,null,null,null,0,0,0,0,null,null,null,null,0,0]
["34211","34211. Patentes y propiedad industrial - Patentes - Costo",null,null,null,null,0,0,0,0,null,null,null,null,0,0]
["34212","34212. Patentes y propiedad industrial - Patentes - Revaluación",null,null,null,null,0,0,0,0,null,null,null,null,0,0]
["34221","34221. Patentes y propiedad industrial - Marcas - Costo",null,null,null,null,{"$f":"+C503+E503","v":0},0,0,0,null,null,null,null,0,0]
["34222","34222. Patentes y propiedad industrial - Marcas - Revaluación",null,null,null,null,0,0,0,0,null,null,null,null,0,0]
["34311","34311. Programas de computadora (software) - Aplicaciones informáticas - Costo",null,null,null,null,0,0,0,0,null,null,null,null,0,0]
["34312","34312. Programas de computadora (software) - Aplicaciones informáticas - Revaluación",null,null,null,null,0,0,0,0,null,null,null,null,0,0]
["34411","34411. Costos de exploración y desarrollo - Costos de exploración - Costo",null,null,null,null,0,0,0,0,null,null,null,null,0,0]
["34412","34412. Costos de exploración y desarrollo - Costos de exploración - Revaluación",null,null,null,null,0,0,0,0,null,null,null,null,0,0]
["34413","34413. Costos de exploración y desarrollo - Costos de exploración - Costo de financiación",null,null,null,null,0,0,0,0,null,null,null,null,0,0]
["34421","34421. Costos de exploración y desarrollo - Costos de desarrollo - Costo",null,null,null,null,0,0,0,0,null,null,null,null,0,0]
["34422","34422. Costos de exploración y desarrollo - Costos de desarrollo - Revaluación",null,null,null,null,0,0,0,0,null,null,null,null,0,0]
["34423","34423. Costos de exploración y desarrollo - Costos de desarrollo - Costo de financiación",null,null,null,null,0,0,0,0,null,null,null,null,0,0]
["34511","34511. Fórmulas, diseños y prototipos - Fórmulas - Costo",null,null,null,null,0,0,0,0,null,null,null,null,0,0]
["34512","34512. Fórmulas, diseños y prototipos - Fórmulas - Revaluación",null,null,null,null,0,0,0,0,null,null,null,null,0,0]
["34521","34521. Fórmulas, diseños y prototipos - Diseños y prototipos - Costo",null,null,null,null,0,0,0,0,null,null,null,null,0,0]
["34522","34522. Fórmulas, diseños y prototipos - Diseños y prototipos - Revaluación",null,null,null,null,0,0,0,0,null,null,null,null,0,0]
["34611","34611. Reservas de recursos extraíbles - Minerales - Costo",null,null,null,null,0,0,0,0,null,null,null,null,0,0]
["34612","34612. Reservas de recursos extraíbles - Minerales - Revaluación",null,null,null,null,0,0,0,0,null,null,null,null,0,0]
["34621","34621. Reservas de recursos extraíbles - Petróleo y gas - Costo",null,null,null,null,0,0,0,0,null,null,null,null,0,0]
["34622","34622. Reservas de recursos extraíbles - Petróleo y gas - Revaluación",null,null,null,null,0,0,0,0,null,null,null,null,0,0]
["34631","34631. Reservas de recursos extraíbles - Madera - Costo",null,null,null,null,0,0,{"$f":"IF($G521-$H521>=0,$G521-$H521,0)","v":0},{"$f":"IF($G521-$H521<0,-$G521+$H521,0)","v":0},null,null,null,null,{"$f":"IF($I521-$J521+$K521-$L521+$M521-$N521>=0,$I521-$J521+$K521-$L521+$M521-$N521,0)","v":0},{"$f":"IF($I521-$J521+$K521-$L521+$M521-$N521<0,-($I521-$J521+$K521-$L521+$M521-$N521),0)","v":0}]
["34632","34632. Reservas de recursos extraíbles - Madera - Revaluación",null,null,null,null,0,0,0,0,null,null,null,null,0,0]
["34691","34691. Reservas de recursos extraíbles - Otros recursos extraíbles - Costo",null,null,null,null,0,0,0,0,null,null,null,null,0,0]
["34692","34692. Reservas de recursos extraíbles - Otros recursos extraíbles - Revaluación",null,null,null,null,0,0,0,0,null,null,null,null,0,0]
["3471","3471. Plusvalía mercantil - Plusvalía mercantil",null,null,null,null,0,0,0,0,null,null,null,null,0,0]
["34911","34911. Otros activos intangibles - Otros activos intangibles - Costo",null,null,null,null,0,0,0,0,null,null,null,null,0,0]
["34912","34912. Otros activos intangibles - Otros activos intangibles - Revaluación",null,null,null,null,0,0,0,0,null,null,null,null,0,0]
["35111","35111. Activos biológicos en producción - De origen animal - Valor razonable",null,null,null,null,0,0,0,0,null,null,null,null,0,0]
["35112","35112. Activos biológicos en producción - De origen animal - Costo",null,null,null,null,0,0,0,0,null,null,null,null,0,0]
["35113","35113. Activos biológicos en producción - De origen animal - Costo de financiación",null,null,null,null,0,0,0,0,null,null,null,null,0,0]
["35121","35121. Activos biológicos en producción - De origen vegetal - Valor razonable",null,null,null,null,0,0,0,0,null,null,null,null,0,0]
["35122","35122. Activos biológicos en producción - De origen vegetal - Costo",null,null,null,null,0,0,0,0,null,null,null,null,0,0]
["35123","35123. Activos biológicos en producción - De origen vegetal - Costo de financiación",null,null,null,null,0,0,0,0,null,null,null,null,0,0]
["35211","35211. Activos biológicos en desarrollo - De origen animal - Valor razonable",null,null,null,null,0,0,0,0,null,null,null,null,0,0]
["35212","35212. Activos biológicos en desarrollo - De origen animal - Costo",null,null,null,null,0,0,0,0,null,null,null,null,0,0]
["35213","35213. Activos biológicos en desarrollo - De origen animal - Costo de financiación",null,null,null,null,0,0,0,0,null,null,null,null,0,0]
["35221","35221. Activos biológicos en desarrollo - De origen vegetal - Valor razonable",null,null,null,null,0,0,0,0,null,null,null,null,0,0]
["35222","35222. Activos biológicos en desarrollo - De origen vegetal - Costo",null,null,null,null,0,0,0,0,null,null,null,null,0,0]
["35223","35223. Activos biológicos en desarrollo - De origen vegetal - Costo de financiación",null,null,null,null,0,0,0,0,null,null,null,null,0,0]
["3611","3611. Desvalorización de inversiones inmobiliarias - Terrenos",null,null,null,null,0,0,0,0,null,null,null,null,0,0]
["36121","36121. Desvalorización de inversiones inmobiliarias - Edificaciones - Edificaciones – Costo de adquisición o construcción",null,null,null,null,0,0,0,0,null,null,null,null,0,0]
["36122","36122. Desvalorización de inversiones inmobiliarias - Edificaciones - Edificaciones – Costo de financiación",null,null,null,null,0,0,0,0,null,null,null,null,0,0]
["3631","3631. Desvalorización de inmuebles, maquinaria y equipo - Terrenos",null,null,null,null,0,0,0,0,null,null,null,null,0,0]
["36321","36321. Desvalorización de inmuebles, maquinaria y equipo - Edificaciones - Edificaciones – Costo de adquisición o construcción",null,null,null,null,0,0,0,0,null,null,null,null,0,0]
["36322","36322. Desvalorización de inmuebles, maquinaria y equipo - Edificaciones - Edificaciones – Costo de financiación",null,null,null,null,0,0,0,0,null,null,null,null,0,0]
["36331","36331. Desvalorización de inmuebles, maquinaria y equipo - Maquinarias y equipos de explotación - Maquinarias y equipos de explotación – Costo de adquisición o construcción",null,null,null,null,0,0,0,0,null,null,null,null,0,0]
["36332","36332. Desvalorización de inmuebles, maquinaria y equipo - Maquinarias y equipos de explotación - Maquinarias y equipos de explotación – Costo de financiación",null,null,null,null,0,0,0,0,null,null,null,null,0,0]
["3634","3634. Desvalorización de inmuebles, maquinaria y equipo - Equipo de transporte",null,null,null,null,0,0,0,0,null,null,null,null,0,0]
["3635","3635. Desvalorización de inmuebles, maquinaria y equipo - Muebles y enseres",null,null,null,null,0,0,0,0,null,null,null,null,0,0]
["3636","3636. Desvalorización de inmuebles, maquinaria y equipo - Equipos diversos",null,null,null,null,0,0,0,0,null,null,null,null,0,0]
["3637","3637. Desvalorización de inmuebles, maquinaria y equipo - Herramientas y unidades de reemplazo",null,null,null,null,0,0,0,0,null,null,null,null,0,0]
["3641","3641. Desvalorización de intangibles - Concesiones, licencias y otros derechos",null,null,null,null,0,0,0,0,null,null,null,null,0,0]
["3642","3642. Desvalorización de intangibles - Patentes y propiedad industrial",null,null,null,null,0,0,0,0,null,null,null,null,0,0]
["3643","3643. Desvalorización de intangibles - Programas de computadora (software)",null,null,null,null,0,0,0,0,null,null,null,null,0,0]
["36441","36441. Desvalorización de intangibles - Costos de exploración y desarrollo - Costo",null,null,null,null,0,0,0,0,null,null,null,null,0,0]
["36442","36442. Desvalorización de intangibles - Costos de exploración y desarrollo - Costo de financiación",null,null,null,null,0,0,0,0,null,null,null,null,0,0]
["3645","3645. Desvalorización de intangibles - Fórmulas, diseños y prototipos",null,null,null,null,0,0,0,0,null,null,null,null,0,0]
["3647","3647. Desvalorización de intangibles - Plusvalía mercantil",null,null,null,null,0,0,0,0,null,null,null,null,0,0]
["3649","3649. Desvalorización de intangibles - Otros activos intangibles",null,null,null,null,0,0,0,0,null,null,null,null,0,0]
["36511","36511. Desvalorización de activos biológicos - Activos biológicos en producción - Costo",null,null,null,null,{"$f":"+C560+E560","v":0},{"$f":"+D560+F560","v":0},0,0,null,null,null,null,0,0]
["36512","36512. Desvalorización de activos biológicos - Activos biológicos en producción - Costo de financiación",null,null,null,null,0,0,0,0,null,null,null,null,0,0]
["36521","36521. Desvalorización de activos biológicos - Activos biológicos en desarrollo - Costo",null,null,null,null,0,0,0,0,null,null,null,null,0,0]
["36522","36522. Desvalorización de activos biológicos - Activos biológicos en desarrollo - Costo de financiación",null,null,null,null,0,0,0,0,null,null,null,null,0,0]
["3661","3661. Desvalorización de inversiones mobiliarias - Inversiones a ser mantenidas hasta el vencimiento",null,null,null,null,0,0,0,0,null,null,null,null,0,0]
["3662","3662. Desvalorización de inversiones mobiliarias - Inversiones financieras representativas de derecho patrimonial",null,null,null,null,0,0,0,0,null,null,null,null,0,0]
["3711","3711. Impuesto a la renta diferido - Impuesto a la renta diferido – Patrimonio",null,null,null,null,0,0,0,0,null,null,null,null,0,0]
["3712","3712. Impuesto a la renta diferido - Impuesto a la renta diferido – Resultados",null,null,null,null,{"$f":"+C567+E567","v":0},0,0,0,null,null,null,null,0,0]
["3721","3721. Participaciones de los trabajadores diferidas - Participaciones de los trabajadores diferidas – Patrimonio",null,null,null,null,0,0,0,0,null,null,null,null,0,0]
["3722","3722. Participaciones de los trabajadores diferidas - Participaciones de los trabajadores diferidas – Resultados",null,null,null,null,0,0,0,0,null,null,null,null,0,0]
["3731","3731. Intereses diferidos - Intereses no devengados en transacciones con terceros",null,null,null,null,0,0,0,0,null,null,null,null,0,0]
["3732","3732. Intereses diferidos - Intereses no devengados en medición a valor descontado",null,null,null,null,0,0,0,0,null,null,null,null,0,0]
["3811","3811. Bienes de arte y cultura - Obras de arte",null,null,null,null,0,0,0,0,null,null,null,null,0,0]
["3812","3812. Bienes de arte y cultura - Biblioteca",null,null,null,null,0,0,0,0,null,null,null,null,0,0]
["3813","3813. Bienes de arte y cultura - Otros",null,null,null,null,0,0,0,0,null,null,null,null,0,0]
["3821","3821. Diversos - Monedas y joyas",null,null,null,null,0,0,0,0,null,null,null,null,0,0]
["3822","3822. Diversos - Bienes entregados en comodato",null,null,null,null,0,0,0,0,null,null,null,null,0,0]
["3823","3823. Diversos - Bienes recibidos en pago (adjudicados y realizables)",null,null,null,null,0,0,0,0,null,null,null,null,0,0]
["3829","3829. Diversos - Otros",null,null,null,null,0,0,0,0,null,null,null,null,0,0]
["39111","39111. Depreciación acumulada - Inversiones Inmobiliarias - Edificaciones – Costo de adquisición o construcción",null,null,null,null,0,0,0,0,null,null,null,null,0,0]
["39112","39112. Depreciación acumulada - Inversiones Inmobiliarias - Edificaciones – Revaluación",null,null,null,null,0,0,0,0,null,null,null,null,0,0]
["39113","39113. Depreciación acumulada - Inversiones Inmobiliarias - Edificaciones – Costo de financiación",null,null,null,null,0,0,0,0,null,null,null,null,0,0]
["39121","39121. Depreciación acumulada - Activos adquiridos en arrendamiento financiero - Inversiones inmobiliarias – Edificaciones",null,null,null,null,0,0,0,0,null,null,null,null,0,0]
["39122","39122. Depreciación acumulada - Activos adquiridos en arrendamiento financiero - Inmuebles, maquinaria y equipo – Edificaciones",null,null,null,null,0,0,0,0,null,null,null,null,0,0]
["39123","39123. Depreciación acumulada - Activos adquiridos en arrendamiento financiero - Inmuebles, maquinaria y equipo – Maquinarias y equipos de explotación",null,null,null,null,0,0,0,0,null,null,null,null,0,0]
["39124","39124. Depreciación acumulada - Activos adquiridos en arrendamiento financiero - Inmuebles, maquinaria y equipo – Equipos de transporte",null,null,null,null,0,0,0,0,null,null,null,null,{"$f":"IF($I585-$J585+$K585-$L585+$M585-$N585>=0,$I585-$J585+$K585-$L585+$M585-$N585,0)","v":0},{"$f":"IF($I585-$J585+$K585-$L585+$M585-$N585<0,-($I585-$J585+$K585-$L585+$M585-$N585),0)","v":0}]
["39126","39126. Depreciación acumulada - Activos adquiridos en arrendamiento financiero - Inmuebles, maquinaria y equipo – Equipos diversos",null,null,null,null,0,0,{"$f":"IF($G586-$H586>=0,$G586-$H586,0)","v":0},{"$f":"IF($G586-$H586<0,-$G586+$H586,0)","v":0},null,null,null,null,0,0]
["39131","39131. Depreciación acumulada - Inmuebles, maquinaria y equipo – Costo - Edificaciones",null,null,null,null,0,0,0,0,null,null,null,null,0,0]
["39132","39132. Depreciación acumulada - Inmuebles, maquinaria y equipo – Costo - Maquinarias y equipos de explotación",null,null,null,null,0,0,0,0,null,null,null,null,0,0]
["39133","39133. Depreciación acumulada - Inmuebles, maquinaria y equipo – Costo - Equipo de transporte",null,null,null,null,0,0,0,0,null,null,null,null,0,0]
["39134","39134. Depreciación acumulada - Inmuebles, maquinaria y equipo – Costo - Muebles y enseres",null,null,null,null,0,0,0,0,null,null,null,null,0,0]
["39135","39135. Depreciación acumulada - Inmuebles, maquinaria y equipo – Costo - Equipos diversos",null,null,null,null,0,0,0,0,null,null,null,null,0,0]
["39136","39136. Depreciación acumulada - Inmuebles, maquinaria y equipo – Costo - Herramientas y unidades de reemplazo",null,null,null,null,0,0,0,0,null,null,null,null,0,0]
["39141","39141. Depreciación acumulada - Inmuebles, maquinaria y equipo – Revaluación - Edificaciones",null,null,null,null,0,0,0,0,null,null,null,null,0,0]
["39142","39142. Depreciación acumulada - Inmuebles, maquinaria y equipo – Revaluación - Maquinarias y equipos de explotación",null,null,null,null,0,0,0,0,null,null,null,null,0,0]
["39143","39143. Depreciación acumulada - Inmuebles, maquinaria y equipo – Revaluación - Equipo de transporte",null,null,null,null,0,0,0,0,null,null,null,null,0,0]
["39144","39144. Depreciación acumulada - Inmuebles, maquinaria y equipo – Revaluación - Muebles y enseres",null,null,null,null,0,0,0,0,null,null,null,null,0,0]
["39145","39145. Depreciación acumulada - Inmuebles, maquinaria y equipo – Revaluación - Equipos diversos",null,null,null,null,0,0,0,0,null,null,null,null,0,0]
["39146","39146. Depreciación acumulada - Inmuebles, maquinaria y equipo – Revaluación - Herramientas y unidades de reemplazo",null,null,null,null,0,0,0,0,null,null,null,null,0,0]
["39151","39151. Depreciación acumulada - Inmuebles, maquinaria y equipo – Costo de financiación - Edificaciones",null,null,null,null,0,0,0,0,null,null,null,null,0,0]
["39152","39152. Depreciación acumulada - Inmuebles, maquinaria y equipo – Costo de financiación - Maquinarias y equipos de explotación",null,null,null,null,0,0,0,0,null,null,null,null,0,0]
["39161","39161. Depreciación acumulada - Activos biológicos en producción – Costo - Activos biológicos de origen animal",null,null,null,null,0,0,0,0,null,null,null,null,0,0]
["39162","39162. Depreciación acumulada - Activos biológicos en producción – Costo - Activos biológicos de origen vegetal",null,null,null,null,0,0,0,0,null,null,null,null,0,0]
["39171","39171. Depreciación acumulada - Activos biológicos en producción – Costo de financiación - Activos biológicos de origen animal",null,null,null,null,0,0,0,0,null,null,null,null,0,0]
["39172","39172. Depreciación acumulada - Activos biológicos en producción – Costo de financiación - Activos biológicos de origen vegetal",null,null,null,null,0,0,0,0,null,null,null,null,0,0]
["39211","39211. Amortización acumulada - Intangibles – Costo - Concesiones, licencias y otros derechos",null,null,null,null,0,0,0,0,null,null,null,null,0,0]
["39212","39212. Amortización acumulada - Intangibles – Costo - Patentes y propiedad industrial",null,null,null,null,0,0,0,0,null,null,null,null,0,0]
["39213","39213. Amortización acumulada - Intangibles – Costo - Programas de computadora (software)",null,null,null,null,0,0,0,0,null,null,null,null,0,0]
["39214","39214. Amortización acumulada - Intangibles – Costo - Costos de exploración y desarrollo",null,null,null,null,0,0,0,0,null,null,null,null,0,0]
["39215","39215. Amortización acumulada - Intangibles – Costo - Fórmulas, diseños y prototipos",null,null,null,null,0,0,0,0,null,null,null,null,0,0]
["39219","39219. Amortización acumulada - Intangibles – Costo - Otros activos intangibles",null,null,null,null,0,0,0,0,null,null,null,null,0,0]
["39221","39221. Amortización acumulada - Intangibles – Revaluación - Concesiones, licencias y otros derechos",null,null,null,null,0,0,0,0,null,null,null,null,0,0]
["39222","39222. Amortización acumulada - Intangibles – Revaluación - Patentes y propiedad industrial",null,null,null,null,0,0,0,0,null,null,null,null,0,0]
["39223","39223. Amortización acumulada - Intangibles – Revaluación - Programas de computadora (software)",null,null,null,null,0,0,0,0,null,null,null,null,0,0]
["39224","39224. Amortización acumulada - Intangibles – Revaluación - Costos de exploración y desarrollo",null,null,null,null,0,0,0,0,null,null,null,null,0,0]
["39225","39225. Amortización acumulada - Intangibles – Revaluación - Fórmulas, diseños y prototipos",null,null,null,null,0,0,0,0,null,null,null,null,0,0]
["39229","39229. Amortización acumulada - Intangibles – Revaluación - Otros activos intangibles",null,null,null,null,0,0,0,0,null,null,null,null,0,0]
["39234","39234. Amortización acumulada - Intangibles – Costos de financiación - Costos de exploración y desarrollo",null,null,null,null,0,0,0,0,null,null,null,null,0,0]
["3931","3931. Agotamiento acumulado - Agotamiento de reservas de recursos extraíbles",null,null,null,null,0,0,0,0,null,null,null,null,0,0]
["40111","40111. Gobierno central - Impuesto general a las ventas - IGV – Cuenta propia",null,null,null,null,0,0,0,0,null,null,null,null,0,0]
["40112","40112. Gobierno central - Impuesto general a las ventas - IGV – Servicios prestados por no domiciliados",null,null,null,null,0,0,0,0,null,null,null,null,0,0]
["40113","40113. Gobierno central - Impuesto general a las ventas - IGV – Régimen de percepciones",null,null,null,null,0,0,0,0,null,null,null,null,0,0]
["40114","40114. Gobierno central - Impuesto general a las ventas - IGV – Régimen de retenciones",null,null,null,null,0,0,0,0,null,null,null,null,0,0]
["4012","4012. Gobierno central - Impuesto selectivo al consumo",null,null,null,null,0,0,0,0,null,null,null,null,0,0]
["40151","40151. Gobierno central - Derechos aduaneros - Derechos arancelarios",null,null,null,null,0,0,0,0,null,null,null,null,0,0]
["40152","40152. Gobierno central - Derechos aduaneros - Derechos aduaneros por ventas",null,null,null,null,0,0,0,0,null,null,null,null,0,0]
["40171","40171. Gobierno central - Impuesto a la renta - Renta de tercera categoría",null,null,null,null,0,0,0,0,null,null,null,null,0,0]
["40172","40172. Gobierno central - Impuesto a la renta - Renta de cuarta categoría",null,null,null,null,0,0,0,0,null,null,null,null,0,0]
["40173","40173. Gobierno central - Impuesto a la renta - Renta de quinta categoría",null,null,null,null,0,0,0,0,null,null,null,null,0,0]
["40174","40174. Gobierno central - Impuesto a la renta - Renta de no domiciliados",null,null,null,null,0,0,0,0,null,null,null,null,0,0]
["40175","40175. Gobierno central - Impuesto a la renta - Otras retenciones",null,null,null,null,0,0,0,0,null,null,null,null,0,0]
["40181","40181. Gobierno central - Otros impuestos y contraprestaciones - Impuesto a las transacciones financieras",null,null,null,null,0,0,0,0,null,null,null,null,0,0]
["40182","40182. Gobierno central - Otros impuestos y contraprestaciones - Impuesto a los juegos de casino y tragamonedas",null,null,null,null,{"$f":"+C632+E632","v":0},0,0,0,null,null,null,null,0,0]
["40183","40183. Gobierno central - Otros impuestos y contraprestaciones - Tasas por la prestación de servicios públicos",null,null,null,null,0,0,0,0,null,null,null,null,0,0]
["40184","40184. Gobierno central - Otros impuestos y contraprestaciones - Regalías",null,null,null,null,0,0,0,0,null,null,null,null,0,0]
["40185","40185. Gobierno central - Otros impuestos y contraprestaciones - Impuesto a los dividendos",null,null,null,null,0,0,0,0,null,null,null,null,0,0]
["40186","40186. Gobierno central - Otros impuestos y contraprestaciones - Impuesto temporal a los activos netos",null,null,null,null,0,0,0,0,null,null,null,null,0,0]
["40189","40189. Gobierno central - Otros impuestos y contraprestaciones - Otros impuestos",null,null,null,null,0,0,0,0,null,null,null,null,0,0]
["402","402. Certificados tributarios",null,null,null,null,0,0,0,0,null,null,null,null,0,0]
["4031","4031. Instituciones públicas - ESSALUD",null,null,null,null,0,0,0,0,null,null,null,null,0,0]
["4032","4032. Instituciones públicas - ONP",null,null,null,null,0,0,0,0,null,null,null,null,0,0]
["4033","4033. Instituciones públicas - Contribución al SENATI",null,null,null,null,0,0,0,0,null,null,null,null,0,0]
["4034","4034. Instituciones públicas - Contribución al SENCICO",null,null,null,null,0,0,0,0,null,null,null,null,0,0]
["4039","4039. Instituciones públicas - Otras instituciones",null,null,null,null,0,0,0,0,null,null,null,null,0,0]
["405","405. Gobiernos regionales",null,null,null,null,0,0,0,0,null,null,null,null,0,0]
["40611","40611. Gobiernos locales - Impuestos - Impuesto al patrimonio vehicular",null,null,null,null,0,0,0,0,null,null,null,null,0,0]
["40612","40612. Gobiernos locales - Impuestos - Impuesto a las apuestas",null,null,null,null,0,0,0,0,null,null,null,null,0,0]
["40613","40613. Gobiernos locales - Impuestos - Impuesto a los juegos",null,null,null,null,0,0,0,0,null,null,null,null,0,0]
["40614","40614. Gobiernos locales - Impuestos - Impuesto de alcabala",null,null,null,null,0,0,0,0,null,null,null,null,0,0]
["40615","40615. Gobiernos locales - Impuestos - Impuesto predial",null,null,null,null,0,0,0,0,null,null,null,null,{"$f":"IF($I649-$J649+$K649-$L649+$M649-$N649>=0,$I649-$J649+$K649-$L649+$M649-$N649,0)","v":0},{"$f":"IF($I649-$J649+$K649-$L649+$M649-$N649<0,-($I649-$J649+$K649-$L649+$M649-$N649),0)","v":0}]
["40616","40616. Gobiernos locales - Impuestos - Impuesto a los espectáculos públicos no deportivos",null,null,null,null,0,0,{"$f":"IF($G650-$H650>=0,$G650-$H650,0)","v":0},{"$f":"IF($G650-$H650<0,-$G650+$H650,0)","v":0},null,null,null,null,0,0]
["4062","4062. Gobiernos locales - Contribuciones",null,null,null,null,0,0,0,0,null,null,null,null,0,0]
["40631","40631. Gobiernos locales - Tasas - Licencia de apertura de establecimientos",null,null,null,null,0,0,0,0,null,null,null,null,0,0]
["40632","40632. Gobiernos locales - Tasas - Transporte público",null,null,null,null,0,0,0,0,null,null,null,null,0,0]
["40633","40633. Gobiernos locales - Tasas - Estacionamiento de vehículos",null,null,null,null,0,0,0,0,null,null,null,null,0,0]
["40634","40634. Gobiernos locales - Tasas - Servicios públicos o arbitrios",null,null,null,null,0,0,0,0,null,null,null,null,0,0]
["40635","40635. Gobiernos locales - Tasas - Servicios administrativos o derechos",null,null,null,null,0,0,0,0,null,null,null,null,0,0]
["407","407. Administradoras de fondos de pensiones",null,null,null,null,0,0,0,0,null,null,null,null,0,0]
["4081","4081. Empresas prestadoras de servicios de salud - Cuenta propia",null,null,null,null,0,0,0,0,null,null,null,null,0,0]
["4082","4082. Empresas prestadoras de servicios de salud - Cuenta de terceros",null,null,null,null,0,0,0,0,null,null,null,null,0,0]
["409","409. Otros costos administrativos e intereses",null,null,null,null,0,0,0,0,null,null,null,null,0,0]
["4111","4111. Remuneraciones por pagar - Sueldos y salarios por pagar",null,null,null,null,0,0,0,0,null,null,null,null,0,0]
["4112","4112. Remuneraciones por pagar - Comisiones por pagar",null,null,null,null,0,0,0,0,null,null,null,null,0,0]
["4113","4113. Remuneraciones por pagar - Remuneraciones en especie por pagar",null,null,null,null,0,0,0,0,null,null,null,null,0,0]
["4114","4114. Remuneraciones por pagar - Gratificaciones por pagar",null,null,null,null,0,0,0,0,null,null,null,null,0,0]
["4115","4115. Remuneraciones por pagar - Vacaciones por pagar",null,null,null,null,0,0,0,0,null,null,null,null,0,0]
["413","413. Participaciones de los trabajadores por pagar",null,null,null,null,0,0,0,0,null,null,null,null,0,0]
["4151","4151. Beneficios sociales de los trabajadores por pagar - Compensación por tiempo de servicios",null,null,null,null,0,0,0,0,null,null,null,null,0,0]
["4152","4152. Beneficios sociales de los trabajadores por pagar - Adelanto de compensación por tiempo de servicios",null,null,null,null,0,0,0,0,null,null,null,null,0,0]
["4153","4153. Beneficios sociales de los trabajadores por pagar - Pensiones y jubilaciones",null,null,null,null,0,0,0,0,null,null,null,null,0,0]
["419","419. Otras remuneraciones y participaciones por pagar",null,null,null,null,0,0,0,0,null,null,null,null,0,0]
["4211","4211. Facturas, boletas y otros comprobantes por pagar - No emitidas",null,null,null,null,0,0,0,0,null,null,null,null,0,0]
["4212","4212. Facturas, boletas y otros comprobantes por pagar - Emitidas",null,null,null,null,0,0,0,0,null,null,null,null,0,0]
["422","422. Anticipos a proveedores",null,null,null,null,0,0,0,0,null,null,null,null,0,0]
["423","423. Letras por pagar",null,null,null,null,0,0,0,0,null,null,null,null,0,0]
["424","424. Honorarios por pagar",null,null,null,null,0,0,0,0,null,null,null,null,0,0]
["43111","43111. Facturas, boletas y otros comprobantes por pagar - No emitidas - Matriz",null,null,null,null,0,0,0,0,null,null,null,null,0,0]
["43112","43112. Facturas, boletas y otros comprobantes por pagar - No emitidas - Subsidiarias",null,null,null,null,0,0,0,0,null,null,null,null,0,0]
["43113","43113. Facturas, boletas y otros comprobantes por pagar - No emitidas - Asociadas",null,null,null,null,0,0,0,0,null,null,null,null,0,0]
["43114","43114. Facturas, boletas y otros comprobantes por pagar - No emitidas - Sucursales",null,null,null,null,0,0,0,0,null,null,null,null,0,0]
["43115","43115. Facturas, boletas y otros comprobantes por pagar - No emitidas - Otros",null,null,null,null,0,0,0,0,null,null,null,null,0,0]
["43121","43121. Facturas, boletas y otros comprobantes por pagar - Emitidas - Matriz",null,null,null,null,0,0,0,0,null,null,null,null,0,0]
["43122","43122. Facturas, boletas y otros comprobantes por pagar - Emitidas - Subsidiarias",null,null,null,null,0,0,0,0,null,null,null,null,0,0]
["43123","43123. Facturas, boletas y otros comprobantes por pagar - Emitidas - Asociadas",null,null,null,null,0,0,0,0,null,null,null,null,0,0]
["43124","43124. Facturas, boletas y otros comprobantes por pagar - Emitidas - Sucursales",null,null,null,null,0,0,0,0,null,null,null,null,0,0]
["43125","43125. Facturas, boletas y otros comprobantes por pagar - Emitidas - Otros",null,null,null,null,0,0,0,0,null,null,null,null,0,0]
["43211","43211. Anticipos otorgados - Anticipos otorgados - Matriz",null,null,null,null,0,0,0,0,null,null,null,null,0,0]
["43212","43212. Anticipos otorgados - Anticipos otorgados - Subsidiarias",null,null,null,null,0,0,0,0,null,null,null,null,0,0]
["43213","43213. Anticipos otorgados - Anticipos otorgados - Asociadas",null,null,null,null,0,0,0,0,null,null,null,null,0,0]
["43214","43214. Anticipos otorgados - Anticipos otorgados - Sucursales",null,null,null,null,{"$f":"+C689+E689","v":0},0,0,0,null,null,null,null,0,0]
["43215","43215. Anticipos otorgados - Anticipos otorgados - Otros",null,null,null,null,0,0,0,0,null,null,null,null,0,0]
["43311","43311. Letras por pagar - Letras por pagar - Matriz",null,null,null,null,0,0,0,0,null,null,null,null,0,0]
["43312","43312. Letras por pagar - Letras por pagar - Subsidiarias",null,null,null,null,0,0,0,0,null,null,null,null,0,0]
["43313","43313. Letras por pagar - Letras por pagar - Asociadas",null,null,null,null,0,0,0,0,null,null,null,null,0,0]
["43314","43314. Letras por pagar - Letras por pagar - Sucursales",null,null,null,null,0,0,0,0,null,null,null,null,0,0]
["43315","43315. Letras por pagar - Letras por pagar - Otros",null,null,null,null,0,0,0,0,null,null,null,null,0,0]
["43411","43411. Honorarios por pagar - Honorarios por pagar - Matriz",null,null,null,null,0,0,0,0,null,null,null,null,0,0]
["43412","43412. Honorarios por pagar - Honorarios por pagar - Subsidiarias",null,null,null,null,0,0,0,0,null,null,null,null,0,0]
["43413","43413. Honorarios por pagar - Honorarios por pagar - Asociadas",null,null,null,null,0,0,0,0,null,null,null,null,0,0]
["43414","43414. Honorarios por pagar - Honorarios por pagar - Sucursales",null,null,null,null,0,0,0,0,null,null,null,null,0,0]
["43415","43415. Honorarios por pagar - Honorarios por pagar - Otros",null,null,null,null,0,0,0,0,null,null,null,null,0,0]
["4411","4411. Accionistas (o socios) - Préstamos",null,null,null,null,0,0,0,0,null,null,null,null,0,0]
["4412","4412. Accionistas (o socios) - Dividendos",null,null,null,null,0,0,0,0,null,null,null,null,0,0]
["4419","4419. Accionistas (o socios) - Otras cuentas por pagar",null,null,null,null,0,0,0,0,null,null,null,null,0,0]
["4421","4421. Directores - Dietas",null,null,null,null,0,0,0,0,null,null,null,null,0,0]
["4429","4429. Directores - Otras cuentas por pagar",null,null,null,null,0,0,0,0,null,null,null,null,0,0]
["443","443. Gerentes",null,null,null,null,0,0,0,0,null,null,null,null,0,0]
["4511","4511. Préstamos de instituciones financieras y otras entidades - Instituciones financieras",null,null,null,null,0,0,0,0,null,null,null,null,0,0]
["4512","4512. Préstamos de instituciones financieras y otras entidades - Otras entidades",null,null,null,null,0,0,0,0,null,null,null,null,0,0]
["452","452. Contratos de arrendamiento financiero",null,null,null,null,0,0,0,0,null,null,null,null,0,0]
["4531","4531. Obligaciones emitidas - Bonos emitidos",null,null,null,null,0,0,0,0,null,null,null,null,0,0]
["4532","4532. Obligaciones emitidas - Bonos titulizados",null,null,null,null,0,0,0,0,null,null,null,null,0,0]
["4533","4533. Obligaciones emitidas - Papeles comerciales",null,null,null,null,0,0,0,0,null,null,null,null,0,0]
["4539","4539. Obligaciones emitidas - Otras obligaciones",null,null,null,null,0,0,0,0,null,null,null,null,{"$f":"IF($I713-$J713+$K713-$L713+$M713-$N713>=0,$I713-$J713+$K713-$L713+$M713-$N713,0)","v":0},{"$f":"IF($I713-$J713+$K713-$L713+$M713-$N713<0,-($I713-$J713+$K713-$L713+$M713-$N713),0)","v":0}]
["4541","4541. Otros Instrumentos financieros por pagar - Letras",null,null,null,null,0,0,{"$f":"IF($G714-$H714>=0,$G714-$H714,0)","v":0},{"$f":"IF($G714-$H714<0,-$G714+$H714,0)","v":0},null,null,null,null,0,0]
["4542","4542. Otros Instrumentos financieros por pagar - Papeles comerciales",null,null,null,null,0,0,0,0,null,null,null,null,0,0]
["4543","4543. Otros Instrumentos financieros por pagar - Bonos",null,null,null,null,0,0,0,0,null,null,null,null,0,0]
["4544","4544. Otros Instrumentos financieros por pagar - Pagarés",null,null,null,null,0,0,0,0,null,null,null,null,0,0]
["4545","4545. Otros Instrumentos financieros por pagar - Facturas conformadas",null,null,null,null,0,0,0,0,null,null,null,null,0,0]
["4549","4549. Otros Instrumentos financieros por pagar - Otras obligaciones financieras",null,null,null,null,0,0,0,0,null,null,null,null,0,0]
["45511","45511. Costos de financiación por pagar - Préstamos de instituciones financieras y otras entidades - Instituciones financieras",null,null,null,null,0,0,0,0,null,null,null,null,0,0]
["45512","45512. Costos de financiación por pagar - Préstamos de instituciones financieras y otras entidades - Otras entidades",null,null,null,null,0,0,0,0,null,null,null,null,0,0]
["4552","4552. Costos de financiación por pagar - Contratos de arrendamiento financiero",null,null,null,null,0,0,0,0,null,null,null,null,0,0]
["45531","45531. Costos de financiación por pagar - Obligaciones emitidas - Bonos emitidos",null,null,null,null,0,0,0,0,null,null,null,null,0,0]
["45532","45532. Costos de financiación por pagar - Obligaciones emitidas - Bonos titulizados",null,null,null,null,0,0,0,0,null,null,null,null,0,0]
["45533","45533. Costos de financiación por pagar - Obligaciones emitidas - Papeles comerciales",null,null,null,null,0,0,0,0,null,null,null,null,0,0]
["45539","45539. Costos de financiación por pagar - Obligaciones emitidas - Otras obligaciones",null,null,null,null,0,0,0,0,null,null,null,null,0,0]
["45541","45541. Costos de financiación por pagar - Otros instrumentos financieros por pagar - Letras",null,null,null,null,0,0,0,0,null,null,null,null,0,0]
["45542","45542. Costos de financiación por pagar - Otros instrumentos financieros por pagar - Papeles comerciales",null,null,null,null,0,0,0,0,null,null,null,null,0,0]
["45543","45543. Costos de financiación por pagar - Otros instrumentos financieros por pagar - Bonos",null,null,null,null,0,0,0,0,null,null,null,null,0,0]
["45544","45544. Costos de financiación por pagar - Otros instrumentos financieros por pagar - Pagarés",null,null,null,null,0,0,0,0,null,null,null,null,0,0]
["45545","45545. Costos de financiación por pagar - Otros instrumentos financieros por pagar - Facturas conformadas",null,null,null,null,0,0,0,0,null,null,null,null,0,0]
["45549","45549. Costos de financiación por pagar - Otros instrumentos financieros por pagar - Otras obligaciones financieras",null,null,null,null,0,0,0,0,null,null,null,null,0,0]
["456","456. Préstamos con compromisos de recompra",null,null,null,null,0,0,0,0,null,null,null,null,0,0]
["461","461. Reclamaciones de terceros",null,null,null,null,0,0,0,0,null,null,null,null,0,0]
["4641","4641. Pasivos por instrumentos financieros - Instrumentos financieros primarios",null,null,null,null,0,0,0,0,null,null,null,null,0,0]
["46421","46421. Pasivos por instrumentos financieros - Instrumentos financieros derivados - Cartera de negociación",null,null,null,null,0,0,0,0,null,null,null,null,0,0]
["46422","46422. Pasivos por instrumentos financieros - Instrumentos financieros derivados - Instrumentos de cobertura",null,null,null,null,0,0,0,0,null,null,null,null,0,0]
["4651","4651. Pasivos por compra de activo inmovilizado - Inversiones mobiliarias",null,null,null,null,0,0,0,0,null,null,null,null,0,0]
["4652","4652. Pasivos por compra de activo inmovilizado - Inversiones inmobiliarias",null,null,null,null,0,0,0,0,null,null,null,null,0,0]
["4653","4653. Pasivos por compra de activo inmovilizado - Activos adquiridos en arrendamiento financiero",null,null,null,null,0,0,0,0,null,null,null,null,0,0]
["4654","4654. Pasivos por compra de activo inmovilizado - Inmuebles, maquinaria y equipo",null,null,null,null,0,0,0,0,null,null,null,null,0,0]
["4655","4655. Pasivos por compra de activo inmovilizado - Intangibles",null,null,null,null,0,0,0,0,null,null,null,null,0,0]
["4656","4656. Pasivos por compra de activo inmovilizado - Activos biológicos",null,null,null,null,0,0,0,0,null,null,null,null,0,0]
["467","467. Depósitos recibidos en garantía",null,null,null,null,0,0,0,0,null,null,null,null,0,0]
["4691","4691. Otras cuentas por pagar diversas - Subsidios gubernamentales",null,null,null,null,0,0,0,0,null,null,null,null,0,0]
["4692","4692. Otras cuentas por pagar diversas - Donaciones condicionadas",null,null,null,null,0,0,0,0,null,null,null,null,0,0]
["4699","4699. Otras cuentas por pagar diversas - Otras cuentas por pagar",null,null,null,null,0,0,0,0,null,null,null,null,0,0]
["4711","4711. Préstamos - Matriz",null,null,null,null,0,0,0,0,null,null,null,null,0,0]
["4712","4712. Préstamos - Subsidiarias",null,null,null,null,0,0,0,0,null,null,null,null,0,0]
["4713","4713. Préstamos - Asociadas",null,null,null,null,0,0,0,0,null,null,null,null,0,0]
["4714","4714. Préstamos - Sucursales",null,null,null,null,0,0,0,0,null,null,null,null,0,0]
["4715","4715. Préstamos - Otras",null,null,null,null,0,0,0,0,null,null,null,null,0,0]
["4721","4721. Costos de financiación - Matriz",null,null,null,null,{"$f":"+C753+E753","v":0},0,0,0,null,null,null,null,0,0]
["4722","4722. Costos de financiación - Subsidiarias",null,null,null,null,0,0,0,0,null,null,null,null,0,0]
["4723","4723. Costos de financiación - Asociadas",null,null,null,null,0,0,0,0,null,null,null,null,0,0]
["4724","4724. Costos de financiación - Sucursales",null,null,null,null,0,0,0,0,null,null,null,null,0,0]
["4725","4725. Costos de financiación - Otras",null,null,null,null,0,0,0,0,null,null,null,null,0,0]
["4731","4731. Anticipos recibidos - Matriz",null,null,null,null,0,0,0,0,null,null,null,null,0,0]
["4732","4732. Anticipos recibidos - Subsidiarias",null,null,null,null,0,0,0,0,null,null,null,null,0,0]
["4733","4733. Anticipos recibidos - Asociadas",null,null,null,null,0,0,0,0,null,null,null,null,0,0]
["4734","4734. Anticipos recibidos - Sucursales",null,null,null,null,0,0,0,0,null,null,null,null,0,0]
["4735","4735. Anticipos recibidos - Otras",null,null,null,null,0,0,0,0,null,null,null,null,0,0]
["4741","4741. Regalías - Matriz",null,null,null,null,0,0,0,0,null,null,null,null,0,0]
["4742","4742. Regalías - Subsidiarias",null,null,null,null,0,0,0,0,null,null,null,null,0,0]
["4743","4743. Regalías - Asociadas",null,null,null,null,0,0,0,0,null,null,null,null,0,0]
["4744","4744. Regalías - Sucursales",null,null,null,null,0,0,0,0,null,null,null,null,0,0]
["4745","4745. Regalías - Otras",null,null,null,null,0,0,0,0,null,null,null,null,0,0]
["4751","4751. Dividendos - Matriz",null,null,null,null,0,0,0,0,null,null,null,null,0,0]
["4752","4752. Dividendos - Subsidiarias",null,null,null,null,0,0,0,0,null,null,null,null,0,0]
["4753","4753. Dividendos - Asociadas",null,null,null,null,0,0,0,0,null,null,null,null,0,0]
["4754","4754. Dividendos - Sucursales",null,null,null,null,0,0,0,0,null,null,null,null,0,0]
["4755","4755. Dividendos - Otras",null,null,null,null,0,0,0,0,null,null,null,null,0,0]
["47711","47711. Pasivo por compra de activo inmovilizado - Inversiones mobiliarias - Matriz",null,null,null,null,0,0,0,0,null,null,null,null,0,0]
["47712","47712. Pasivo por compra de activo inmovilizado - Inversiones mobiliarias - Subsidiarias",null,null,null,null,0,0,0,0,null,null,null,null,0,0]
["47713","47713. Pasivo por compra de activo inmovilizado - Inversiones mobiliarias - Asociadas",null,null,null,null,0,0,0,0,null,null,null,null,0,0]
["47714","47714. Pasivo por compra de activo inmovilizado - Inversiones mobiliarias - Sucursales",null,null,null,null,0,0,0,0,null,null,null,null,0,0]
["47715","47715. Pasivo por compra de activo inmovilizado - Inversiones mobiliarias - Otras",null,null,null,null,0,0,0,0,null,null,null,null,{"$f":"IF($I777-$J777+$K777-$L777+$M777-$N777>=0,$I777-$J777+$K777-$L777+$M777-$N777,0)","v":0},{"$f":"IF($I777-$J777+$K777-$L777+$M777-$N777<0,-($I777-$J777+$K777-$L777+$M777-$N777),0)","v":0}]
["47721","47721. Pasivo por compra de activo inmovilizado - Inversiones inmobiliarias - Matriz",null,null,null,null,0,0,{"$f":"IF($G778-$H778>=0,$G778-$H778,0)","v":0},{"$f":"IF($G778-$H778<0,-$G778+$H778,0)","v":0},null,null,null,null,0,0]
["47722","47722. Pasivo por compra de activo inmovilizado - Inversiones inmobiliarias - Subsidiarias",null,null,null,null,0,0,0,0,null,null,null,null,0,0]
["47723","47723. Pasivo por compra de activo inmovilizado - Inversiones inmobiliarias - Asociadas",null,null,null,null,0,0,0,0,null,null,null,null,0,0]
["47724","47724. Pasivo por compra de activo inmovilizado - Inversiones inmobiliarias - Sucursales",null,null,null,null,0,0,0,0,null,null,null,null,0,0]
["47725","47725. Pasivo por compra de activo inmovilizado - Inversiones inmobiliarias - Otras",null,null,null,null,0,0,0,0,null,null,null,null,0,0]
["47731","47731. Pasivo por compra de activo inmovilizado - Activos adquiridos en arrendamiento financiero - Matriz",null,null,null,null,0,0,0,0,null,null,null,null,0,0]
["47732","47732. Pasivo por compra de activo inmovilizado - Activos adquiridos en arrendamiento financiero - Subsidiarias",null,null,null,null,0,0,0,0,null,null,null,null,0,0]
["47733","47733. Pasivo por compra de activo inmovilizado - Activos adquiridos en arrendamiento financiero - Asociadas",null,null,null,null,0,0,0,0,null,null,null,null,0,0]
["47734","47734. Pasivo por compra de activo inmovilizado - Activos adquiridos en arrendamiento financiero - Sucursales",null,null,null,null,0,0,0,0,null,null,null,null,0,0]
["47735","47735. Pasivo por compra de activo inmovilizado - Activos adquiridos en arrendamiento financiero - Otras",null,null,null,null,0,0,0,0,null,null,null,null,0,0]
["47741","47741. Pasivo por compra de activo inmovilizado - Inmuebles, maquinaria y equipo - Matriz",null,null,null,null,0,0,0,0,null,null,null,null,0,0]
["47742","47742. Pasivo por compra de activo inmovilizado - Inmuebles, maquinaria y equipo - Subsidiarias",null,null,null,null,0,0,0,0,null,null,null,null,0,0]
["47743","47743. Pasivo por compra de activo inmovilizado - Inmuebles, maquinaria y equipo - Asociadas",null,null,null,null,0,0,0,0,null,null,null,null,0,0]
["47744","47744. Pasivo por compra de activo inmovilizado - Inmuebles, maquinaria y equipo - Sucursales",null,null,null,null,0,0,0,0,null,null,null,null,0,0]
["47745","47745. Pasivo por compra de activo inmovilizado - Inmuebles, maquinaria y equipo - Otras",null,null,null,null,0,0,0,0,null,null,null,null,0,0]
["47751","47751. Pasivo por compra de activo inmovilizado - Intangibles - Matriz",null,null,null,null,0,0,0,0,null,null,null,null,0,0]
["47752","47752. Pasivo por compra de activo inmovilizado - Intangibles - Subsidiarias",null,null,null,null,0,0,0,0,null,null,null,null,0,0]
["47753","47753. Pasivo por compra de activo inmovilizado - Intangibles - Asociadas",null,null,null,null,0,0,0,0,null,null,null,null,0,0]
["47754","47754. Pasivo por compra de activo inmovilizado - Intangibles - Sucursales",null,null,null,null,0,0,0,0,null,null,null,null,0,0]
["47755","47755. Pasivo por compra de activo inmovilizado - Intangibles - Otras",null,null,null,null,0,0,0,0,null,null,null,null,0,0]
["47761","47761. Pasivo por compra de activo inmovilizado - Activos biológicos - Matriz",null,null,null,null,0,0,0,0,null,null,null,null,0,0]
["47762","47762. Pasivo por compra de activo inmovilizado - Activos biológicos - Subsidiarias",null,null,null,null,0,0,0,0,null,null,null,null,0,0]
["47763","47763. Pasivo por compra de activo inmovilizado - Activos biológicos - Asociadas",null,null,null,null,0,0,0,0,null,null,null,null,0,0]
["47764","47764. Pasivo por compra de activo inmovilizado - Activos biológicos - Sucursales",null,null,null,null,0,0,0,0,null,null,null,null,0,0]
["47765","47765. Pasivo por compra de activo inmovilizado - Activos biológicos - Otras",null,null,null,null,0,0,0,0,null,null,null,null,0,0]
["47911","47911. Otras cuentas por pagar diversas - Otras cuentas por pagar diversas - Matriz",null,null,null,null,0,0,0,0,null,null,null,null,0,0]
["47912","47912. Otras cuentas por pagar diversas - Otras cuentas por pagar diversas - Subsidiarias",null,null,null,null,0,0,0,0,null,null,null,null,0,0]
["47913","47913. Otras cuentas por pagar diversas - Otras cuentas por pagar diversas - Asociadas",null,null,null,null,0,0,0,0,null,null,null,null,0,0]
["47914","47914. Otras cuentas por pagar diversas - Otras cuentas por pagar diversas - Sucursales",null,null,null,null,0,0,0,0,null,null,null,null,0,0]
["47915","47915. Otras cuentas por pagar diversas - Otras cuentas por pagar diversas - Otras",null,null,null,null,0,0,0,0,null,null,null,null,0,0]
["481","481. Provisión para litigios",null,null,null,null,0,0,0,0,null,null,null,null,0,0]
["482","482. Provisión por desmantelamiento, retiro o rehabilitación del inmovilizado",null,null,null,null,0,0,0,0,null,null,null,null,0,0]
["483","483. Provisión para reestructuraciones",null,null,null,null,0,0,0,0,null,null,null,null,0,0]
["484","484. Provisión para protección y remediación del medio ambiente",null,null,null,null,0,0,0,0,null,null,null,null,0,0]
["485","485. Provisión para gastos de responsabilidad social",null,null,null,null,0,0,0,0,null,null,null,null,0,0]
["486","486. Provisión para garantías",null,null,null,null,0,0,0,0,null,null,null,null,0,0]
["489","489. Otras provisiones",null,null,null,null,0,0,0,0,null,null,null,null,0,0]
["4911","4911. Impuesto a la renta diferido - Impuesto a la renta diferido – Patrimonio",null,null,null,null,0,0,0,0,null,null,null,null,0,0]
["4912","4912. Impuesto a la renta diferido - Impuesto a la renta diferido – Resultados",null,null,null,null,0,0,0,0,null,null,null,null,0,0]
["4921","4921. Participaciones de los trabajadores diferidas - Participaciones de los trabajadores diferidas – Patrimonio",null,null,null,null,{"$f":"+C817+E817","v":0},0,0,0,null,null,null,null,0,0]
["4922","4922. Participaciones de los trabajadores diferidas - Participaciones de los trabajadores diferidas – Resultados",null,null,null,null,0,0,0,0,null,null,null,null,0,0]
["4931","4931. Intereses diferidos - Intereses no devengados en transacciones con terceros",null,null,null,null,0,0,0,0,null,null,null,null,0,0]
["4932","4932. Intereses diferidos - Intereses no devengados en medición a valor descontado",null,null,null,null,0,0,0,0,null,null,null,null,0,0]
["494","494. Ganancia en venta con arrendamiento financiero paralelo",null,null,null,null,0,0,0,0,null,null,null,null,0,0]
["495","495. Subsidios recibidos diferidos",null,null,null,null,0,0,0,0,null,null,null,null,0,0]
["496","496. Ingresos diferidos",null,null,null,null,0,0,0,0,null,null,null,null,0,0]
["497","497. Costos diferidos",null,null,null,null,0,0,0,0,null,null,null,null,0,0]
["5011","5011. Capital social - Acciones",null,null,null,null,0,0,0,0,null,null,null,null,0,0]
["5012","5012. Capital social - Participaciones",null,null,null,null,0,0,0,0,null,null,null,null,0,0]
["502","502. Acciones en tesorería",null,null,null,null,0,0,0,0,null,null,null,null,0,0]
["511","511. Acciones de inversión",null,null,null,null,0,0,0,0,null,null,null,null,0,0]
["512","512. Acciones de inversión en tesorería",null,null,null,null,0,0,0,0,null,null,null,null,0,0]
["521","521. Primas (descuento) de acciones",null,null,null,null,0,0,0,0,null,null,null,null,0,0]
["5221","5221. Capitalizaciones en trámite - Aportes",null,null,null,null,0,0,0,0,null,null,null,null,0,0]
["5222","5222. Capitalizaciones en trámite - Reservas",null,null,null,null,0,0,0,0,null,null,null,null,0,0]
["5223","5223. Capitalizaciones en trámite - Acreencias",null,null,null,null,0,0,0,0,null,null,null,null,0,0]
["5224","5224. Capitalizaciones en trámite - Utilidades",null,null,null,null,0,0,0,0,null,null,null,null,0,0]
["523","523. Reducciones de capital pendientes de formalización",null,null,null,null,0,0,0,0,null,null,null,null,0,0]
["561","561. Diferencia en cambio de inversiones permanentes en entidades extranjeras",null,null,null,null,0,0,0,0,null,null,null,null,0,0]
["562","562. Instrumentos financieros – Cobertura de flujo de efectivo",null,null,null,null,0,0,0,0,null,null,null,null,0,0]
["5631","5631. Ganancia o pérdida en activos o pasivos financieros disponibles para la venta - Ganancia",null,null,null,null,0,0,0,0,null,null,null,null,0,0]
["5632","5632. Ganancia o pérdida en activos o pasivos financieros disponibles para la venta - Pérdida",null,null,null,null,0,0,0,0,null,null,null,null,0,0]
["5641","5641. Ganancia o pérdida en activos o pasivos financieros disponibles para la venta – Compra o venta convencional fecha de liquidación - Ganancia",null,null,null,null,0,0,0,0,null,null,null,null,0,0]
["5642","5642. Ganancia o pérdida en activos o pasivos financieros disponibles para la venta – Compra o venta convencional fecha de liquidación - Pérdida",null,null,null,null,0,0,0,0,null,null,null,null,{"$f":"IF($I841-$J841+$K841-$L841+$M841-$N841>=0,$I841-$J841+$K841-$L841+$M841-$N841,0)","v":0},{"$f":"IF($I841-$J841+$K841-$L841+$M841-$N841<0,-($I841-$J841+$K841-$L841+$M841-$N841),0)","v":0}]
["5711","5711. Excedente de revaluación - Inversiones inmobiliarias",null,null,null,null,0,0,{"$f":"IF($G842-$H842>=0,$G842-$H842,0)","v":0},{"$f":"IF($G842-$H842<0,-$G842+$H842,0)","v":0},null,null,null,null,0,0]
["5712","5712. Excedente de revaluación - Inmuebles, maquinaria y equipos",null,null,null,null,0,0,0,0,null,null,null,null,0,0]
["5713","5713. Excedente de revaluación - Intangibles",null,null,null,null,0,0,0,0,null,null,null,null,0,0]
["572","572. Excedente de revaluación – Acciones liberadas recibidas",null,null,null,null,0,0,0,0,null,null,null,null,0,0]
["573","573. Participación en excedente de revaluación – Inversiones en entidades relacionadas",null,null,null,null,0,0,0,0,null,null,null,null,0,0]
["581","581. Reinversión",null,null,null,null,0,0,0,0,null,null,null,null,0,0]
["582","582. Legal",null,null,null,null,0,0,0,0,null,null,null,null,0,0]
["583","583. Contractuales",null,null,null,null,0,0,0,0,null,null,null,null,0,0]
["584","584. Estatutarias",null,null,null,null,0,0,0,0,null,null,null,null,0,0]
["585","585. Facultativas",null,null,null,null,0,0,0,0,null,null,null,null,0,0]
["589","589. Otras reservas",null,null,null,null,0,0,0,0,null,null,null,null,0,0]
["5911","5911. Utilidades no distribuidas - Utilidades acumuladas",null,null,null,null,0,0,0,0,null,null,null,null,0,0]
["5912","5912. Utilidades no distribuidas - Ingresos de años anteriores",null,null,null,null,0,0,0,0,null,null,null,null,0,0]
["5921","5921. Pérdidas acumuladas - Pérdidas acumuladas",null,null,null,null,0,0,0,0,null,null,null,null,0,0]
["5922","5922. Pérdidas acumuladas - Gastos de años anteriores",null,null,null,null,0,0,0,0,null,null,null,null,0,0]
["6011","6011. Mercaderías - Mercaderías manufacturadas",null,null,null,null,{"$f":"+E857","v":0},{"$f":"+F857","v":0},{"$f":"IF($E857-$F857>=0,$E857-$F857,0)","v":0},{"$f":"IF($E857-$F857<0,-$E857+$F857,0)","v":0},null,null,null,null,null,null,{"$f":"IF($I857-$J857+$K857-$L857+$M857-$N857>=0,$I857-$J857+$K857-$L857+$M857-$N857,0)","v":0},{"$f":"IF($I857-$J857+$K857-$L857+$M857-$N857<0,-($I857-$J857+$K857-$L857+$M857-$N857),0)","v":0}]
["6012","6012. Mercaderías - Mercaderías de extracción",null,null,null,null,{"$f":"+E858","v":0},0,0,0,null,null,null,null,null,null,{"$f":"IF($I858-$J858+$K858-$L858+$M858-$N858>=0,$I858-$J858+$K858-$L858+$M858-$N858,0)","v":0},{"$f":"IF($I858-$J858+$K858-$L858+$M858-$N858<0,-($I858-$J858+$K858-$L858+$M858-$N858),0)","v":0}]
["6013","6013. Mercaderías - Mercaderías agropecuarias y piscícolas",null,null,null,null,0,0,0,0,null,null,null,null,null,null,0,0]
["6014","6014. Mercaderías - Mercaderías inmuebles",null,null,null,null,0,0,0,0,null,null,null,null,null,null,0,0]
["6018","6018. Mercaderías - Otras mercaderías",null,null,null,null,0,0,0,0,null,null,null,null,null,null,0,0]
["6021","6021. Materias primas - Materias primas para productos manufacturados",null,null,null,null,0,0,0,0,null,null,null,null,null,null,0,0]
["6022","6022. Materias primas - Materias primas para productos de extracción",null,null,null,null,0,0,0,0,null,null,null,null,null,null,0,0]
["6023","6023. Materias primas - Materias primas para productos agropecuarios y piscícolas",null,null,null,null,0,0,0,0,null,null,null,null,null,null,0,0]
["6024","6024. Materias primas - Materias primas para productos inmuebles",null,null,null,null,0,0,0,0,null,null,null,null,null,null,0,0]
["6031","6031. Materiales auxiliares, suministros y repuestos - Materiales auxiliares",null,null,null,null,0,0,0,0,null,null,null,null,null,null,0,0]
["6032","6032. Materiales auxiliares, suministros y repuestos - Suministros",null,null,null,null,0,0,0,0,null,null,null,null,null,null,0,0]
["6033","6033. Materiales auxiliares, suministros y repuestos - Repuestos",null,null,null,null,0,0,0,0,null,null,null,null,null,null,0,0]
["6041","6041. Envases y embalajes - Envases",null,null,null,null,0,0,0,0,null,null,null,null,null,null,0,0]
["6042","6042. Envases y embalajes - Embalajes",null,null,null,null,0,0,0,0,null,null,null,null,null,null,0,0]
["60911","60911. Costos vinculados con las compras - Costos vinculados con las compras de mercaderías - Transporte",null,null,null,null,0,0,0,0,null,null,null,null,null,null,0,0]
["60912","60912. Costos vinculados con las compras - Costos vinculados con las compras de mercaderías - Seguros",null,null,null,null,0,0,0,0,null,null,null,null,null,null,0,0]
["60913","60913. Costos vinculados con las compras - Costos vinculados con las compras de mercaderías - Derechos aduaneros",null,null,null,null,0,0,0,0,null,null,null,null,null,null,0,0]
["60914","60914. Costos vinculados con las compras - Costos vinculados con las compras de mercaderías - Comisiones",null,null,null,null,0,0,0,0,null,null,null,null,null,null,0,0]
["60919","60919. Costos vinculados con las compras - Costos vinculados con las compras de mercaderías - Otros costos vinculados con las compras de mercaderías",null,null,null,null,0,0,0,0,null,null,null,null,null,null,0,0]
["60921","60921. Costos vinculados con las compras - Costos vinculados con las compras de materias primas - Transporte",null,null,null,null,0,0,0,0,null,null,null,null,null,null,0,0]
["60922","60922. Costos vinculados con las compras - Costos vinculados con las compras de materias primas - Seguros",null,null,null,null,0,0,0,0,null,null,null,null,null,null,0,0]
["60923","60923. Costos vinculados con las compras - Costos vinculados con las compras de materias primas - Derechos aduaneros",null,null,null,null,0,0,0,0,null,null,null,null,null,null,0,0]
["60924","60924. Costos vinculados con las compras - Costos vinculados con las compras de materias primas - Comisiones",null,null,null,null,0,0,0,0,null,null,null,null,null,null,0,0]
["60925","60925. Costos vinculados con las compras - Costos vinculados con las compras de materias primas - Otros costos vinculados con las compras de materias primas",null,null,null,null,0,0,0,0,null,null,null,null,null,null,0,0]
["60931","60931. Costos vinculados con las compras - Costos vinculados con las compras de materiales, suministros y repuestos - Transporte",null,null,null,null,0,0,0,0,null,null,null,null,null,null,0,0]
["60932","60932. Costos vinculados con las compras - Costos vinculados con las compras de materiales, suministros y repuestos - Seguros",null,null,null,null,0,0,0,0,null,null,null,null,null,null,0,0]
["60933","60933. Costos vinculados con las compras - Costos vinculados con las compras de materiales, suministros y repuestos - Derechos aduaneros",null,null,null,null,0,0,0,0,null,null,null,null,null,null,0,0]
["60934","60934. Costos vinculados con las compras - Costos vinculados con las compras de materiales, suministros y repuestos - Comisiones",null,null,null,null,0,0,0,0,null,null,null,null,null,null,0,0]
["60935","60935. Costos vinculados con las compras - Costos vinculados con las compras de materiales, suministros y repuestos - Otros costos vinculados con las compras de materiales, suministros y repuestos",null,null,null,null,0,0,0,0,null,null,null,null,null,null,0,0]
["60941","60941. Costos vinculados con las compras - Costos vinculados con las compras de envases y embalajes - Transporte",null,null,null,null,0,0,0,0,null,null,null,null,null,null,0,0]
["60942","60942. Costos vinculados con las compras - Costos vinculados con las compras de envases y embalajes - Seguros",null,null,null,null,0,0,0,0,null,null,null,null,null,null,0,0]
["60943","60943. Costos vinculados con las compras - Costos vinculados con las compras de envases y embalajes - Derechos aduaneros",null,null,null,null,0,0,0,0,null,null,null,null,null,null,0,0]
["60944","60944. Costos vinculados con las compras - Costos vinculados con las compras de envases y embalajes - Comisiones",null,null,null,null,0,0,0,0,null,null,null,null,null,null,0,0]
["60945","60945. Costos vinculados con las compras - Costos vinculados con las compras de envases y embalajes - Otros costos vinculados con las compras de envases y embalajes",null,null,null,null,0,0,0,0,null,null,null,null,null,null,0,0]
["6111","6111. Mercaderías - Mercaderías manufacturadas",null,null,null,null,0,0,0,0,null,null,null,null,null,null,0,0]
["6112","6112. Mercaderías - Mercaderías de extracción",null,null,null,null,0,0,0,0,null,null,null,null,null,null,0,0]
["6113","6113. Mercaderías - Mercaderías agropecuarias y piscícolas",null,null,null,null,0,0,0,0,null,null,null,null,null,null,0,0]
["6114","6114. Mercaderías - Mercaderías inmuebles",null,null,null,null,0,0,0,0,null,null,null,null,null,null,0,0]
["6115","6115. Mercaderías - Otras mercaderías",null,null,null,null,0,0,0,0,null,null,null,null,null,null,0,0]
["6121","6121. Materias primas - Materias primas para productos manufacturados",null,null,null,null,0,0,0,0,null,null,null,null,null,null,0,0]
["6122","6122. Materias primas - Materias primas para productos de extracción",null,null,null,null,0,0,0,0,null,null,null,null,null,null,0,0]
["6123","6123. Materias primas - Materias primas para productos agropecuarios y piscícolas",null,null,null,null,0,0,0,0,null,null,null,null,null,null,0,0]
["6124","6124. Materias primas - Materias primas para productos inmuebles",null,null,null,null,0,0,0,0,null,null,null,null,null,null,0,0]
["6131","6131. Materiales auxiliares, suministros y repuestos - Materiales auxiliares",null,null,null,null,0,0,0,0,null,null,null,null,null,null,0,0]
["6132","6132. Materiales auxiliares, suministros y repuestos - Suministros",null,null,null,null,0,0,0,0,null,null,null,null,null,null,0,0]
["6133","6133. Materiales auxiliares, suministros y repuestos - Repuestos",null,null,null,null,0,0,0,0,null,null,null,null,null,null,0,0]
["6141","6141. Envases y embalajes - Envases",null,null,null,null,0,0,0,0,null,null,null,null,null,null,0,0]
["6142","6142. Envases y embalajes - Embalajes",null,null,null,null,0,0,0,0,null,null,null,null,null,null,0,0]
["6211","6211. Remuneraciones - Sueldos y salarios",null,null,null,null,0,0,0,0,null,null,null,null,null,null,0,0]
["6212","6212. Remuneraciones - Comisiones",null,null,null,null,0,0,0,0,null,null,null,null,null,null,0,0]
["6213","6213. Remuneraciones - Remuneraciones en especie",null,null,null,null,0,0,0,0,null,null,null,null,null,null,0,0]
["6214","6214. Remuneraciones - Gratificaciones",null,null,null,null,0,0,0,0,null,null,null,null,null,null,0,0]
["6215","6215. Remuneraciones - Vacaciones",null,null,null,null,0,0,0,0,null,null,null,null,null,null,0,0]
["622","622. Otras remuneraciones",null,null,null,null,0,0,0,0,null,null,null,null,null,null,0,0]
["623","623. Indemnizaciones al personal",null,null,null,null,0,0,0,0,null,null,null,null,null,null,0,0]
["624","624. Capacitación",null,null,null,null,0,0,0,0,null,null,null,null,null,null,0,0]
["625","625. Atención al personal",null,null,null,null,0,0,0,0,null,null,null,null,null,null,0,0]
["626","626. Gerentes",null,null,null,null,0,0,0,0,null,null,null,null,null,null,0,0]
["6271","6271. Seguridad, previsión social y otras contribuciones - Régimen de prestaciones de salud",null,null,null,null,0,0,0,0,null,null,null,null,null,null,0,0]
["6272","6272. Seguridad, previsión social y otras contribuciones - Régimen de pensiones",null,null,null,null,0,0,0,0,null,null,null,null,null,null,0,0]
["6273","6273. Seguridad, previsión social y otras contribuciones - Seguro complementario de trabajo de riesgo, accidentes de trabajo y enfermedades profesionales",null,null,null,null,0,0,0,0,null,null,null,null,null,null,0,0]
["6274","6274. Seguridad, previsión social y otras contribuciones - Seguro de vida",null,null,null,null,0,0,0,0,null,null,null,null,null,null,0,0]
["6275","6275. Seguridad, previsión social y otras contribuciones - Seguros particulares de prestaciones de salud – EPS y otros particulares",null,null,null,null,0,0,0,0,null,null,null,null,null,null,0,0]
["6276","6276. Seguridad, previsión social y otras contribuciones - Caja de beneficios de seguridad social del pescador",null,null,null,null,0,0,0,0,null,null,null,null,null,null,0,0]
["6277","6277. Seguridad, previsión social y otras contribuciones - Contribuciones al SENCICO y el SENATI",null,null,null,null,0,0,{"$f":"IF($E921-$F921>=0,$E921-$F921,0)","v":0},{"$f":"IF($E921-$F921<0,-$E921+$F921,0)","v":0},null,null,null,null,null,null,0,0]
["628","628. Retribuciones al directorio",null,null,null,null,{"$f":"+E922","v":0},0,0,0,null,null,null,null,null,null,{"$f":"IF($I922-$J922+$K922-$L922+$M922-$N922>=0,$I922-$J922+$K922-$L922+$M922-$N922,0)","v":0},{"$f":"IF($I922-$J922+$K922-$L922+$M922-$N922<0,-($I922-$J922+$K922-$L922+$M922-$N922),0)","v":0}]
["6291","6291. Beneficios sociales de los trabajadores - Compensación por tiempo de servicio",null,null,null,null,0,0,0,0,null,null,null,null,null,null,0,0]
["6292","6292. Beneficios sociales de los trabajadores - Pensiones y jubilaciones",null,null,null,null,0,0,0,0,null,null,null,null,null,null,0,0]
["6293","6293. Beneficios sociales de los trabajadores - Otros beneficios post-empleo",null,null,null,null,0,0,0,0,null,null,null,null,null,null,0,0]
["63111","63111. Transporte, correos y gastos de viaje - Transporte - De carga",null,null,null,null,0,0,0,0,null,null,null,null,null,null,0,0]
["63112","63112. Transporte, correos y gastos de viaje - Transporte - De pasajeros",null,null,null,null,0,0,0,0,null,null,null,null,null,null,0,0]
["6312","6312. Transporte, correos y gastos de viaje - Correos",null,null,null,null,0,0,0,0,null,null,null,null,null,null,0,0]
["6313","6313. Transporte, correos y gastos de viaje - Alojamiento",null,null,null,null,0,0,0,0,null,null,null,null,null,null,0,0]
["6314","6314. Transporte, correos y gastos de viaje - Alimentación",null,null,null,null,0,0,0,0,null,null,null,null,null,null,0,0]
["6315","6315. Transporte, correos y gastos de viaje - Otros gastos de viaje",null,null,null,null,0,0,0,0,null,null,null,null,null,null,0,0]
["6321","6321. Asesoría y consultoría - Administrativa",null,null,null,null,0,0,0,0,null,null,null,null,null,null,0,0]
["6322","6322. Asesoría y consultoría - Legal y tributaria",null,null,null,null,0,0,0,0,null,null,null,null,null,null,0,0]
["6323","6323. Asesoría y consultoría - Auditoría y contable",null,null,null,null,0,0,0,0,null,null,null,null,null,null,0,0]
["6324","6324. Asesoría y consultoría - Mercadotecnia",null,null,null,null,0,0,0,0,null,null,null,null,null,null,0,0]
["6325","6325. Asesoría y consultoría - Medioambiental",null,null,null,null,0,0,0,0,null,null,null,null,null,null,0,0]
["6326","6326. Asesoría y consultoría - Investigación y desarrollo",null,null,null,null,0,0,0,0,null,null,null,null,null,null,0,0]
["6327","6327. Asesoría y consultoría - Producción",null,null,null,null,0,0,0,0,null,null,null,null,null,null,0,0]
["6329","6329. Asesoría y consultoría - Otros",null,null,null,null,0,0,0,0,null,null,null,null,null,null,0,0]
["633","633. Producción encargada a terceros",null,null,null,null,0,0,0,0,null,null,null,null,null,null,0,0]
["6341","6341. Mantenimiento y reparaciones - Inversión inmobiliaria",null,null,null,null,0,0,0,0,null,null,null,null,null,null,0,0]
["6342","6342. Mantenimiento y reparaciones - Activos adquiridos en arrendamiento financiero",null,null,null,null,0,0,0,0,null,null,null,null,null,null,0,0]
["6343","6343. Mantenimiento y reparaciones - Inmuebles, maquinaria y equipo",null,null,null,null,0,0,0,0,null,null,null,null,null,null,0,0]
["6344","6344. Mantenimiento y reparaciones - Intangibles",null,null,null,null,0,0,0,0,null,null,null,null,null,null,0,0]
["6345","6345. Mantenimiento y reparaciones - Activos biológicos",null,null,null,null,0,0,0,0,null,null,null,null,null,null,0,0]
["6351","6351. Alquileres - Terrenos",null,null,null,null,0,0,0,0,null,null,null,null,null,null,0,0]
["6352","6352. Alquileres - Edificaciones",null,null,null,null,0,0,0,0,null,null,null,null,null,null,0,0]
["6353","6353. Alquileres - Maquinarias y equipos de explotación",null,null,null,null,0,0,0,0,null,null,null,null,null,null,0,0]
["6354","6354. Alquileres - Equipo de transporte",null,null,null,null,0,0,0,0,null,null,null,null,null,null,0,0]
["6356","6356. Alquileres - Equipos diversos",null,null,null,null,0,0,0,0,null,null,null,null,null,null,0,0]
["6361","6361. Servicios básicos - Energía eléctrica",null,null,null,null,0,0,0,0,null,null,null,null,null,null,0,0]
["6362","6362. Servicios básicos - Gas",null,null,null,null,0,0,0,0,null,null,null,null,null,null,0,0]
["6363","6363. Servicios básicos - Agua",null,null,null,null,0,0,0,0,null,null,null,null,null,null,0,0]
["6364","6364. Servicios básicos - Teléfono",null,null,null,null,0,0,0,0,null,null,null,null,null,null,0,0]
["6365","6365. Servicios básicos - Internet",null,null,null,null,0,0,0,0,null,null,null,null,null,null,0,0]
["6366","6366. Servicios básicos - Radio",null,null,null,null,0,0,0,0,null,null,null,null,null,null,0,0]
["6367","6367. Servicios básicos - Cable",null,null,null,null,0,0,0,0,null,null,null,null,null,null,0,0]
["6371","6371. Publicidad, publicaciones, relaciones públicas - Publicidad",null,null,null,null,0,0,0,0,null,null,null,null,null,null,0,0]
["6372","6372. Publicidad, publicaciones, relaciones públicas - Publicaciones",null,null,null,null,0,0,0,0,null,null,null,null,null,null,0,0]
["6373","6373. Publicidad, publicaciones, relaciones públicas - Relaciones públicas",null,null,null,null,0,0,0,0,null,null,null,null,null,null,0,0]
["638","638. Servicios de contratistas",null,null,null,null,0,0,0,0,null,null,null,null,null,null,0,0]
["6391","6391. Otros servicios prestados por terceros - Gastos bancarios",null,null,null,null,0,0,0,0,null,null,null,null,null,null,0,0]
["6392","6392. Otros servicios prestados por terceros - Gastos de laboratorio",null,null,null,null,0,0,0,0,null,null,null,null,null,null,0,0]
["6411","6411. Gobierno central - Impuesto general a las ventas y selectivo al consumo",null,null,null,null,0,0,0,0,null,null,null,null,null,null,0,0]
["6412","6412. Gobierno central - Impuesto a las transacciones financieras",null,null,null,null,0,0,0,0,null,null,null,null,null,null,0,0]
["6413","6413. Gobierno central - Impuesto temporal a los activos netos",null,null,null,null,0,0,0,0,null,null,null,null,null,null,0,0]
["6414","6414. Gobierno central - Impuesto a los juegos de casino y máquinas tragamonedas",null,null,null,null,0,0,0,0,null,null,null,null,null,null,0,0]
["6415","6415. Gobierno central - Regalías mineras",null,null,null,null,0,0,0,0,null,null,null,null,null,null,0,0]
["6416","6416. Gobierno central - Cánones",null,null,null,null,0,0,0,0,null,null,null,null,null,null,0,0]
["6419","6419. Gobierno central - Otros",null,null,null,null,0,0,0,0,null,null,null,null,null,null,0,0]
["642","642. Gobierno regional",null,null,null,null,0,0,0,0,null,null,null,null,null,null,0,0]
["6431","6431. Gobierno local - Impuesto predial",null,null,null,null,0,0,0,0,null,null,null,null,null,null,0,0]
["6432","6432. Gobierno local - Arbitrios municipales y seguridad ciudadana",null,null,null,null,0,0,0,0,null,null,null,null,null,null,0,0]
["6433","6433. Gobierno local - Impuesto al patrimonio vehicular",null,null,null,null,0,0,0,0,null,null,null,null,null,null,0,0]
["6434","6434. Gobierno local - Licencia de funcionamiento",null,null,null,null,0,0,0,0,null,null,null,null,null,null,0,0]
["6439","6439. Gobierno local - Otros",null,null,null,null,0,0,0,0,null,null,null,null,null,null,0,0]
["6441","6441. Otros gastos por tributos - Contribución al SENATI",null,null,null,null,0,0,0,0,null,null,null,null,null,null,0,0]
["6442","6442. Otros gastos por tributos - Contribución al SENCICO",null,null,null,null,0,0,0,0,null,null,null,null,null,null,0,0]
["6443","6443. Otros gastos por tributos - Otros",null,null,null,null,0,0,0,0,null,null,null,null,null,null,0,0]
["651","651. Seguros",null,null,null,null,0,0,0,0,null,null,null,null,null,null,0,0]
["652","652. Regalías",null,null,null,null,0,0,0,0,null,null,null,null,null,null,0,0]
["653","653. Suscripciones",null,null,null,null,0,0,0,0,null,null,null,null,null,null,0,0]
["654","654. Licencias y derechos de vigencia",null,null,null,null,0,0,0,0,null,null,null,null,null,null,0,0]
["65511","65511. Costo neto de enajenación de activos inmovilizados y operaciones discontinuadas - Costo neto de enajenación de activos inmovilizados - Inversiones inmobiliarias",null,null,null,null,0,0,0,0,null,null,null,null,null,null,0,0]
["65512","65512. Costo neto de enajenación de activos inmovilizados y operaciones discontinuadas - Costo neto de enajenación de activos inmovilizados - Activos adquiridos en arrendamiento financiero",null,null,null,null,0,0,{"$f":"IF($E985-$F985>=0,$E985-$F985,0)","v":0},{"$f":"IF($E985-$F985<0,-$E985+$F985,0)","v":0},null,null,null,null,null,null,0,0]
["65513","65513. Costo neto de enajenación de activos inmovilizados y operaciones discontinuadas - Costo neto de enajenación de activos inmovilizados - Inmuebles, maquinaria y equipo",null,null,null,null,{"$f":"+E986","v":0},0,0,0,null,null,null,null,null,null,{"$f":"IF($I986-$J986+$K986-$L986+$M986-$N986>=0,$I986-$J986+$K986-$L986+$M986-$N986,0)","v":0},{"$f":"IF($I986-$J986+$K986-$L986+$M986-$N986<0,-($I986-$J986+$K986-$L986+$M986-$N986),0)","v":0}]
["65514","65514. Costo neto de enajenación de activos inmovilizados y operaciones discontinuadas - Costo neto de enajenación de activos inmovilizados - Intangibles",null,null,null,null,0,0,0,0,null,null,null,null,null,null,0,0]
["65515","65515. Costo neto de enajenación de activos inmovilizados y operaciones discontinuadas - Costo neto de enajenación de activos inmovilizados - Activos biológicos",null,null,null,null,0,0,0,0,null,null,null,null,null,null,0,0]
["65521","65521. Costo neto de enajenación de activos inmovilizados y operaciones discontinuadas - Operaciones discontinuadas – Abandono de activos - Inversiones inmobiliarias",null,null,null,null,0,0,0,0,null,null,null,null,null,null,0,0]
["65522","65522. Costo neto de enajenación de activos inmovilizados y operaciones discontinuadas - Operaciones discontinuadas – Abandono de activos - Activos adquiridos en arrendamiento financiero",null,null,null,null,0,0,0,0,null,null,null,null,null,null,0,0]
["65523","65523. Costo neto de enajenación de activos inmovilizados y operaciones discontinuadas - Operaciones discontinuadas – Abandono de activos - Inmuebles, maquinaria y equipo",null,null,null,null,0,0,0,0,null,null,null,null,null,null,0,0]
["65524","65524. Costo neto de enajenación de activos inmovilizados y operaciones discontinuadas - Operaciones discontinuadas – Abandono de activos - Intangibles",null,null,null,null,0,0,0,0,null,null,null,null,null,null,0,0]
["65525","65525. Costo neto de enajenación de activos inmovilizados y operaciones discontinuadas - Operaciones discontinuadas – Abandono de activos - Activos biológicos",null,null,null,null,0,0,0,0,null,null,null,null,null,null,0,0]
["656","656. Suministros",null,null,null,null,0,0,0,0,null,null,null,null,null,null,0,0]
["658","658. Gestión medioambiental",null,null,null,null,0,0,0,0,null,null,null,null,null,null,0,0]
["6591","6591. Otros gastos de gestión - Donaciones",null,null,null,null,0,0,0,0,null,null,null,null,null,null,0,0]
["65921","65921. Otros gastos de gestión-Sanciones Administrativas-SUNAT-Multas",null,null,null,null,{"$f":"+E997","v":0},0,0,0,null,null,null,null,null,null,0,0]
["65922","65922. Otros gastos de gestión-Sanciones Administrativas-SUNAT-Derechos Antidumping y Otros",null,null,null,null,{"$f":"+E998","v":0},{"$f":"+F998","v":0},0,0,null,null,null,null,null,null,0,0]
["65929","65929. Otros gastos de gestión-Sanciones Administrativas-Otras Entidades del Sector Público Nacional",null,null,null,null,{"$f":"+E999","v":0},{"$f":"+F999","v":0},0,0,null,null,null,null,null,null,0,0]
["6598","6598.  Rei Negativo",null,null,null,null,0,0,0,0,null,null,null,null,null,null,0,0]
["6599","6599. Otros gastos de gestión-Gastos Diversos",null,null,null,null,{"$f":"+E1001","v":0},{"$f":"+F1001","v":0},0,0,null,null,null,null,null,null,0,0]
["6611","6611. Activo realizable - Mercaderías",null,null,null,null,0,0,0,0,null,null,null,null,null,null,0,0]
["6612","6612. Activo realizable - Productos terminados",null,null,null,null,0,0,0,0,null,null,null,null,null,null,0,0]
["66131","66131. Activo realizable - Activos no corrientes mantenidos para la venta - Inversión inmobiliaria",null,null,null,null,0,0,0,0,null,null,null,null,null,null,0,0]
["66132","66132. Activo realizable - Activos no corrientes mantenidos para la venta - Inmuebles, maquinaria y equipo",null,null,null,null,0,0,0,0,null,null,null,null,null,null,0,0]
["66133","66133. Activo realizable - Activos no corrientes mantenidos para la venta - Intangibles",null,null,null,null,0,0,0,0,null,null,null,null,null,null,0,0]
["66134","66134. Activo realizable - Activos no corrientes mantenidos para la venta - Activos biológicos",null,null,null,null,0,0,0,0,null,null,null,null,null,null,0,0]
["6621","6621. Activo inmovilizado - Inversiones inmobiliarias",null,null,null,null,0,0,0,0,null,null,null,null,null,null,0,0]
["6622","6622. Activo inmovilizado - Activos biológicos",null,null,null,null,0,0,0,0,null,null,null,null,null,null,0,0]
["6711","6711. Gastos en operaciones de endeudamiento y otros - Préstamos de instituciones financieras y otras entidades",null,null,null,null,0,0,0,0,null,null,null,null,null,null,0,0]
["6712","6712. Gastos en operaciones de endeudamiento y otros - Contratos de arrendamiento financiero",null,null,null,null,0,0,0,0,null,null,null,null,null,null,0,0]
["6713","6713. Gastos en operaciones de endeudamiento y otros - Emisión y colocación de instrumentos representativos de deuda y patrimonio",null,null,null,null,0,0,0,0,null,null,null,null,null,null,0,0]
["6714","6714. Gastos en operaciones de endeudamiento y otros - Documentos vendidos o descontados",null,null,null,null,0,0,0,0,null,null,null,null,null,null,0,0]
["672","672. Pérdida por instrumentos financieros derivados",null,null,null,null,0,0,0,0,null,null,null,null,null,null,0,0]
["67311","67311. Intereses por préstamos y otras obligaciones - Préstamos de instituciones financieras y otras entidades - Instituciones financieras",null,null,null,null,0,0,0,0,null,null,null,null,null,null,0,0]
["673121","673121. Intereses por préstamos y otras obligaciones-otras entidades-empresas vinculadas",null,null,null,null,0,0,0,0,null,null,null,null,null,null,0,0]
["673122","673122. Intereses por préstamos y otras obligaciones-otras entidades-accionistas( o socios)",null,null,null,null,0,0,0,0,null,null,null,null,null,null,0,0]
["673123","673123. Intereses por préstamos y otras obligaciones-otras entidades-gerentes",null,null,null,null,0,0,0,0,null,null,null,null,null,null,0,0]
["673129","673129. Intereses por préstamos y otras obligaciones-otras entidades-otros",null,null,null,null,0,0,0,0,null,null,null,null,null,null,0,0]
["6732","6732. Intereses por préstamos y otras obligaciones - Contratos de arrendamiento financiero",null,null,null,null,0,0,0,0,null,null,null,null,null,null,0,0]
["6733","6733. Intereses por préstamos y otras obligaciones - Otros instrumentos financieros por pagar",null,null,null,null,0,0,0,0,null,null,null,null,null,null,0,0]
["6734","6734. Intereses por préstamos y otras obligaciones - Documentos vendidos o descontados",null,null,null,null,0,0,0,0,null,null,null,null,null,null,0,0]
["6735","6735. Intereses por préstamos y otras obligaciones - Obligaciones emitidas",null,null,null,null,0,0,0,0,null,null,null,null,null,null,0,0]
["6736","6736. Intereses por préstamos y otras obligaciones - Obligaciones comerciales",null,null,null,null,0,0,0,0,null,null,null,null,null,null,0,0]
["67371","67371. Intereses por préstamos y otras obligaciones-Obligaciones tributarias-SUNAT-Intereses Moratorios",null,null,null,null,0,0,0,0,null,null,null,null,null,null,0,0]
["67372","67372. Intereses por préstamos y otras obligaciones-Obligaciones tributarias-SUNAT-Intereses Compensatorios",null,null,null,null,0,0,0,0,null,null,null,null,null,null,0,0]
["67379","67379. Intereses por préstamos y otras obligaciones-Obligaciones tributarias-Otras entidades del Sector Público Nacional",null,null,null,null,0,0,0,0,null,null,null,null,null,null,0,0]
["6741","6741. Gastos en operaciones de factoraje (factoring) - Gastos por menor valor",null,null,null,null,0,0,0,0,null,null,null,null,null,null,0,0]
["675","675. Descuentos concedidos por pronto pago",null,null,null,null,0,0,0,0,null,null,null,null,null,null,0,0]
["676","676. Diferencia de cambio",null,null,null,null,0,0,0,0,null,null,null,null,null,null,0,0]
["6771","6771. Pérdida por medición de activos y pasivos financieros al valor razonable - Inversiones para negociación",null,null,null,null,0,0,0,0,null,null,null,null,null,null,0,0]
["6772","6772. Pérdida por medición de activos y pasivos financieros al valor razonable - Inversiones disponibles para la venta",null,null,null,null,0,0,0,0,null,null,null,null,null,null,0,0]
["6773","6773. Pérdida por medición de activos y pasivos financieros al valor razonable - Otros",null,null,null,null,0,0,0,0,null,null,null,null,null,null,0,0]
["6781","6781. Participación en resultados de entidades relacionadas - Participación en los resultados de subsidiarias y asociadas bajo el método del valor patrimonial",null,null,null,null,0,0,0,0,null,null,null,null,null,null,0,0]
["6782","6782. Participación en resultados de entidades relacionadas - Participaciones en negocios conjuntos",null,null,null,null,0,0,0,0,null,null,null,null,null,null,0,0]
["6791","6791. Otros gastos financieros - Primas por opciones",null,null,null,null,0,0,0,0,null,null,null,null,null,null,0,0]
["6792","6792. Otros gastos financieros - Gastos financieros en medición a valor descontado",null,null,null,null,0,0,0,0,null,null,null,null,null,null,0,0]
["68111","68111. Depreciación - Depreciación de inversiones inmobiliarias - Edificaciones – Costo",null,null,null,null,0,0,0,0,null,null,null,null,null,null,0,0]
["68112","68112. Depreciación - Depreciación de inversiones inmobiliarias - Edificaciones – Revaluación",null,null,null,null,0,0,0,0,null,null,null,null,null,null,0,0]
["68113","68113. Depreciación - Depreciación de inversiones inmobiliarias - Edificaciones – Costo de financiación",null,null,null,null,0,0,0,0,null,null,null,null,null,null,0,0]
["68121","68121. Depreciación - Depreciación de activos adquiridos en arrendamiento financiero – Inversiones inmobiliarias - Edificaciones",null,null,null,null,0,0,0,0,null,null,null,null,null,null,0,0]
["68131","68131. Depreciación - Depreciación de activos adquiridos en arrendamiento financiero – Inmuebles, maquinaria y equipo - Edificaciones",null,null,null,null,0,0,0,0,null,null,null,null,null,null,0,0]
["68132","68132. Depreciación - Depreciación de activos adquiridos en arrendamiento financiero – Inmuebles, maquinaria y equipo - Maquinarias y equipos de explotación",null,null,null,null,0,0,0,0,null,null,null,null,null,null,0,0]
["68133","68133. Depreciación - Depreciación de activos adquiridos en arrendamiento financiero – Inmuebles, maquinaria y equipo - Equipo de transporte",null,null,null,null,0,0,0,0,null,null,null,null,null,null,0,0]
["68134","68134. Depreciación - Depreciación de activos adquiridos en arrendamiento financiero – Inmuebles, maquinaria y equipo - Equipos diversos",null,null,null,null,0,0,0,0,null,null,null,null,null,null,0,0]
["68141","68141. Depreciación - Depreciación de inmuebles, maquinaria y equipo – Costo - Edificaciones",null,null,null,null,0,0,0,0,null,null,null,null,null,null,0,0]
["68142","68142. Depreciación - Depreciación de inmuebles, maquinaria y equipo – Costo - Maquinarias y equipos de explotación",null,null,null,null,0,0,0,0,null,null,null,null,null,null,0,0]
["68143","68143. Depreciación - Depreciación de inmuebles, maquinaria y equipo – Costo - Equipo de transporte",null,null,null,null,0,0,0,0,null,null,null,null,null,null,0,0]
["68144","68144. Depreciación - Depreciación de inmuebles, maquinaria y equipo – Costo - Muebles y enseres",null,null,null,null,0,0,0,0,null,null,null,null,null,null,0,0]
["68145","68145. Depreciación - Depreciación de inmuebles, maquinaria y equipo – Costo - Equipos diversos",null,null,null,null,0,0,0,0,null,null,null,null,null,null,{"$f":"IF($I1050-$J1050+$K1050-$L1050+$M1050-$N1050>=0,$I1050-$J1050+$K1050-$L1050+$M1050-$N1050,0)","v":0},{"$f":"IF($I1050-$J1050+$K1050-$L1050+$M1050-$N1050<0,-($I1050-$J1050+$K1050-$L1050+$M1050-$N1050),0)","v":0}]
["68146","68146. Depreciación - Depreciación de inmuebles, maquinaria y equipo – Costo - Herramientas y unidades de reemplazo",null,null,null,null,0,0,0,0,null,null,null,null,null,null,0,0]
["68151","68151. Depreciación - Depreciación de inmuebles, maquinaria y equipo – Revaluación - Edificaciones",null,null,null,null,0,0,{"$f":"IF($E1052-$F1052>=0,$E1052-$F1052,0)","v":0},{"$f":"IF($E1052-$F1052<0,-$E1052+$F1052,0)","v":0},null,null,null,null,null,null,0,0]
["68152","68152. Depreciación - Depreciación de inmuebles, maquinaria y equipo – Revaluación - Maquinarias y equipos de explotación",null,null,null,null,0,0,0,0,null,null,null,null,null,null,0,0]
["68153","68153. Depreciación - Depreciación de inmuebles, maquinaria y equipo – Revaluación - Equipo de transporte",null,null,null,null,0,0,0,0,null,null,null,null,null,null,0,0]
["68154","68154. Depreciación - Depreciación de inmuebles, maquinaria y equipo – Revaluación - Muebles y enseres",null,null,null,null,0,0,0,0,null,null,null,null,null,null,0,0]
["68155","68155. Depreciación - Depreciación de inmuebles, maquinaria y equipo – Revaluación - Equipos diversos",null,null,null,null,0,0,0,0,null,null,null,null,null,null,0,0]
["68156","68156. Depreciación - Depreciación de inmuebles, maquinaria y equipo – Revaluación - Herramientas y unidades de reemplazo",null,null,null,null,0,0,0,0,null,null,null,null,null,null,0,0]
["68161","68161. Depreciación - Depreciación de inmuebles, maquinaria y equipo – Costos de financiación - Edificaciones",null,null,null,null,{"$f":"+E1058","v":0},0,0,0,null,null,null,null,null,null,0,0]
["68162","68162. Depreciación - Depreciación de inmuebles, maquinaria y equipo – Costos de financiación - Maquinarias y equipos de explotación",null,null,null,null,0,0,0,0,null,null,null,null,null,null,0,0]
["68171","68171. Depreciación - Depreciación de activos biológicos en producción – Costo - Activos biológicos de origen animal",null,null,null,null,0,0,0,0,null,null,null,null,null,null,0,0]
["68172","68172. Depreciación - Depreciación de activos biológicos en producción – Costo - Activos biológicos de origen vegetal",null,null,null,null,0,0,0,0,null,null,null,null,null,null,0,0]
["68181","68181. Depreciación - Depreciación de activos biológicos en producción – Costo de financiación - Activos biológicos de origen animal",null,null,null,null,0,0,0,0,null,null,null,null,null,null,0,0]
["68182","68182. Depreciación - Depreciación de activos biológicos en producción – Costo de financiación - Activos biológicos de origen vegetal",null,null,null,null,0,0,0,0,null,null,null,null,null,null,0,0]
["68211","68211. Amortización de intangibles - Amortización de intangibles – Costo - Concesiones, licencias y otros derechos",null,null,null,null,0,0,0,0,null,null,null,null,null,null,0,0]
["68212","68212. Amortización de intangibles - Amortización de intangibles – Costo - Patentes y propiedad industrial",null,null,null,null,0,0,0,0,null,null,null,null,null,null,0,0]
["68213","68213. Amortización de intangibles - Amortización de intangibles – Costo - Programas de computadora (software)",null,null,null,null,0,0,0,0,null,null,null,null,null,null,0,0]
["68214","68214. Amortización de intangibles - Amortización de intangibles – Costo - Costos de exploración y desarrollo",null,null,null,null,0,0,0,0,null,null,null,null,null,null,0,0]
["68215","68215. Amortización de intangibles - Amortización de intangibles – Costo - Fórmulas, diseños y prototipos",null,null,null,null,0,0,0,0,null,null,null,null,null,null,0,0]
["68219","68219. Amortización de intangibles - Amortización de intangibles – Costo - Otros activos intangibles",null,null,null,null,0,0,0,0,null,null,null,null,null,null,0,0]
["68221","68221. Amortización de intangibles - Amortización de intangibles – Revaluación - Concesiones, licencias y otros derechos",null,null,null,null,0,0,0,0,null,null,null,null,null,null,0,0]
["68222","68222. Amortización de intangibles - Amortización de intangibles – Revaluación - Patentes y propiedad industrial",null,null,null,null,0,0,0,0,null,null,null,null,null,null,0,0]
["68223","68223. Amortización de intangibles - Amortización de intangibles – Revaluación - Programas de computadora (software)",null,null,null,null,0,0,0,0,null,null,null,null,null,null,0,0]
["68224","68224. Amortización de intangibles - Amortización de intangibles – Revaluación - Costos de exploración y desarrollo",null,null,null,null,0,0,0,0,null,null,null,null,null,null,0,0]
["68225","68225. Amortización de intangibles - Amortización de intangibles – Revaluación - Fórmulas, diseños y prototipos",null,null,null,null,0,0,0,0,null,null,null,null,null,null,0,0]
["68229","68229. Amortización de intangibles - Amortización de intangibles – Revaluación - Otros activos intangibles",null,null,null,null,0,0,0,0,null,null,null,null,null,null,0,0]
["6831","6831. Agotamiento - Agotamiento de recursos naturales adquiridos",null,null,null,null,0,0,0,0,null,null,null,null,null,null,0,0]
["68411","68411. Valuación de activos - Estimación de cuentas de cobranza dudosa - Cuentas por cobrar comerciales – Terceros",null,null,null,null,0,0,0,0,null,null,null,null,null,null,0,0]
["68412","68412. Valuación de activos - Estimación de cuentas de cobranza dudosa - Cuentas por cobrar comerciales – Relacionadas",null,null,null,null,0,0,0,0,null,null,null,null,null,null,0,0]
["68413","68413. Valuación de activos - Estimación de cuentas de cobranza dudosa - Cuentas por cobrar al personal, a los accionistas (socios), directores y gerentes",null,null,null,null,0,0,0,0,null,null,null,null,null,null,0,0]
["68414","68414. Valuación de activos - Estimación de cuentas de cobranza dudosa - Cuentas por cobrar diversas – Terceros",null,null,null,null,0,0,0,0,null,null,null,null,null,null,0,0]
["68415","68415. Valuación de activos - Estimación de cuentas de cobranza dudosa - Cuentas por cobrar diversas – Relacionadas",null,null,null,null,0,0,0,0,null,null,null,null,null,null,0,0]
["68431","68431. Valuación de activos - Desvalorización de inversiones mobiliarias - Inversiones a ser mantenidas hasta el vencimiento",null,null,null,null,0,0,0,0,null,null,null,null,null,null,0,0]
["68432","68432. Valuación de activos - Desvalorización de inversiones mobiliarias - Instrumentos financieros representativos de derecho patrimonial",null,null,null,null,0,0,0,0,null,null,null,null,null,null,0,0]
["68511","68511. Deterioro del valor de los activos - Desvalorización de inversiones inmobiliarias - Edificaciones",null,null,null,null,0,0,0,0,null,null,null,null,null,null,0,0]
["68521","68521. Deterioro del valor de los activos - Desvalorización de inmuebles maquinaria y equipo - Edificaciones",null,null,null,null,0,0,0,0,null,null,null,null,null,null,0,0]
["68522","68522. Deterioro del valor de los activos - Desvalorización de inmuebles maquinaria y equipo - Maquinarias y equipos de explotación",null,null,null,null,0,0,0,0,null,null,null,null,null,null,0,0]
["68523","68523. Deterioro del valor de los activos - Desvalorización de inmuebles maquinaria y equipo - Equipo de transporte",null,null,null,null,0,0,0,0,null,null,null,null,null,null,0,0]
["68524","68524. Deterioro del valor de los activos - Desvalorización de inmuebles maquinaria y equipo - Muebles y enseres",null,null,null,null,0,0,0,0,null,null,null,null,null,null,0,0]
["68525","68525. Deterioro del valor de los activos - Desvalorización de inmuebles maquinaria y equipo - Equipos diversos",null,null,null,null,0,0,0,0,null,null,null,null,null,null,0,0]
["68526","68526. Deterioro del valor de los activos - Desvalorización de inmuebles maquinaria y equipo - Herramientas y unidades de reemplazo",null,null,null,null,0,0,0,0,null,null,null,null,null,null,0,0]
["68531","68531. Deterioro del valor de los activos - Desvalorización de intangibles - Concesiones, licencias y otros derechos",null,null,null,null,0,0,0,0,null,null,null,null,null,null,0,0]
["68532","68532. Deterioro del valor de los activos - Desvalorización de intangibles - Patentes y propiedad industrial",null,null,null,null,0,0,0,0,null,null,null,null,null,null,0,0]
["68533","68533. Deterioro del valor de los activos - Desvalorización de intangibles - Programas de computadora (software)",null,null,null,null,0,0,0,0,null,null,null,null,null,null,0,0]
["68534","68534. Deterioro del valor de los activos - Desvalorización de intangibles - Costos de exploración y desarrollo",null,null,null,null,0,0,0,0,null,null,null,null,null,null,0,0]
["68535","68535. Deterioro del valor de los activos - Desvalorización de intangibles - Fórmulas, diseños y prototipos",null,null,null,null,0,0,0,0,null,null,null,null,null,null,0,0]
["68536","68536. Deterioro del valor de los activos - Desvalorización de intangibles - Otros activos intangibles",null,null,null,null,0,0,0,0,null,null,null,null,null,null,0,0]
["68537","68537. Deterioro del valor de los activos - Desvalorización de intangibles - Plusvalía mercantil",null,null,null,null,0,0,0,0,null,null,null,null,null,null,0,0]
["68541","68541. Deterioro del valor de los activos - Desvalorización de activos biológicos en producción - Activos biológicos de origen animal",null,null,null,null,0,0,0,0,null,null,null,null,null,null,0,0]
["68542","68542. Deterioro del valor de los activos - Desvalorización de activos biológicos en producción - Activos biológicos de origen vegetal",null,null,null,null,0,0,0,0,null,null,null,null,null,null,0,0]
["68611","68611. Provisiones - Provisión para litigios - Provisión para litigios – Costo",null,null,null,null,0,0,0,0,null,null,null,null,null,null,0,0]
["68612","68612. Provisiones - Provisión para litigios - Provisión para litigios – Actualización financiera",null,null,null,null,0,0,0,0,null,null,null,null,null,null,0,0]
["68621","68621. Provisiones - Provisión por desmantelamiento, retiro o rehabilitación del inmovilizado - Provisión por desmantelamiento, retiro o rehabilitación del inmovilizado – Costo",null,null,null,null,0,0,0,0,null,null,null,null,null,null,0,0]
["68622","68622. Provisiones - Provisión por desmantelamiento, retiro o rehabilitación del inmovilizado - Provisión por desmantelamiento, retiro o rehabilitación del inmovilizado – Actualización financiera",null,null,null,null,0,0,0,0,null,null,null,null,null,null,0,0]
["6863","6863. Provisiones - Provisión para reestructuraciones",null,null,null,null,0,0,0,0,null,null,null,null,null,null,0,0]
["68641","68641. Provisiones - Provisión para protección y remediación del medio ambiente - Provisión para protección y remediación del medio ambiente – Costo",null,null,null,null,0,0,0,0,null,null,null,null,null,null,0,0]
["68642","68642. Provisiones - Provisión para protección y remediación del medio ambiente - Provisión para protección y remediación del medio ambiente – Actualización financiera",null,null,null,null,0,0,0,0,null,null,null,null,null,null,0,0]
["68661","68661. Provisiones - Provisión para garantías - Provisión para garantías – Costo",null,null,null,null,0,0,0,0,null,null,null,null,null,null,0,0]
["68662","68662. Provisiones - Provisión para garantías - Provisión para garantías – Actualización financiera",null,null,null,null,0,0,0,0,null,null,null,null,null,null,0,0]
["6869","6869. Provisiones - Otras provisiones",null,null,null,null,0,0,0,0,null,null,null,null,null,null,0,0]
["69111","69111. Mercaderías - Mercaderías manufacturadas - Terceros",null,null,null,null,0,0,0,0,null,null,null,null,null,null,0,0]
["69112","69112. Mercaderías - Mercaderías manufacturadas - Relacionadas",null,null,null,null,0,0,0,0,null,null,null,null,null,null,0,0]
["69121","69121. Mercaderías - Mercaderías de extracción - Terceros",null,null,null,null,0,0,0,0,null,null,null,null,null,null,0,0]
["69122","69122. Mercaderías - Mercaderías de extracción - Relacionadas",null,null,null,null,0,0,0,0,null,null,null,null,null,null,0,0]
["69131","69131. Mercaderías - Mercaderías agropecuarias y piscícolas - Terceros",null,null,null,null,0,0,0,0,null,null,null,null,null,null,{"$f":"IF($I1114-$J1114+$K1114-$L1114+$M1114-$N1114>=0,$I1114-$J1114+$K1114-$L1114+$M1114-$N1114,0)","v":0},{"$f":"IF($I1114-$J1114+$K1114-$L1114+$M1114-$N1114<0,-($I1114-$J1114+$K1114-$L1114+$M1114-$N1114),0)","v":0}]
["69132","69132. Mercaderías - Mercaderías agropecuarias y piscícolas - Relacionadas",null,null,null,null,0,0,0,0,null,null,null,null,null,null,0,0]
["69141","69141. Mercaderías - Mercaderías inmuebles - Terceros",null,null,null,null,0,0,0,0,null,null,null,null,null,null,0,0]
["69142","69142. Mercaderías - Mercaderías inmuebles - Relacionadas",null,null,null,null,0,0,0,0,null,null,null,null,null,null,0,0]
["69151","69151. Mercaderías - Otras mercaderías - Terceros",null,null,null,null,0,0,0,0,null,null,null,null,null,null,0,0]
["69152","69152. Mercaderías - Otras mercaderías - Relacionadas",null,null,null,null,0,0,0,0,null,null,null,null,null,null,0,0]
["69211","69211. Productos terminados - Productos manufacturados - Terceros",null,null,null,null,0,0,0,0,null,null,null,null,null,null,0,0]
["69212","69212. Productos terminados - Productos manufacturados - Relacionadas",null,null,null,null,0,0,{"$f":"IF($E1121-$F1121>=0,$E1121-$F1121,0)","v":0},{"$f":"IF($E1121-$F1121<0,-$E1121+$F1121,0)","v":0},null,null,null,null,null,null,0,0]
["69221","69221. Productos terminados - Productos de extracción terminados - Terceros",null,null,null,null,{"$f":"+E1122","v":0},0,0,0,null,null,null,null,null,null,0,0]
["69222","69222. Productos terminados - Productos de extracción terminados - Relacionadas",null,null,null,null,0,0,0,0,null,null,null,null,null,null,0,0]
["69231","69231. Productos terminados - Productos agropecuarios y piscícolas terminados - Terceros",null,null,null,null,0,0,0,0,null,null,null,null,null,null,0,0]
["69232","69232. Productos terminados - Productos agropecuarios y piscícolas terminados - Relacionadas",null,null,null,null,0,0,0,0,null,null,null,null,null,null,0,0]
["69241","69241. Productos terminados - Productos inmuebles terminados - Terceros",null,null,null,null,0,0,0,0,null,null,null,null,null,null,0,0]
["69242","69242. Productos terminados - Productos inmuebles terminados - Relacionadas",null,null,null,null,0,0,0,0,null,null,null,null,null,null,0,0]
["69251","69251. Productos terminados - Existencias de servicios terminados - Terceros",null,null,null,null,0,0,0,0,null,null,null,null,null,null,0,0]
["69252","69252. Productos terminados - Existencias de servicios terminados - Relacionadas",null,null,null,null,0,0,0,0,null,null,null,null,null,null,0,0]
["69261","69261. Productos terminados - Costos de financiación – Productos terminados - Terceros",null,null,null,null,0,0,0,0,null,null,null,null,null,null,0,0]
["69262","69262. Productos terminados - Costos de financiación – Productos terminados - Relacionadas",null,null,null,null,0,0,0,0,null,null,null,null,null,null,0,0]
["6927","6927. Productos terminados - Costos de producción no absorbido – Productos terminados",null,null,null,null,0,0,0,0,null,null,null,null,null,null,0,0]
["6928","6928. Productos terminados - Costo de ineficiencia – Productos terminados",null,null,null,null,0,0,0,0,null,null,null,null,null,null,0,0]
["69311","69311. Subproductos, desechos y desperdicios - Subproductos - Terceros",null,null,null,null,0,0,0,0,null,null,null,null,null,null,0,0]
["69312","69312. Subproductos, desechos y desperdicios - Subproductos - Relacionadas",null,null,null,null,0,0,0,0,null,null,null,null,null,null,0,0]
["69321","69321. Subproductos, desechos y desperdicios - Desechos y desperdicios - Terceros",null,null,null,null,0,0,0,0,null,null,null,null,null,null,0,0]
["69322","69322. Subproductos, desechos y desperdicios - Desechos y desperdicios - Relacionadas",null,null,null,null,0,0,0,0,null,null,null,null,null,null,0,0]
["6941","6941. Servicios - Terceros",null,null,null,null,0,0,0,0,null,null,null,null,null,null,0,0]
["6942","6942. Servicios - Relacionadas",null,null,null,null,0,0,0,0,null,null,null,null,null,null,0,0]
["6951","6951. Gastos por desvalorización de existencias - Mercaderías",null,null,null,null,0,0,0,0,null,null,null,null,null,null,0,0]
["6952","6952. Gastos por desvalorización de existencias - Productos terminados",null,null,null,null,0,0,0,0,null,null,null,null,null,null,0,0]
["6953","6953. Gastos por desvalorización de existencias - Subproductos, desechos y desperdicios",null,null,null,null,0,0,0,0,null,null,null,null,null,null,0,0]
["6954","6954. Gastos por desvalorización de existencias - Productos en proceso",null,null,null,null,0,0,0,0,null,null,null,null,null,null,0,0]
["6955","6955. Gastos por desvalorización de existencias - Materias primas",null,null,null,null,0,0,0,0,null,null,null,null,null,null,0,0]
["6956","6956. Gastos por desvalorización de existencias - Materiales auxiliares, suministros y repuestos",null,null,null,null,0,0,0,0,null,null,null,null,null,null,0,0]
["6957","6957. Gastos por desvalorización de existencias - Envases y embalajes",null,null,null,null,0,0,0,0,null,null,null,null,null,null,0,0]
["6958","6958. Gastos por desvalorización de existencias - Existencias por recibir",null,null,null,null,0,0,0,0,null,null,null,null,null,null,0,0]
["70111","70111. Mercaderías - Mercaderías manufacturadas - Terceros",null,null,null,null,0,0,0,0,null,null,null,null,null,null,0,0]
["70112","70112. Mercaderías - Mercaderías manufacturadas - Relacionadas",null,null,null,null,0,0,0,0,null,null,null,null,null,null,0,0]
["70121","70121. Mercaderías - Mercaderías de extracción - Terceros",null,null,null,null,0,0,0,0,null,null,null,null,null,null,0,0]
["70122","70122. Mercaderías - Mercaderías de extracción - Relacionadas",null,null,null,null,0,0,0,0,null,null,null,null,null,null,0,0]
["70131","70131. Mercaderías - Mercaderías agropecuarias y piscícolas - Terceros",null,null,null,null,0,0,0,0,null,null,null,null,null,null,0,0]
["70132","70132. Mercaderías - Mercaderías agropecuarias y piscícolas - Relacionadas",null,null,null,null,0,0,0,0,null,null,null,null,null,null,0,0]
["70141","70141. Mercaderías - Mercaderías inmuebles - Terceros",null,null,null,null,0,0,0,0,null,null,null,null,null,null,0,0]
["70142","70142. Mercaderías - Mercaderías inmuebles - Relacionadas",null,null,null,null,0,0,0,0,null,null,null,null,null,null,0,0]
["70151","70151. Mercaderías - Mercaderías – Otras - Terceros",null,null,null,null,0,0,0,0,null,null,null,null,null,null,0,0]
["70152","70152. Mercaderías - Mercaderías – Otras - Relacionadas",null,null,null,null,0,0,0,0,null,null,null,null,null,null,0,0]
["70211","70211. Productos terminados - Productos manufacturados - Terceros",null,null,null,null,0,0,0,0,null,null,null,null,null,null,0,0]
["70212","70212. Productos terminados - Productos manufacturados - Relacionadas",null,null,null,null,0,0,0,0,null,null,null,null,null,null,0,0]
["70221","70221. Productos terminados - Productos de extracción terminados - Terceros",null,null,null,null,0,0,0,0,null,null,null,null,null,null,0,0]
["70222","70222. Productos terminados - Productos de extracción terminados - Relacionadas",null,null,null,null,0,0,0,0,null,null,null,null,null,null,0,0]
["70231","70231. Productos terminados - Productos agropecuarios y piscícolas terminados - Terceros",null,null,null,null,0,0,0,0,null,null,null,null,null,null,0,0]
["70232","70232. Productos terminados - Productos agropecuarios y piscícolas terminados - Relacionadas",null,null,null,null,0,0,0,0,null,null,null,null,null,null,0,0]
["70241","70241. Productos terminados - Productos inmuebles terminados - Terceros",null,null,null,null,0,0,0,0,null,null,null,null,null,null,0,0]
["70242","70242. Productos terminados - Productos inmuebles terminados - Relacionadas",null,null,null,null,0,0,0,0,null,null,null,null,null,null,0,0]
["70251","70251. Productos terminados - Existencias de servicios terminados - Terceros",null,null,null,null,0,0,0,0,null,null,null,null,null,null,0,0]
["70252","70252. Productos terminados - Existencias de servicios terminados - Relacionadas",null,null,null,null,0,0,0,0,null,null,null,null,null,null,0,0]
["70311","70311. Subproductos, desechos y desperdicios - Subproductos - Terceros",null,null,null,null,0,0,0,0,null,null,null,null,null,null,0,0]
["70312","70312. Subproductos, desechos y desperdicios - Subproductos - Relacionadas",null,null,null,null,0,0,0,0,null,null,null,null,null,null,0,0]
["70321","70321. Subproductos, desechos y desperdicios - Desechos y desperdicios - Terceros",null,null,null,null,0,0,0,0,null,null,null,null,null,null,0,0]
["70322","70322. Subproductos, desechos y desperdicios - Desechos y desperdicios - Relacionadas",null,null,null,null,0,0,0,0,null,null,null,null,null,null,0,0]
["7041","7041. Prestación de servicios - Terceros",null,null,null,null,0,0,0,0,null,null,null,null,null,null,0,0]
["7042","7042. Prestación de servicios - Relacionadas",null,null,null,null,0,0,0,0,null,null,null,null,null,null,0,0]
["70911","70911. Devoluciones sobre ventas - Mercaderías – Terceros - Mercaderías manufacturadas",null,null,null,null,0,0,0,0,null,null,null,null,null,null,0,0]
["70912","70912. Devoluciones sobre ventas - Mercaderías – Terceros - Mercaderías de extracción",null,null,null,null,0,0,0,0,null,null,null,null,null,null,0,0]
["70913","70913. Devoluciones sobre ventas - Mercaderías – Terceros - Mercaderías agropecuarias y piscícolas",null,null,null,null,0,0,0,0,null,null,null,null,null,null,0,0]
["70914","70914. Devoluciones sobre ventas - Mercaderías – Terceros - Mercaderías inmuebles",null,null,null,null,0,0,0,0,null,null,null,null,null,null,0,0]
["70915","70915. Devoluciones sobre ventas - Mercaderías – Terceros - Mercaderías – Otras",null,null,null,null,0,0,0,0,null,null,null,null,null,null,{"$f":"IF($I1178-$J1178+$K1178-$L1178+$M1178-$N1178>=0,$I1178-$J1178+$K1178-$L1178+$M1178-$N1178,0)","v":0},{"$f":"IF($I1178-$J1178+$K1178-$L1178+$M1178-$N1178<0,-($I1178-$J1178+$K1178-$L1178+$M1178-$N1178),0)","v":0}]
["70921","70921. Devoluciones sobre ventas - Mercaderías – Relacionadas - Mercaderías manufacturadas",null,null,null,null,0,0,0,0,null,null,null,null,null,null,0,0]
["70922","70922. Devoluciones sobre ventas - Mercaderías – Relacionadas - Mercaderías de extracción",null,null,null,null,0,0,0,0,null,null,null,null,null,null,0,0]
["70923","70923. Devoluciones sobre ventas - Mercaderías – Relacionadas - Mercaderías agropecuarias y piscícolas",null,null,null,null,0,0,0,0,null,null,null,null,null,null,0,0]
["70924","70924. Devoluciones sobre ventas - Mercaderías – Relacionadas - Mercaderías inmuebles",null,null,null,null,0,0,0,0,null,null,null,null,null,null,0,0]
["70925","70925. Devoluciones sobre ventas - Mercaderías – Relacionadas - Mercaderías – Otras",null,null,null,null,0,0,0,0,null,null,null,null,null,null,0,0]
["70931","70931. Devoluciones sobre ventas - Productos terminados – Terceros - Productos manufacturados",null,null,null,null,0,0,0,0,null,null,null,null,null,null,0,0]
["70932","70932. Devoluciones sobre ventas - Productos terminados – Terceros - Productos de extracción terminados",null,null,null,null,0,0,{"$f":"IF($E1185-$F1185>=0,$E1185-$F1185,0)","v":0},{"$f":"IF($E1185-$F1185<0,-$E1185+$F1185,0)","v":0},null,null,null,null,null,null,0,0]
["70933","70933. Devoluciones sobre ventas - Productos terminados – Terceros - Productos agropecuarios y piscícolas terminados",null,null,null,null,{"$f":"+E1186","v":0},0,0,0,null,null,null,null,null,null,0,0]
["70934","70934. Devoluciones sobre ventas - Productos terminados – Terceros - Productos inmuebles terminados",null,null,null,null,0,0,0,0,null,null,null,null,null,null,0,0]
["70935","70935. Devoluciones sobre ventas - Productos terminados – Terceros - Existencias de servicios terminados",null,null,null,null,0,0,0,0,null,null,null,null,null,null,0,0]
["70941","70941. Devoluciones sobre ventas - Productos terminados – Relacionadas - Productos manufacturados",null,null,null,null,0,0,0,0,null,null,null,null,null,null,0,0]
["70942","70942. Devoluciones sobre ventas - Productos terminados – Relacionadas - Productos de extracción terminados",null,null,null,null,0,0,0,0,null,null,null,null,null,null,0,0]
["70943","70943. Devoluciones sobre ventas - Productos terminados – Relacionadas - Productos agropecuarios y piscícolas terminados",null,null,null,null,0,0,0,0,null,null,null,null,null,null,0,0]
["70944","70944. Devoluciones sobre ventas - Productos terminados – Relacionadas - Productos inmuebles terminados",null,null,null,null,0,0,0,0,null,null,null,null,null,null,0,0]
["70945","70945. Devoluciones sobre ventas - Productos terminados – Relacionadas - Existencias de servicios terminados",null,null,null,null,0,0,0,0,null,null,null,null,null,null,0,0]
["70951","70951. Devoluciones sobre ventas - Subproductos, desechos y desperdicios – Terceros - Subproductos",null,null,null,null,0,0,0,0,null,null,null,null,null,null,0,0]
["70952","70952. Devoluciones sobre ventas - Subproductos, desechos y desperdicios – Terceros - Desechos y desperdicios",null,null,null,null,0,0,0,0,null,null,null,null,null,null,0,0]
["70961","70961. Devoluciones sobre ventas - Subproductos, desechos y desperdicios – Relacionadas - Subproductos",null,null,null,null,0,0,0,0,null,null,null,null,null,null,0,0]
["70962","70962. Devoluciones sobre ventas - Subproductos, desechos y desperdicios – Relacionadas - Desechos y desperdicios",null,null,null,null,0,0,0,0,null,null,null,null,null,null,0,0]
["7111","7111. Variación de productos terminados - Productos manufacturados",null,null,null,null,0,0,0,0,null,null,null,null,null,null,0,0]
["7112","7112. Variación de productos terminados - Productos de extracción terminados",null,null,null,null,0,0,0,0,null,null,null,null,null,null,0,0]
["7113","7113. Variación de productos terminados - Productos agropecuarios y piscícolas terminados",null,null,null,null,0,0,0,0,null,null,null,null,null,null,0,0]
["7114","7114. Variación de productos terminados - Productos inmuebles terminados",null,null,null,null,0,0,0,0,null,null,null,null,null,null,0,0]
["7115","7115. Variación de productos terminados - Existencias de servicios terminados",null,null,null,null,0,0,0,0,null,null,null,null,null,null,0,0]
["7121","7121. Variación de subproductos, desechos y desperdicios - Subproductos",null,null,null,null,0,0,0,0,null,null,null,null,null,null,0,0]
["7122","7122. Variación de subproductos, desechos y desperdicios - Desechos y desperdicios",null,null,null,null,0,0,0,0,null,null,null,null,null,null,0,0]
["7131","7131. Variación de productos en proceso - Productos en proceso de manufactura",null,null,null,null,0,0,0,0,null,null,null,null,null,null,0,0]
["7132","7132. Variación de productos en proceso - Productos extraídos en proceso de transformación",null,null,null,null,0,0,0,0,null,null,null,null,null,null,0,0]
["7133","7133. Variación de productos en proceso - Productos agropecuarios y piscícolas en proceso",null,null,null,null,0,0,0,0,null,null,null,null,null,null,0,0]
["7134","7134. Variación de productos en proceso - Productos inmuebles en proceso",null,null,null,null,0,0,0,0,null,null,null,null,null,null,0,0]
["7135","7135. Variación de productos en proceso - Existencias de servicios en proceso",null,null,null,null,0,0,0,0,null,null,null,null,null,null,0,0]
["7138","7138. Variación de productos en proceso - Otros productos en proceso",null,null,null,null,0,0,0,0,null,null,null,null,null,null,0,0]
["7141","7141. Variación de envases y embalajes - Envases",null,null,null,null,0,0,0,0,null,null,null,null,null,null,0,0]
["7142","7142. Variación de envases y embalajes - Embalajes",null,null,null,null,0,0,0,0,null,null,null,null,null,null,0,0]
["715","715. Variación de existencias de servicios",null,null,null,null,0,0,0,0,null,null,null,null,null,null,0,0]
["7211","7211. Inversiones inmobiliarias - Edificaciones",null,null,null,null,0,0,0,0,null,null,null,null,null,null,0,0]
["7221","7221. Inmuebles, maquinaria y equipo - Edificaciones",null,null,null,null,0,0,0,0,null,null,null,null,null,null,0,0]
["7222","7222. Inmuebles, maquinaria y equipo - Maquinarias y otros equipos de explotación",null,null,null,null,0,0,0,0,null,null,null,null,null,null,0,0]
["7223","7223. Inmuebles, maquinaria y equipo - Equipo de transporte",null,null,null,null,0,0,0,0,null,null,null,null,null,null,0,0]
["7224","7224. Inmuebles, maquinaria y equipo - Muebles y enseres",null,null,null,null,0,0,0,0,null,null,null,null,null,null,0,0]
["7225","7225. Inmuebles, maquinaria y equipo - Equipos diversos",null,null,null,null,0,0,0,0,null,null,null,null,null,null,0,0]
["7231","7231. Intangibles - Programas de computadora (software)",null,null,null,null,0,0,0,0,null,null,null,null,null,null,0,0]
["7232","7232. Intangibles - Costos de exploración y desarrollo",null,null,null,null,0,0,0,0,null,null,null,null,null,null,0,0]
["7233","7233. Intangibles - Fórmulas, diseños y prototipos",null,null,null,null,0,0,0,0,null,null,null,null,null,null,0,0]
["7241","7241. Activos biológicos - Activos biológicos en desarrollo de origen animal",null,null,null,null,0,0,0,0,null,null,null,null,null,null,0,0]
["7242","7242. Activos biológicos - Activos biológicos en desarrollo de origen vegetal",null,null,null,null,0,0,0,0,null,null,null,null,null,null,0,0]
["72511","72511. Costos de financiación capitalizados - Costos de financiación – Inversiones inmobiliarias - Edificaciones",null,null,null,null,0,0,0,0,null,null,null,null,null,null,0,0]
["72521","72521. Costos de financiación capitalizados - Costos de financiación – Inmuebles, maquinaria y equipo - Edificaciones",null,null,null,null,0,0,0,0,null,null,null,null,null,null,0,0]
["72522","72522. Costos de financiación capitalizados - Costos de financiación – Inmuebles, maquinaria y equipo - Maquinarias y otros equipos de explotación",null,null,null,null,0,0,0,0,null,null,null,null,null,null,0,0]
["7253","7253. Costos de financiación capitalizados - Costos de financiación – Intangibles",null,null,null,null,0,0,0,0,null,null,null,null,null,null,0,0]
["72541","72541. Costos de financiación capitalizados - Costos de financiación – Activos biológicos en desarrollo - Activos biológicos de origen animal",null,null,null,null,0,0,0,0,null,null,null,null,null,null,0,0]
["72542","72542. Costos de financiación capitalizados - Costos de financiación – Activos biológicos en desarrollo - Activos biológicos de origen vegetal",null,null,null,null,0,0,0,0,null,null,null,null,null,null,0,0]
["7311","7311. Descuentos, rebajas y bonificaciones obtenidos - Terceros",null,null,null,null,0,0,0,0,null,null,null,null,null,null,0,0]
["7312","7312. Descuentos, rebajas y bonificaciones obtenidos - Relacionadas",null,null,null,null,0,0,0,0,null,null,null,null,null,null,0,0]
["7411","7411. Descuentos, rebajas y bonificaciones concedidos - Terceros",null,null,null,null,0,0,0,0,null,null,null,null,null,null,0,0]
["7412","7412. Descuentos, rebajas y bonificaciones concedidos - Relacionadas",null,null,null,null,0,0,0,0,null,null,null,null,null,null,0,0]
["751","751. Servicios en beneficio del personal",null,null,null,null,0,0,0,0,null,null,null,null,null,null,0,0]
["752","752. Comisiones y corretajes",null,null,null,null,0,0,0,0,null,null,null,null,null,null,0,0]
["753","753. Regalías",null,null,null,null,0,0,0,0,null,null,null,null,null,null,0,0]
["7541","7541. Alquileres - Terrenos",null,null,null,null,0,0,0,0,null,null,null,null,null,null,0,0]
["7542","7542. Alquileres - Edificaciones",null,null,null,null,0,0,0,0,null,null,null,null,null,null,0,0]
["7543","7543. Alquileres - Maquinarias y equipos de explotación",null,null,null,null,0,0,0,0,null,null,null,null,null,null,0,0]
["7544","7544. Alquileres - Equipo de transporte",null,null,null,null,0,0,0,0,null,null,null,null,null,null,0,0]
["7545","7545. Alquileres - Equipos diversos",null,null,null,null,0,0,0,0,null,null,null,null,null,null,{"$f":"IF($I1242-$J1242+$K1242-$L1242+$M1242-$N1242>=0,$I1242-$J1242+$K1242-$L1242+$M1242-$N1242,0)","v":0},{"$f":"IF($I1242-$J1242+$K1242-$L1242+$M1242-$N1242<0,-($I1242-$J1242+$K1242-$L1242+$M1242-$N1242),0)","v":0}]
["7551","7551. Recuperación de cuentas de valuación - Recuperación – Cuentas de cobranza dudosa",null,null,null,null,0,0,0,0,null,null,null,null,null,null,0,0]
["7552","7552. Recuperación de cuentas de valuación - Recuperación – Desvalorización de existencias",null,null,null,null,0,0,0,0,null,null,null,null,null,null,0,0]
["7553","7553. Recuperación de cuentas de valuación - Recuperación – Desvalorización de inversiones mobiliarias",null,null,null,null,0,0,0,0,null,null,null,null,null,null,0,0]
["7561","7561. Enajenación de activos inmovilizados - Inversiones mobiliarias",null,null,null,null,0,0,0,0,null,null,null,null,null,null,0,0]
["7562","7562. Enajenación de activos inmovilizados - Inversiones inmobiliarias",null,null,null,null,0,0,0,0,null,null,null,null,null,null,0,0]
["7563","7563. Enajenación de activos inmovilizados - Activos adquiridos en arrendamiento financiero",null,null,null,null,0,0,0,0,null,null,null,null,null,null,0,0]
["7564","7564. Enajenación de activos inmovilizados - Inmuebles, maquinaria y equipo",null,null,null,null,0,0,{"$f":"IF($E1249-$F1249>=0,$E1249-$F1249,0)","v":0},{"$f":"IF($E1249-$F1249<0,-$E1249+$F1249,0)","v":0},null,null,null,null,null,null,0,0]
["7565","7565. Enajenación de activos inmovilizados - Intangibles",null,null,null,null,{"$f":"+E1250","v":0},0,0,0,null,null,null,null,null,null,0,0]
["7566","7566. Enajenación de activos inmovilizados - Activos biológicos",null,null,null,null,0,0,0,0,null,null,null,null,null,null,0,0]
["7571","7571. Recuperación de deterioro de cuentas de activos inmovilizados - Recuperación de deterioro de inversiones inmobiliarias",null,null,null,null,0,0,0,0,null,null,null,null,null,null,0,0]
["7572","7572. Recuperación de deterioro de cuentas de activos inmovilizados - Recuperación de deterioro de inmuebles, maquinaria y equipo",null,null,null,null,0,0,0,0,null,null,null,null,null,null,0,0]
["7573","7573. Recuperación de deterioro de cuentas de activos inmovilizados - Recuperación de deterioro de intangibles",null,null,null,null,0,0,0,0,null,null,null,null,null,null,0,0]
["7574","7574. Recuperación de deterioro de cuentas de activos inmovilizados - Recuperación de deterioro de activos biológicos",null,null,null,null,0,0,0,0,null,null,null,null,null,null,0,0]
["7591","7591. Otros ingresos de gestión - Subsidios gubernamentales",null,null,null,null,0,0,0,0,null,null,null,null,null,null,0,0]
["7592","7592. Otros ingresos de gestión - Reclamos al seguro",null,null,null,null,0,0,0,0,null,null,null,null,null,null,0,0]
["7593","7593. Otros ingresos de gestión - Donaciones",null,null,null,null,0,0,0,0,null,null,null,null,null,null,0,0]
["7598","7598. REI Positivo",null,null,null,null,{"$f":"+E1259","v":0},{"$f":"+F1259","v":0},0,0,null,null,null,null,null,null,0,0]
["7599","7599. Otros ingresos de gestión - Otros ingresos de gestión",null,null,null,null,{"$f":"+E1260","v":0},0,0,0,null,null,null,null,null,null,0,0]
["7611","7611. Activo realizable - Mercaderías",null,null,null,null,0,0,0,0,null,null,null,null,null,null,0,0]
["7612","7612. Activo realizable - Productos terminados",null,null,null,null,0,0,0,0,null,null,null,null,null,null,0,0]
["76131","76131. Activo realizable - Activos no corrientes mantenidos para la venta - Inversiones inmobiliarias",null,null,null,null,0,0,0,0,null,null,null,null,null,null,0,0]
["76132","76132. Activo realizable - Activos no corrientes mantenidos para la venta - Inmuebles, maquinaria y equipo",null,null,null,null,0,0,0,0,null,null,null,null,null,null,0,0]
["76133","76133. Activo realizable - Activos no corrientes mantenidos para la venta - Intangibles",null,null,null,null,0,0,0,0,null,null,null,null,null,null,0,0]
["76134","76134. Activo realizable - Activos no corrientes mantenidos para la venta - Activos biológicos",null,null,null,null,0,0,0,0,null,null,null,null,null,null,0,0]
["7621","7621. Activo inmovilizado - Inversiones inmobiliarias",null,null,null,null,0,0,0,0,null,null,null,null,null,null,0,0]
["7622","7622. Activo inmovilizado - Activos biológicos",null,null,null,null,0,0,0,0,null,null,null,null,null,null,0,0]
["771","771. Ganancia por instrumento financiero derivado",null,null,null,null,0,0,0,0,null,null,null,null,null,null,0,0]
["7721","7721. Rendimientos ganados - Depósitos en instituciones financieras",null,null,null,null,0,0,0,0,null,null,null,null,null,null,0,0]
["7722","7722. Rendimientos ganados - Cuentas por cobrar comerciales",null,null,null,null,0,0,0,0,null,null,null,null,null,null,0,0]
["7723","7723. Rendimientos ganados - Préstamos otorgados",null,null,null,null,0,0,0,0,null,null,null,null,null,null,0,0]
["7724","7724. Rendimientos ganados - Inversiones a ser mantenidas hasta el vencimiento",null,null,null,null,0,0,0,0,null,null,null,null,null,null,0,0]
["7725","7725. Rendimientos ganados - Instrumentos financieros representativos de derecho patrimonial",null,null,null,null,0,0,0,0,null,null,null,null,null,null,0,0]
["773","773. Dividendos",null,null,null,null,0,0,0,0,null,null,null,null,null,null,0,0]
["774","774. Ingresos en operaciones de factoraje (factoring)",null,null,null,null,0,0,0,0,null,null,null,null,null,null,0,0]
["775","775. Descuentos obtenidos por pronto pago",null,null,null,null,0,0,0,0,null,null,null,null,null,null,0,0]
["776","776. Diferencia en cambio",null,null,null,null,0,0,0,0,null,null,null,null,null,null,0,0]
["7771","7771. Ganancia por medición de activos y pasivos financieros al valor razonable - Inversiones mantenidas para negociación",null,null,null,null,0,0,0,0,null,null,null,null,null,null,0,0]
["7772","7772. Ganancia por medición de activos y pasivos financieros al valor razonable - Inversiones disponibles para la venta",null,null,null,null,0,0,0,0,null,null,null,null,null,null,0,0]
["7773","7773. Ganancia por medición de activos y pasivos financieros al valor razonable - Otras",null,null,null,null,0,0,0,0,null,null,null,null,null,null,0,0]
["7781","7781. Participación en resultados de entidades relacionadas - Participación en los resultados de subsidiarias y asociadas bajo el método del valor patrimonial",null,null,null,null,0,0,0,0,null,null,null,null,null,null,0,0]
["7782","7782. Participación en resultados de entidades relacionadas - Ingresos por participaciones en negocios conjuntos",null,null,null,null,0,0,0,0,null,null,null,null,null,null,0,0]
["7792","7792. Otros ingresos financieros - Ingresos financieros en medición a valor descontado",null,null,null,null,0,0,0,0,null,null,null,null,null,null,0,0]
["781","781. Cargas cubiertas por provisiones",null,null,null,null,0,0,0,0,null,null,null,null,null,null,0,0]
["791","791. Cargas imputables a cuentas de costos y gastos",null,null,null,null,0,0,0,0,null,null,null,null,null,null,0,0]
["792","792. Gastos financieros imputables a cuentas de existencias",null,null,null,null,0,0,0,0,null,null,null,null,null,null,0,0]
["871","871. Participación de los trabajadores – Corriente",null,null,null,null,0,0,0,0,null,null,null,null,null,null,0,0]
["872","872. Participación de los trabajadores – Diferida",null,null,null,null,0,0,0,0,null,null,null,null,null,null,0,0]
["881","881. Impuesto a la renta – Corriente",null,null,null,null,0,0,0,0,null,null,null,null,null,null,0,0]
["882","882. Impuesto a la renta – Diferido",null,null,null,null,0,0,0,0,null,null,null,null,null,null,0,0]
[null,"SUB-TOTALES",{"$f":"SUM(C8:C1291)","v":0},0,0,0,0,0,0,0,0,0,0,0,0,0,0,0]
["89","89.  DETERMINACIÓN DEL RESULTADO DEL EJERCICIO",null,null,null,null,null,null,null,null,null,null,null,null,{"$f":"IF(O1292>P1292,0,+P1292-O1292)","v":0},{"$f":"IF(O1292>P1292,+O1292-P1292,0)","v":0},{"$f":"IF(Q1292>R1292,0,+R1292-Q1292)","v":0},{"$f":"IF(Q1292>R1292,+Q1292-R1292,0)","v":0}]
[null,"TOTALES",{"$f":"+C1292","v":0},0,0,0,0,0,0,0,0,0,0,0,{"$f":"+O1292+O1293","v":0},{"$f":"+P1292+P1293","v":0},{"$f":"+Q1292+Q1293","v":0},{"$f":"+R1292+R1293","v":0}]
[]
[null,"DIFERENCIAS",null,{"$f":"+C1294-D1294","v":0},null,{"$f":"+E1294-F1294","v":0},null,{"$f":"+G1294-H1294","v":0},null,{"$f":"+I1294-J1294","v":0},null,{"$f":"+K1294-L1294","v":0},null,{"$f":"+M1294-N1294","v":0},null,{"$f":"+O1294-P1294","v":0},null,{"$f":"+Q1294-R1294","v":0}]